Workbook

Sheet Start-Einstellung
B7: Dateneingabe zu Berechnung Futteraufnahmeniveau (FAN) | G7: FANi | J7: Tierhaltungsschule Triesdorf | M7: Markgrafenstraße 1
B8: Ration: | C8: TM - Aufn. kg | D8: 20.5 | F8: 700 | G8: =IFERROR(D8/(F8^0.75*50/1000),0) -> 3.012730795 | J8: 91746 Weidenbach | M8: 11 222 333 4444
J9: Adressfelder bitte mit eigenen Angaben überschreiben.
B10: Bitte Betriebsdaten eingeben: | G10: sidP Bedarf g/d
B12: Milchleistung kg/Tag | D12: 30 | E12: Kotverluste (OFN) | G12: =3*D8*6.25*(72/100)/(70/100) -> 395.3571429
B13: Milchprotein % | D13: 0.034 | E13: Harnverluste (OUN) | G13: =0.05*F8*6.25*(78/100) -> 170.625
B14: Milchfettgehalt % | D14: 0.04 | E14: Oberflächenverluste (SN) | G14: =0.02*(F8^0.75)*6.25/(70/100) -> 24.30163552
B15: Laktosegehalt % | D15: 0.048 | E15: sidP Bedarf Trächtigkeit | G15: =IF(OR(D16=0,D16=""),0,12.1156*EXP(0.0108*F16)/(30/100)) -> 0
B16: Zwischenkalbezeit Tage | D16: 0 | E16: Ø Tragendtage | F16: =IF(D16>0,(D16-60)/2-(D16-285),0) -> 0
B17: Bedarf je kg Milch | D17: =IF(D12>0,D18/D12,0) -> 45.20264219 | E17: Erhaltungsbedarf | G17: =IF(D8>0,SUM(G12:G15),0) -> 590.2837784
B18: sidP für Milchleistung | D18: =(D13*10)/6.38*D12*(95%)*6.25/(70/100)*100 -> 1356.079266 | E18: Gesamt-Bedarf sidP g/d | G18: =SUM(G17+D18) -> 1946.363044
B20: Ermittlung des Energiebedarfs ME MJ/d | E20: ME Mj | F20: Ca g | G20: Na g
B21: Erhaltungsbedarf | E21: =IF(F8=0,0,IF(AND(F8>0,D12>0),F8^0.75*0.64,IF(AND(F8>0,D12=0),F8^0.75*0.5))) -> 87.09706171 | F21: =IFERROR(IF(D8>0,D8/0.5,1),0) -> 41 | G21: =IFERROR(IF(D8>0,D8/0.95,1),0) -> 21.57894737 | I21: Landwirtsch. Lehranstalten Triesdorf www.triesdorf.de
B22: Leistungsbedarf Milch | E22: =IFERROR(IF(D12>0,E24*D12,0),0) -> 143.4 | F22: =IFERROR(IF(D12>0,D12*2.5,0),0) -> 75 | G22: =IFERROR(IF(D12>0,D12*0.6,0),0) -> 18
B23: Gesamtbedarf ME MJ/d | E23: =SUM(E21:E22) -> 230.4970617 | F23: =SUM(F21:F22) -> 116 | G23: 39.57894737 | H23: Freie Software - keinerlei Gewährleistung | M23: DLG Futterwerttabelle 1. Auflage - Stand 07/2025 https://www.dlg.org/landwirtschaft/tierhaltung
B24: Bedarf je kg Milch | E24: =IF(D12>0,(38.5*D14+24.2*D13+16.5*D15)/0.66,0) -> 4.78 | F24: =IFERROR(IF(F22>0,F22/D12,0),0) -> 2.5 | G24: =IFERROR(IF(G22>0,G22/D12,0),0) -> 0.6
B25: je kg TM | E25: =IFERROR(IF(D8>0,E23/D8,1),0) -> 11.24375911 | F25: =IFERROR(IF(D8>0,F23/D8,1),0) -> 5.658536585 | G25: =IFERROR(IF(D8>0,G23/D8,1),0) -> 1.930680359
I26: Update vom 03.07.2026 | L26: futtertabelle@web.de

Sheet Ration
A1: Trog - Ration | F1: TM | G1: CA | H1: OM | I1: aNDFom | J1: ADFom | K1: OMDFANi | L1: GE | M1: MEFANi | N1: CP | O1: sidP FANi | P1: CL | Q1: ST | R1: bST | S1: ZU | T1: RMDFANi | U1: Ca | V1: P | W1: Na | X1: Mg | Y1: K | Z1: Cl | AA1: S | AB1: DCAB | AC1: Fe | AD1: Cu | AE1: Zn | AF1: Mn | AG1: Co | AH1: J | AI1: Se | AJ1: siDUDP | AK1: Lysin | AL1: Methionin | AM1: Passager. k | AN1: UDP g/kg | AO1: a | AP1: b | AQ1: c | AR1: lag | AS1: sidUDP FANi | AT1: pabKH | AU1: Preis | AV1: Berechnung von Basis Fan1 auf FANi -- DLG Information 01 | 25 - DLG-Merknlatt 503 - DLG-MERKBLATT 504
B2: Futtermenge in kg Trockenmasse o. Frischmasse | C2: % TM | D2: TM kg | E2: FM kg | F2: kg | G2: g | H2: g | I2: g | J2: g | K2: % | L2: MJ | M2: MJ | N2: g | O2: g | P2: g | Q2: g | R2: g | S2: g | T2: g | U2: g | V2: g | W2: g | X2: g | Y2: g | Z2: g | AA2: g | AB2: meq | AC2: mg | AD2: mg | AE2: mg | AF2: mg | AG2: mg | AH2: mg | AI2: mg | AJ2: % | AK2: g | AL2: g | AM2: % / h | AN2: g | AO2: % | AP2: % | AQ2: % / h | AR2: h | AS2: g | AT2: g | AU2: € / dt | AV2: CH4E FAN1 | AW2: CH4E FANi | AX2: Harnen. | AY2: ME FANi | AZ2: MCP g/kg | BA2: sidP aus MCP | BB2: EDGFANi % | BC2: UDPFANi | BD2: RDP g/d | BE2: sidPUDP g | BF2: sidP g/kg | BG2: RDP g/kg | BH2: MCP g/d | BI2: RMDFANi | BJ2: DOMFANi | BK2: MCP/DOM | BL2: UDP %
A3: =A25 -> 0 | F3: =IF(A3=0,0,IF(AND(D3>0,E3=0),D3,IF(AND(D3=0,E3>0),E3*C3,IF(AND(D3>=0,E3>=0),"?")))) -> 0 | G3: =IFERROR(G25*F3,0) -> 0 | H3: =IFERROR(H25*F3,0) -> 0 | I3: =IF(AND(D25="GF",E25>0),I25*F3,0) -> 0 | J3: =IFERROR(J25*F3,0) -> 0 | K3: =IF(F3="?",0,IF(F3=0,0,K25-(1.5+0.05*(K25-65))*('Start-Einstellung'!$G$8-1))) -> 0 | L3: =IFERROR(L25*F3,0) -> 0 | M3: =IFERROR((AY3*F3),0) -> 0 | N3: =IFERROR(N25*F3,0) -> 0 | O3: =IFERROR(BF3*F3,0) -> 0 | P3: =IFERROR(P25*F3,0) -> 0 | Q3: =IFERROR(Q25*F3,0) -> 0 | R3: =IFERROR(R25*F3,0) -> 0 | S3: =IFERROR(S25*F3,0) -> 0 | T3: =IF((F3="?"),0,(BD3-BH3)/6.25) -> 0 | U3: =IFERROR(U25*F3,0) -> 0 | V3: =IFERROR(V25*F3,0) -> 0 | W3: =IFERROR(W25*F3,0) -> 0 | X3: =IFERROR(X25*F3,0) -> 0 | Y3: =IFERROR(Y25*F3,0) -> 0 | Z3: =IFERROR(Z25*F3,0) -> 0 | AA3: =IFERROR(AA25*F3,0) -> 0 | AB3: =IFERROR(AB25*F3,0) -> 0 | AC3: =IFERROR(AC25*F3,0) -> 0 | AD3: =IFERROR(AD25*F3,0) -> 0 | AE3: =IFERROR(AE25*F3,0) -> 0 | AF3: =IFERROR(AF25*F3,0) -> 0 | AG3: =IFERROR(AG25*F3,0) -> 0 | AH3: =IFERROR(AH25*F3,0) -> 0 | AI3: =IFERROR(AI25*F3,0) -> 0 | AJ3: =IF(F3="?",0,IF(F3=0,0,AJ25)) -> 0 | AK3: =IFERROR(AK25*F3,0) -> 0 | AL3: =IFERROR(AL25*F3,0) -> 0 | AM3: =IF(F3="?",0,IF(F3=0,0,IF(D25="GF",(1.7286+0.8857*'Start-Einstellung'!$G$8),IF(D25="KF",(2.2357+1.2429*'Start-Einstellung'!$G$8),IF(D25="SF",(1.9607+0.9643*'Start-Einstellung'!$G$8),0))))) -> 0 | AN3: =IF(F3="?",0,IF(F3=0,0,(N25-BG3))) -> 0 | AO3: =IF(F3="?",0,IF(F3=0,0,AO25)) -> 0 | AP3: =IF(F3="?",0,IF(F3=0,0,AP25)) -> 0 | AQ3: =IF(F3="?",0,IF(F3=0,0,(AQ25/100))) -> 0 | AR3: =IF(F3="?",0,IF(F3=0,0,AR25)) -> 0 | AS3: =IFERROR(AS25*F3,0) -> 0 | AT3: =IFERROR(AT25*F3,0) -> 0 | AU3: =IFERROR((AU25/100)*E25,0) -> 0 | AV3: =IF(F3="?",0,IF(F3=0,0,(0.7+0.014*K25)*(H25/1000))) -> 0 | AW3: =IFERROR(IF(F3="?",0,IF(F3=0,0,(((AV3/(H25/1000)+0.9*('Start-Einstellung'!$G$8-1))/'Start-Einstellung'!$G$8*(H25/1000))))),0) -> 0 | AX3: =IF(F3="?",0,IF(F3=0,0,((0.0037*N25)))) -> 0 | AY3: =IF(F3="?",0,IF(F3=0,0,((L25*(K3-3.3)/100)-AX3-AW3))) -> 0 | AZ3: =BK3*BJ3/1000 -> 0 | BA3: =IFERROR((AZ3*0.78*0.85),0) -> 0 | BB3: =IF(F3="?",0,IF(F3=0,0,AO3+(AP3*AQ3)/(AQ3+AM3%)*(EXP(-AM3/100*AR3)))) -> 0 | BC3: =IF(F3="?",0,IF(F3=0,0,(N25*(1-(BB3/100))))) -> 0 | BD3: =IF(F3="?",0,IF(F3=0,0,BG3*F3)) -> 0 | BE3: =IF(F3>0,(BC3*(AJ3%)),0) -> 0 | BF3: =IFERROR((BA3+BE3),0) -> 0 | BG3: =IFERROR(N25*BB3/100,0) -> 0 | BH3: =IF(F3="?",0,IF(F3=0,0,AZ3*F3)) -> 0 | BI3: =IFERROR((BD3-BH3)/6.25,0) -> 0 | BJ3: =IFERROR((H25*K3/100),0) -> 0 | BK3: =IF(A3=0,0,IF('Start-Einstellung'!$G$8<3.4,150,IF(-11+(47.1*'Start-Einstellung'!$G$8)>180,180,(-11+(47.1*'Start-Einstellung'!$G$8))))) -> 0 | BL3: =IFERROR((BC3/N25)*100,0) -> 0
A4: 0 | F4: =IF(A4=0,0,IF(AND(D4>0,E4=0),D4,IF(AND(D4=0,E4>0),E4*C4,IF(AND(D4>=0,E4>=0),"?")))) -> 0 | G4: 0 | H4: 0 | I4: 0 | J4: 0 | K4: =IF(F4="?",0,IF(F4=0,0,K26-(1.5+0.05*(K26-65))*('Start-Einstellung'!$G$8-1))) -> 0 | L4: 0 | M4: 0 | N4: 0 | O4: =IFERROR(BF4*F4,0) -> 0 | P4: 0 | Q4: 0 | R4: 0 | S4: 0 | T4: =IF((F4="?"),0,(BD4-BH4)/6.25) -> 0 | U4: 0 | V4: 0 | W4: 0 | X4: 0 | Y4: 0 | Z4: 0 | AA4: 0 | AB4: 0 | AC4: 0 | AD4: 0 | AE4: 0 | AF4: 0 | AG4: 0 | AH4: 0 | AI4: 0 | AJ4: =IF(F4="?",0,IF(F4=0,0,AJ26)) -> 0 | AK4: 0 | AL4: 0 | AM4: =IF(F4="?",0,IF(F4=0,0,IF(D26="GF",(1.7286+0.8857*'Start-Einstellung'!$G$8),IF(D26="KF",(2.2357+1.2429*'Start-Einstellung'!$G$8),IF(D26="SF",(1.9607+0.9643*'Start-Einstellung'!$G$8),0))))) -> 0 | AN4: =IF(F4="?",0,IF(F4=0,0,(N26-BG4))) -> 0 | AO4: =IF(F4="?",0,IF(F4=0,0,AO26)) -> 0 | AP4: =IF(F4="?",0,IF(F4=0,0,AP26)) -> 0 | AQ4: =IF(F4="?",0,IF(F4=0,0,(AQ26/100))) -> 0 | AR4: =IF(F4="?",0,IF(F4=0,0,AR26)) -> 0 | AS4: 0 | AT4: 0 | AU4: =IFERROR((AU26/100)*E26,0) -> 0 | AV4: 0 | AW4: =IFERROR(IF(F4="?",0,IF(F4=0,0,(((AV4/(H26/1000)+0.9*('Start-Einstellung'!$G$8-1))/'Start-Einstellung'!$G$8*(H26/1000))))),0) -> 0 | AX4: 0 | AY4: 0 | AZ4: =BK4*BJ4/1000 -> 0 | BA4: =IFERROR((AZ4*0.78*0.85),0) -> 0 | BB4: =IF(F4="?",0,IF(F4=0,0,AO4+(AP4*AQ4)/(AQ4+AM4%)*(EXP(-AM4/100*AR4)))) -> 0 | BC4: =IF(F4="?",0,IF(F4=0,0,(N26*(1-(BB4/100))))) -> 0 | BD4: =IF(F4="?",0,IF(F4=0,0,BG4*F4)) -> 0 | BE4: =IF(F4>0,(BC4*(AJ4%)),0) -> 0 | BF4: =IFERROR((BA4+BE4),0) -> 0 | BG4: 0 | BH4: =IF(F4="?",0,IF(F4=0,0,AZ4*F4)) -> 0 | BI4: =IFERROR((BD4-BH4)/6.25,0) -> 0 | BJ4: 0 | BK4: =IF(A4=0,0,IF('Start-Einstellung'!$G$8<3.4,150,IF(-11+(47.1*'Start-Einstellung'!$G$8)>180,180,(-11+(47.1*'Start-Einstellung'!$G$8))))) -> 0 | BL4: 0
A5: 0 | F5: 0 | G5: 0 | H5: 0 | I5: 0 | J5: 0 | K5: =IF(F5="?",0,IF(F5=0,0,K27-(1.5+0.05*(K27-65))*('Start-Einstellung'!$G$8-1))) -> 0 | L5: 0 | M5: 0 | N5: 0 | O5: 0 | P5: 0 | Q5: 0 | R5: 0 | S5: 0 | T5: 0 | U5: 0 | V5: 0 | W5: 0 | X5: 0 | Y5: 0 | Z5: 0 | AA5: 0 | AB5: 0 | AC5: 0 | AD5: 0 | AE5: 0 | AF5: 0 | AG5: 0 | AH5: 0 | AI5: 0 | AJ5: 0 | AK5: 0 | AL5: 0 | AM5: =IF(F5="?",0,IF(F5=0,0,IF(D27="GF",(1.7286+0.8857*'Start-Einstellung'!$G$8),IF(D27="KF",(2.2357+1.2429*'Start-Einstellung'!$G$8),IF(D27="SF",(1.9607+0.9643*'Start-Einstellung'!$G$8),0))))) -> 0 | AN5: 0 | AO5: 0 | AP5: 0 | AQ5: 0 | AR5: 0 | AS5: 0 | AT5: 0 | AU5: 0 | AV5: 0 | AW5: =IFERROR(IF(F5="?",0,IF(F5=0,0,(((AV5/(H27/1000)+0.9*('Start-Einstellung'!$G$8-1))/'Start-Einstellung'!$G$8*(H27/1000))))),0) -> 0 | AX5: 0 | AY5: 0 | AZ5: 0 | BA5: 0 | BB5: 0 | BC5: 0 | BD5: 0 | BE5: =IF(F5>0,(BC5*(AJ5%)),0) -> 0 | BF5: 0 | BG5: 0 | BH5: 0 | BI5: 0 | BJ5: 0 | BK5: =IF(A5=0,0,IF('Start-Einstellung'!$G$8<3.4,150,IF(-11+(47.1*'Start-Einstellung'!$G$8)>180,180,(-11+(47.1*'Start-Einstellung'!$G$8))))) -> 0 | BL5: 0
A6: 0 | F6: 0 | G6: 0 | H6: 0 | I6: 0 | J6: 0 | K6: =IF(F6="?",0,IF(F6=0,0,K28-(1.5+0.05*(K28-65))*('Start-Einstellung'!$G$8-1))) -> 0 | L6: 0 | M6: 0 | N6: 0 | O6: 0 | P6: 0 | Q6: 0 | R6: 0 | S6: 0 | T6: 0 | U6: 0 | V6: 0 | W6: 0 | X6: 0 | Y6: 0 | Z6: 0 | AA6: 0 | AB6: 0 | AC6: 0 | AD6: 0 | AE6: 0 | AF6: 0 | AG6: 0 | AH6: 0 | AI6: 0 | AJ6: 0 | AK6: 0 | AL6: 0 | AM6: =IF(F6="?",0,IF(F6=0,0,IF(D28="GF",(1.7286+0.8857*'Start-Einstellung'!$G$8),IF(D28="KF",(2.2357+1.2429*'Start-Einstellung'!$G$8),IF(D28="SF",(1.9607+0.9643*'Start-Einstellung'!$G$8),0))))) -> 0 | AN6: 0 | AO6: 0 | AP6: 0 | AQ6: 0 | AR6: 0 | AS6: 0 | AT6: 0 | AU6: 0 | AV6: 0 | AW6: =IFERROR(IF(F6="?",0,IF(F6=0,0,(((AV6/(H28/1000)+0.9*('Start-Einstellung'!$G$8-1))/'Start-Einstellung'!$G$8*(H28/1000))))),0) -> 0 | AX6: 0 | AY6: 0 | AZ6: 0 | BA6: 0 | BB6: 0 | BC6: 0 | BD6: 0 | BE6: 0 | BF6: 0 | BG6: 0 | BH6: 0 | BI6: 0 | BJ6: 0 | BK6: =IF(A6=0,0,IF('Start-Einstellung'!$G$8<3.4,150,IF(-11+(47.1*'Start-Einstellung'!$G$8)>180,180,(-11+(47.1*'Start-Einstellung'!$G$8))))) -> 0 | BL6: 0
A7: 0 | F7: 0 | G7: 0 | H7: 0 | I7: 0 | J7: 0 | K7: =IF(F7="?",0,IF(F7=0,0,K29-(1.5+0.05*(K29-65))*('Start-Einstellung'!$G$8-1))) -> 0 | L7: 0 | M7: 0 | N7: 0 | O7: 0 | P7: 0 | Q7: 0 | R7: 0 | S7: 0 | T7: 0 | U7: 0 | V7: 0 | W7: 0 | X7: 0 | Y7: 0 | Z7: 0 | AA7: 0 | AB7: 0 | AC7: 0 | AD7: 0 | AE7: 0 | AF7: 0 | AG7: 0 | AH7: 0 | AI7: 0 | AJ7: 0 | AK7: 0 | AL7: 0 | AM7: =IF(F7="?",0,IF(F7=0,0,IF(D29="GF",(1.7286+0.8857*'Start-Einstellung'!$G$8),IF(D29="KF",(2.2357+1.2429*'Start-Einstellung'!$G$8),IF(D29="SF",(1.9607+0.9643*'Start-Einstellung'!$G$8),0))))) -> 0 | AN7: 0 | AO7: 0 | AP7: 0 | AQ7: 0 | AR7: 0 | AS7: 0 | AT7: 0 | AU7: 0 | AV7: 0 | AW7: =IFERROR(IF(F7="?",0,IF(F7=0,0,(((AV7/(H29/1000)+0.9*('Start-Einstellung'!$G$8-1))/'Start-Einstellung'!$G$8*(H29/1000))))),0) -> 0 | AX7: 0 | AY7: 0 | AZ7: 0 | BA7: 0 | BB7: 0 | BC7: 0 | BD7: 0 | BE7: 0 | BF7: 0 | BG7: 0 | BH7: 0 | BI7: 0 | BJ7: 0 | BK7: =IF(A7=0,0,IF('Start-Einstellung'!$G$8<3.4,150,IF(-11+(47.1*'Start-Einstellung'!$G$8)>180,180,(-11+(47.1*'Start-Einstellung'!$G$8))))) -> 0 | BL7: 0
A8: 0 | F8: 0 | G8: 0 | H8: 0 | I8: 0 | J8: 0 | K8: =IF(F8="?",0,IF(F8=0,0,K30-(1.5+0.05*(K30-65))*('Start-Einstellung'!$G$8-1))) -> 0 | L8: 0 | M8: 0 | N8: 0 | O8: 0 | P8: 0 | Q8: 0 | R8: 0 | S8: 0 | T8: 0 | U8: 0 | V8: 0 | W8: 0 | X8: 0 | Y8: 0 | Z8: 0 | AA8: 0 | AB8: 0 | AC8: 0 | AD8: 0 | AE8: 0 | AF8: 0 | AG8: 0 | AH8: 0 | AI8: 0 | AJ8: 0 | AK8: 0 | AL8: 0 | AM8: =IF(F8="?",0,IF(F8=0,0,IF(D30="GF",(1.7286+0.8857*'Start-Einstellung'!$G$8),IF(D30="KF",(2.2357+1.2429*'Start-Einstellung'!$G$8),IF(D30="SF",(1.9607+0.9643*'Start-Einstellung'!$G$8),0))))) -> 0 | AN8: 0 | AO8: 0 | AP8: 0 | AQ8: 0 | AR8: 0 | AS8: 0 | AT8: 0 | AU8: 0 | AV8: 0 | AW8: =IFERROR(IF(F8="?",0,IF(F8=0,0,(((AV8/(H30/1000)+0.9*('Start-Einstellung'!$G$8-1))/'Start-Einstellung'!$G$8*(H30/1000))))),0) -> 0 | AX8: 0 | AY8: 0 | AZ8: 0 | BA8: 0 | BB8: 0 | BC8: 0 | BD8: 0 | BE8: 0 | BF8: 0 | BG8: 0 | BH8: 0 | BI8: 0 | BJ8: 0 | BK8: =IF(A8=0,0,IF('Start-Einstellung'!$G$8<3.4,150,IF(-11+(47.1*'Start-Einstellung'!$G$8)>180,180,(-11+(47.1*'Start-Einstellung'!$G$8))))) -> 0 | BL8: 0
A9: 0 | F9: 0 | G9: 0 | H9: 0 | I9: 0 | J9: 0 | K9: =IF(F9="?",0,IF(F9=0,0,K31-(1.5+0.05*(K31-65))*('Start-Einstellung'!$G$8-1))) -> 0 | L9: 0 | M9: 0 | N9: 0 | O9: 0 | P9: 0 | Q9: 0 | R9: 0 | S9: 0 | T9: 0 | U9: 0 | V9: 0 | W9: 0 | X9: 0 | Y9: 0 | Z9: 0 | AA9: 0 | AB9: 0 | AC9: 0 | AD9: 0 | AE9: 0 | AF9: 0 | AG9: 0 | AH9: 0 | AI9: 0 | AJ9: 0 | AK9: 0 | AL9: 0 | AM9: =IF(F9="?",0,IF(F9=0,0,IF(D31="GF",(1.7286+0.8857*'Start-Einstellung'!$G$8),IF(D31="KF",(2.2357+1.2429*'Start-Einstellung'!$G$8),IF(D31="SF",(1.9607+0.9643*'Start-Einstellung'!$G$8),0))))) -> 0 | AN9: 0 | AO9: 0 | AP9: 0 | AQ9: 0 | AR9: 0 | AS9: 0 | AT9: 0 | AU9: 0 | AV9: 0 | AW9: =IFERROR(IF(F9="?",0,IF(F9=0,0,(((AV9/(H31/1000)+0.9*('Start-Einstellung'!$G$8-1))/'Start-Einstellung'!$G$8*(H31/1000))))),0) -> 0 | AX9: 0 | AY9: 0 | AZ9: 0 | BA9: 0 | BB9: 0 | BC9: 0 | BD9: 0 | BE9: 0 | BF9: 0 | BG9: 0 | BH9: 0 | BI9: 0 | BJ9: 0 | BK9: =IF(A9=0,0,IF('Start-Einstellung'!$G$8<3.4,150,IF(-11+(47.1*'Start-Einstellung'!$G$8)>180,180,(-11+(47.1*'Start-Einstellung'!$G$8))))) -> 0 | BL9: 0
A10: 0 | F10: 0 | G10: 0 | H10: 0 | I10: 0 | J10: 0 | K10: =IF(F10="?",0,IF(F10=0,0,K32-(1.5+0.05*(K32-65))*('Start-Einstellung'!$G$8-1))) -> 0 | L10: 0 | M10: 0 | N10: 0 | O10: 0 | P10: 0 | Q10: 0 | R10: 0 | S10: 0 | T10: 0 | U10: 0 | V10: 0 | W10: 0 | X10: 0 | Y10: 0 | Z10: 0 | AA10: 0 | AB10: 0 | AC10: 0 | AD10: 0 | AE10: 0 | AF10: 0 | AG10: 0 | AH10: 0 | AI10: 0 | AJ10: 0 | AK10: 0 | AL10: 0 | AM10: =IF(F10="?",0,IF(F10=0,0,IF(D32="GF",(1.7286+0.8857*'Start-Einstellung'!$G$8),IF(D32="KF",(2.2357+1.2429*'Start-Einstellung'!$G$8),IF(D32="SF",(1.9607+0.9643*'Start-Einstellung'!$G$8),0))))) -> 0 | AN10: 0 | AO10: 0 | AP10: 0 | AQ10: 0 | AR10: 0 | AS10: 0 | AT10: 0 | AU10: 0 | AV10: 0 | AW10: =IFERROR(IF(F10="?",0,IF(F10=0,0,(((AV10/(H32/1000)+0.9*('Start-Einstellung'!$G$8-1))/'Start-Einstellung'!$G$8*(H32/1000))))),0) -> 0 | AX10: 0 | AY10: 0 | AZ10: 0 | BA10: 0 | BB10: 0 | BC10: 0 | BD10: 0 | BE10: 0 | BF10: 0 | BG10: 0 | BH10: 0 | BI10: 0 | BJ10: 0 | BK10: =IF(A10=0,0,IF('Start-Einstellung'!$G$8<3.4,150,IF(-11+(47.1*'Start-Einstellung'!$G$8)>180,180,(-11+(47.1*'Start-Einstellung'!$G$8))))) -> 0 | BL10: 0
A11: 0 | F11: 0 | G11: 0 | H11: 0 | I11: 0 | J11: 0 | K11: =IF(F11="?",0,IF(F11=0,0,K33-(1.5+0.05*(K33-65))*('Start-Einstellung'!$G$8-1))) -> 0 | L11: 0 | M11: 0 | N11: 0 | O11: 0 | P11: 0 | Q11: 0 | R11: 0 | S11: 0 | T11: 0 | U11: 0 | V11: 0 | W11: 0 | X11: 0 | Y11: 0 | Z11: 0 | AA11: 0 | AB11: 0 | AC11: 0 | AD11: 0 | AE11: 0 | AF11: 0 | AG11: 0 | AH11: 0 | AI11: 0 | AJ11: 0 | AK11: 0 | AL11: 0 | AM11: =IF(F11="?",0,IF(F11=0,0,IF(D33="GF",(1.7286+0.8857*'Start-Einstellung'!$G$8),IF(D33="KF",(2.2357+1.2429*'Start-Einstellung'!$G$8),IF(D33="SF",(1.9607+0.9643*'Start-Einstellung'!$G$8),0))))) -> 0 | AN11: 0 | AO11: 0 | AP11: 0 | AQ11: 0 | AR11: 0 | AS11: 0 | AT11: 0 | AU11: 0 | AV11: 0 | AW11: =IFERROR(IF(F11="?",0,IF(F11=0,0,(((AV11/(H33/1000)+0.9*('Start-Einstellung'!$G$8-1))/'Start-Einstellung'!$G$8*(H33/1000))))),0) -> 0 | AX11: 0 | AY11: 0 | AZ11: 0 | BA11: 0 | BB11: 0 | BC11: 0 | BD11: 0 | BE11: 0 | BF11: 0 | BG11: 0 | BH11: 0 | BI11: 0 | BJ11: 0 | BK11: =IF(A11=0,0,IF('Start-Einstellung'!$G$8<3.4,150,IF(-11+(47.1*'Start-Einstellung'!$G$8)>180,180,(-11+(47.1*'Start-Einstellung'!$G$8))))) -> 0 | BL11: 0
A12: 0 | F12: 0 | G12: 0 | H12: 0 | I12: 0 | J12: 0 | K12: =IF(F12="?",0,IF(F12=0,0,K34-(1.5+0.05*(K34-65))*('Start-Einstellung'!$G$8-1))) -> 0 | L12: 0 | M12: 0 | N12: 0 | O12: 0 | P12: 0 | Q12: 0 | R12: 0 | S12: 0 | T12: 0 | U12: 0 | V12: 0 | W12: 0 | X12: 0 | Y12: 0 | Z12: 0 | AA12: 0 | AB12: 0 | AC12: 0 | AD12: 0 | AE12: 0 | AF12: 0 | AG12: 0 | AH12: 0 | AI12: 0 | AJ12: 0 | AK12: 0 | AL12: 0 | AM12: =IF(F12="?",0,IF(F12=0,0,IF(D34="GF",(1.7286+0.8857*'Start-Einstellung'!$G$8),IF(D34="KF",(2.2357+1.2429*'Start-Einstellung'!$G$8),IF(D34="SF",(1.9607+0.9643*'Start-Einstellung'!$G$8),0))))) -> 0 | AN12: 0 | AO12: 0 | AP12: 0 | AQ12: 0 | AR12: 0 | AS12: 0 | AT12: 0 | AU12: 0 | AV12: 0 | AW12: =IFERROR(IF(F12="?",0,IF(F12=0,0,(((AV12/(H34/1000)+0.9*('Start-Einstellung'!$G$8-1))/'Start-Einstellung'!$G$8*(H34/1000))))),0) -> 0 | AX12: 0 | AY12: 0 | AZ12: 0 | BA12: 0 | BB12: 0 | BC12: 0 | BD12: 0 | BE12: 0 | BF12: 0 | BG12: 0 | BH12: 0 | BI12: 0 | BJ12: 0 | BK12: =IF(A12=0,0,IF('Start-Einstellung'!$G$8<3.4,150,IF(-11+(47.1*'Start-Einstellung'!$G$8)>180,180,(-11+(47.1*'Start-Einstellung'!$G$8))))) -> 0 | BL12: 0
A13: 0 | F13: 0 | G13: 0 | H13: 0 | I13: 0 | J13: 0 | K13: =IF(F13="?",0,IF(F13=0,0,K35-(1.5+0.05*(K35-65))*('Start-Einstellung'!$G$8-1))) -> 0 | L13: 0 | M13: 0 | N13: 0 | O13: 0 | P13: 0 | Q13: 0 | R13: 0 | S13: 0 | T13: 0 | U13: 0 | V13: 0 | W13: 0 | X13: 0 | Y13: 0 | Z13: 0 | AA13: 0 | AB13: 0 | AC13: 0 | AD13: 0 | AE13: 0 | AF13: 0 | AG13: 0 | AH13: 0 | AI13: 0 | AJ13: 0 | AK13: 0 | AL13: 0 | AM13: =IF(F13="?",0,IF(F13=0,0,IF(D35="GF",(1.7286+0.8857*'Start-Einstellung'!$G$8),IF(D35="KF",(2.2357+1.2429*'Start-Einstellung'!$G$8),IF(D35="SF",(1.9607+0.9643*'Start-Einstellung'!$G$8),0))))) -> 0 | AN13: 0 | AO13: 0 | AP13: 0 | AQ13: 0 | AR13: 0 | AS13: 0 | AT13: 0 | AU13: 0 | AV13: 0 | AW13: =IFERROR(IF(F13="?",0,IF(F13=0,0,(((AV13/(H35/1000)+0.9*('Start-Einstellung'!$G$8-1))/'Start-Einstellung'!$G$8*(H35/1000))))),0) -> 0 | AX13: 0 | AY13: 0 | AZ13: 0 | BA13: 0 | BB13: 0 | BC13: 0 | BD13: 0 | BE13: 0 | BF13: 0 | BG13: 0 | BH13: 0 | BI13: 0 | BJ13: 0 | BK13: =IF(A13=0,0,IF('Start-Einstellung'!$G$8<3.4,150,IF(-11+(47.1*'Start-Einstellung'!$G$8)>180,180,(-11+(47.1*'Start-Einstellung'!$G$8))))) -> 0 | BL13: 0
A14: 0 | F14: 0 | G14: 0 | H14: 0 | I14: 0 | J14: 0 | K14: =IF(F14="?",0,IF(F14=0,0,K36-(1.5+0.05*(K36-65))*('Start-Einstellung'!$G$8-1))) -> 0 | L14: 0 | M14: 0 | N14: 0 | O14: 0 | P14: 0 | Q14: 0 | R14: 0 | S14: 0 | T14: 0 | U14: 0 | V14: 0 | W14: 0 | X14: 0 | Y14: 0 | Z14: 0 | AA14: 0 | AB14: 0 | AC14: 0 | AD14: 0 | AE14: 0 | AF14: 0 | AG14: 0 | AH14: 0 | AI14: 0 | AJ14: 0 | AK14: 0 | AL14: 0 | AM14: =IF(F14="?",0,IF(F14=0,0,IF(D36="GF",(1.7286+0.8857*'Start-Einstellung'!$G$8),IF(D36="KF",(2.2357+1.2429*'Start-Einstellung'!$G$8),IF(D36="SF",(1.9607+0.9643*'Start-Einstellung'!$G$8),0))))) -> 0 | AN14: 0 | AO14: 0 | AP14: 0 | AQ14: 0 | AR14: 0 | AS14: 0 | AT14: 0 | AU14: 0 | AV14: 0 | AW14: =IFERROR(IF(F14="?",0,IF(F14=0,0,(((AV14/(H36/1000)+0.9*('Start-Einstellung'!$G$8-1))/'Start-Einstellung'!$G$8*(H36/1000))))),0) -> 0 | AX14: 0 | AY14: 0 | AZ14: 0 | BA14: 0 | BB14: 0 | BC14: 0 | BD14: 0 | BE14: 0 | BF14: 0 | BG14: 0 | BH14: 0 | BI14: 0 | BJ14: 0 | BK14: =IF(A14=0,0,IF('Start-Einstellung'!$G$8<3.4,150,IF(-11+(47.1*'Start-Einstellung'!$G$8)>180,180,(-11+(47.1*'Start-Einstellung'!$G$8))))) -> 0 | BL14: 0
B15: Zugabe Konzentratmischung hier in kg eingeben | F15: =IFERROR(('Mischung 1'!D15*E15)/1000,0) -> 0 | G15: =IFERROR(('Mischung 1'!E15*E15),0) -> 0 | H15: =IFERROR(('Mischung 1'!F15*E15),0) -> 0 | I15: =IFERROR(('Mischung 1'!G15*E15),0) -> 0 | J15: =IFERROR(('Mischung 1'!H15*E15),0) -> 0 | L15: =IFERROR(('Mischung 1'!J15*E15),0) -> 0 | M15: =IFERROR(('Mischung 1'!K15*E15),0) -> 0 | N15: =IFERROR(('Mischung 1'!L15*E15),0) -> 0 | O15: =IFERROR(('Mischung 1'!M15*E15),0) -> 0 | P15: =IFERROR(('Mischung 1'!N15*E15),0) -> 0 | Q15: =IFERROR(('Mischung 1'!O15*E15),0) -> 0 | R15: =IFERROR(('Mischung 1'!P15*E15),0) -> 0 | S15: =IFERROR(('Mischung 1'!Q15*E15),0) -> 0 | T15: =IFERROR(('Mischung 1'!R15*E15),0) -> 0 | U15: =IFERROR(('Mischung 1'!S15*E15),0) -> 0 | V15: =IFERROR(('Mischung 1'!T15*E15),0) -> 0 | W15: =IFERROR(('Mischung 1'!U15*E15),0) -> 0 | X15: =IFERROR(('Mischung 1'!V15*E15),0) -> 0 | Y15: =IFERROR(('Mischung 1'!W15*E15),0) -> 0 | Z15: =IFERROR(('Mischung 1'!X15*E15),0) -> 0 | AA15: =IFERROR(('Mischung 1'!Y15*E15),0) -> 0 | AB15: =IFERROR(('Mischung 1'!Z15*E15),0) -> 0 | AC15: =IFERROR(('Mischung 1'!AA15*E15),0) -> 0 | AD15: =IFERROR(('Mischung 1'!AB15*E15),0) -> 0 | AE15: =IFERROR(('Mischung 1'!AC15*E15),0) -> 0 | AF15: =IFERROR(('Mischung 1'!AD15*E15),0) -> 0 | AG15: =IFERROR(('Mischung 1'!AE15*E15),0) -> 0 | AH15: =IFERROR(('Mischung 1'!AF15*E15),0) -> 0 | AI15: =IFERROR(('Mischung 1'!AG15*E15),0) -> 0 | AK15: =IFERROR(('Mischung 1'!AI15*E15),0) -> 0 | AL15: =IFERROR(('Mischung 1'!AJ15*E15),0) -> 0 | AN15: =IFERROR(N37-BG15,0) -> 0 | AS15: =IFERROR(('Mischung 1'!AQ15*E15),0) -> 0 | AT15: =IFERROR(('Mischung 1'!AR15*E15),0) -> 0 | AU15: =IFERROR(('Mischung 1'!AS15*E15),0) -> 0 | BD15: 0 | BH15: =IF(F15="?",0,IF(F15=0,0,BK15*F15)) -> 0
B16: Summe | E16: =SUM(E25:E36)+E17+E15 -> 0 | F16: =SUM(F3:F15) -> 0 | G16: =SUM(G3:G15) -> 0 | H16: =SUM(H3:H15) -> 0 | I16: =SUM(I3:I15) -> 0 | J16: =SUM(J3:J15) -> 0 | L16: =SUM(L3:L15) -> 0 | M16: 0 | N16: 0 | O16: 0 | P16: 0 | Q16: 0 | R16: 0 | S16: 0 | T16: 0 | U16: 0 | V16: 0 | W16: 0 | X16: 0 | Y16: 0 | Z16: 0 | AA16: 0 | AB16: =SUM(AB3:AB15) -> 0 | AC16: =SUM(AC3:AC15) -> 0 | AD16: 0 | AE16: 0 | AF16: 0 | AG16: 0 | AH16: 0 | AI16: 0 | AK16: 0 | AL16: 0 | AM16: 0 | AN16: 0 | AO16: 0 | AS16: =SUM(AS3:AS15) -> 0 | AT16: =SUM(AT3:AT15) -> 0 | AU16: =SUM(AU3:AU15) -> 0 | BA16: =SUM(BA3:BA15) -> 0 | BD16: =SUM(BD3:BD14) -> 0 | BH16: =SUM(BH3:BH14) -> 0 | BI16: =(BD16-BH16)/6.25 -> 0
B17: Wasserzugabe bitte eingeben | D17: =IF(F16>0,(F16/E16),0) -> 0 | G17: =IF(G16>0,G16/F16,0) -> 0 | H17: =IF(H16>0,H16/F16,0) -> 0 | I17: =IF(I16>0,I16/F16/1000,0) -> 0 | J17: =IF(J16>0,J16/F16,0) -> 0 | K17: =IF(K16>0,K16/$F$16,0) -> 0 | L17: =IF(L16>0,L16/$F$16,0) -> 0 | M17: =IF(M16>0,M16/$F$16,0) -> 0 | N17: =IF(N16>0,N16/$F$16/1000,0) -> 0 | O17: =IF(O16>0,O16/$F$16,0) -> 0 | P17: =IF(P16>0,P16/$F$16/1000,0) -> 0 | Q17: =IF(Q16>0,Q16/$F$16/1000,0) -> 0 | R17: =IF(R16>0,R16/$F$16/1000,0) -> 0 | S17: =IF(S16>0,S16/$F$16/1000,0) -> 0 | T17: =IF(T16<>0,T16/$F$16,0) -> 0 | U17: =IF(U16>0,U16/$F$16,0) -> 0 | V17: 0 | W17: 0 | X17: 0 | Y17: 0 | Z17: 0 | AA17: 0 | AB17: =IF(F16>0,((42.5*W16)+(25.6*Y16)-(28.2*Z16)-(62.4*AA16))/F16,0) -> 0 | AC17: =IFERROR(SUM(AC3:AC15)/F16,0) -> 0 | AD17: =IFERROR(SUM(AD3:AD15)/F16,0) -> 0 | AE17: =IFERROR(SUM(AE3:AE15)/F16,0) -> 0 | AF17: =IFERROR(SUM(AF3:AF15)/F16,0) -> 0 | AG17: =IFERROR(SUM(AG3:AG15)/F16,0) -> 0 | AH17: =IFERROR(SUM(AH3:AH15)/F16,0) -> 0 | AI17: =IFERROR(SUM(AI3:AI15)/F16,0) -> 0 | AK17: =IF(AK16>0,AK16/$F$16,0) -> 0 | AL17: =IF(AL16>0,AL16/$F$16,0) -> 0 | AM17: =SUM(AM15:AM15) -> 0 | AN17: =SUM(AN15:AN15) -> 0 | AS17: =IF(AS16>0,AS16/$F$16,0) -> 0 | AT17: =IF(AT16>0,AT16/$F$16/1000,0) -> 0 | AU17: =IF(AU16>0,AU16/$F$16,0) -> 0
B18: Milcherzeugungswerte / Kennzahlen | C18: =SUMIF(D25:D36,"GF",F3:F15) -> 0 | D18: =F16-C18 -> 0 | E18: =IF(C18>0,C18/F16,0) -> 0 | F18: =IF(D18>0,D18/F16,0) -> 0 | M18: =IFERROR(IF(M16>0,(M16-'Start-Einstellung'!E21)/'Start-Einstellung'!E24,0),0) -> 0 | O18: =IFERROR(IF(O16>0,(O16-'Start-Einstellung'!G17)/'Start-Einstellung'!D17,0),0) -> 0 | U18: =IFERROR(IF(U16>0,(U16-'Start-Einstellung'!F21)/'Start-Einstellung'!F24,0),0) -> 0 | V18: =IF(F16>0,(V16-1.43*F16)/1.43,0) -> 0 | W18: =IFERROR(IF(W16>0,(W16-'Start-Einstellung'!G21)/'Start-Einstellung'!G24,0),0) -> 0 | X18: =IF(F16>0,(X16-0.8*F16)/0.8,0) -> 0 | Y18: =IF(F16>0,(Y16-8.8*F16)/1.6,0) -> 0 | Z18: =IF(F16>0,(Z16-1.5*F16)/1.4,0) -> 0 | AA18: =IF(F16>0,(AA16-1.5*F16)/0.6,0) -> 0
H19: =IF(I16>0,I19/(I19+(Q19+S19-R19-2.8)/0.36)*100,0) -> 0 | I19: =I16*0.001 -> 0 | Q19: =Q16*0.001 -> 0 | R19: =R16*0.001 -> 0 | S19: =S16*0.001 -> 0
B20: Differenz + / - zu Sollwert | C20: FANi | D20: Milch | E20: KM kg | F20: =F16-F21 -> -20.5 | I20: SI : | K20: =IF(H19>100, 100, IF(H19<0, 100, H19)) -> 0 | M20: =M16-M21 -> -230.4970617 | O20: =O16-O21 -> -1946.363044 | U20: =U16-U21 -> -116 | V20: 0 | W20: -39.57894737 | X20: 0 | Y20: 0 | Z20: 0 | AA20: 0 | AC20: =AC17-AC21 -> -50 | AD20: =AD17-AD21 -> -10 | AE20: =AE17-AE21 -> -50 | AF20: =AF17-AF21 -> -50 | AI20: =AI17-AI21 -> -0.2 | AK20: =AK17-AK21 -> 0 | AL20: =AL17-AL21 -> 0
B21: Sollwerte aus Start-Einstellung | C21: =IFERROR(('Start-Einstellung'!G8),0) -> 3.012730795 | D21: =IFERROR(('Start-Einstellung'!D12),0) -> 30 | E21: =IFERROR(('Start-Einstellung'!F8),0) -> 700 | F21: =IFERROR(('Start-Einstellung'!D8),0) -> 20.5 | M21: =IFERROR(('Start-Einstellung'!E23),0) -> 230.4970617 | O21: =IFERROR(('Start-Einstellung'!G18),0) -> 1946.363044 | U21: =IF('Start-Einstellung'!D12>0,'Start-Einstellung'!F23,IF(E16=0,0,IF(AB21<=-50,F16*13,IF(AB21<=0,F16*11,IF(AB21<=100,F16*8,IF(AB21<200,F16*6,IF(AB21>=200,F16*4))))))) -> 116 | V21: =IF(F16>0,(1.43*F16)+(1.43*'Start-Einstellung'!D12),0) -> 0 | W21: =IFERROR(('Start-Einstellung'!G23),0) -> 39.57894737 | X21: =IF(F16>0,(0.8*F16)+(0.8*'Start-Einstellung'!D12),0) -> 0 | Y21: =IF(F16>0,(8.8*F16)+(1.6*'Start-Einstellung'!D12),0) -> 0 | Z21: =IF(F16>0,(1.5*F16)+(1.4*'Start-Einstellung'!D12),0) -> 0 | AA21: =IF(F16>0,(1.5*F16)+(0.6*'Start-Einstellung'!D12),0) -> 0 | AC21: 50 | AD21: 10 | AE21: 50 | AF21: 50 | AI21: 0.2 | AK21: =IFERROR(('Start-Einstellung'!#REF!),0) -> 0 | AL21: =IFERROR(('Start-Einstellung'!#REF!),0) -> 0
B23: Ausgewählte Futtermittel aus Gruber Tabelle | C23: % TM | D23: Art | E23: FM kg | F23: TM kg | G23: CA | H23: OM | I23: aNDFom | J23: ADFom | K23: OMDFAN1 | L23: GE | M23: MEFAN1 | N23: CP | O23: sidP FAN1 | P23: CL | Q23: ST | R23: bST | S23: ZU | T23: RMDFAN1 | U23: Ca | V23: P | W23: Na | X23: Mg | Y23: K | Z23: Cl | AA23: S | AB23: DCAB | AC23: Fe | AD23: Cu | AE23: Zn | AF23: Mn | AG23: Co | AH23: J | AI23: Se | AJ23: siDUDP | AK23: sidLYS FAN1 | AL23: sidMETFAN1 | AM23: Passager. k | AN23: sidP udp | AO23: a | AP23: b | AQ23: c | AR23: lag h | AS23: sidUDP FAN1 | AT23: pabKH | AU23: Preis / €
B24: Direkte Futtermittel - Nr. Eingabe möglich | F24: g/kg | G24: g/kg TM | H24: g/kg TM | I24: g/kg TM | J24: g/kg TM | K24: % OM | L24: MJ/kg TM | M24: MJ/kg TM | N24: g/kg TM | O24: g/kg TM | P24: g/kg TM | Q24: g/kg TM | R24: g / kg TM | S24: g/kg TM | T24: g N / kg TM | U24: g/kg TM | V24: g/kg TM | W24: g/kg TM | X24: g/kg TM | Y24: g/kg TM | Z24: g/kg TM | AA24: g/kg TM | AB24: meq/ kg TM | AC24: mg/kg TM | AD24: mg/kg TM | AE24: mg/kg TM | AF24: mg/kg TM | AG24: mg/kg TM | AH24: mg/kg TM | AI24: mg/kg TM | AJ24: % UDP | AK24: g/kg TM | AL24: g/kg TM | AM24: % / h | AN24: g / kg TM | AO24: % | AP24: % | AQ24: % / h | AR24: h | AS24: g/kg TM | AT24: g/kg TM | AU24: € / dt
B25: =IFERROR(VLOOKUP(A25,Futtermittel!$A$3:$AR$386,2,0),"") ->  | C25: =IFERROR(F25/1000,0) -> 0 | D25: =IFERROR(VLOOKUP(A25,Futtermittel!$A$3:$AR$386,28,0),"") ->  | E25: =IFERROR(F3/(C3),0) -> 0 | F25: =IFERROR(VLOOKUP(A25,Futtermittel!$A$3:$AR$386,3,0),"") ->  | G25: =IFERROR(VLOOKUP(A25,Futtermittel!$A$3:$AR$386,4,0),"") ->  | H25: =IFERROR(VLOOKUP(A25,Futtermittel!$A$3:$AR$386,5,0),"") ->  | I25: =IFERROR(VLOOKUP(A25,Futtermittel!$A$3:$AR$386,6,0),"") ->  | J25: =IFERROR(VLOOKUP(A25,Futtermittel!$A$3:$AR$386,7,0),"") ->  | K25: =IFERROR(VLOOKUP(A25,Futtermittel!$A$3:$AR$386,8,0),"") ->  | L25: =IFERROR(VLOOKUP(A25,Futtermittel!$A$3:$AR$386,13,0),"") ->  | M25: =IFERROR(VLOOKUP(A25,Futtermittel!$A$3:$AR$386,18,0),"") ->  | N25: =IFERROR(VLOOKUP(A25,Futtermittel!$A$3:$AR$386,9,0),"") ->  | O25: =IFERROR(VLOOKUP(A25,Futtermittel!$A$3:$AR$386,14,0),"") ->  | P25: =IFERROR(VLOOKUP(A25,Futtermittel!$A$3:$AR$386,10,0),"") ->  | Q25: =IFERROR(VLOOKUP(A25,Futtermittel!$A$3:$AR$386,11,0),"") ->  | R25: =IFERROR(VLOOKUP(A25,Futtermittel!$A$3:$AR$386,43,0),0) -> 0 | S25: =IFERROR(VLOOKUP(A25,Futtermittel!$A$3:$AR$386,12,0),"") ->  | T25: =IFERROR(VLOOKUP(A25,Futtermittel!$A$3:$AR$386,17,0),"") ->  | U25: =IFERROR(VLOOKUP(A25,Futtermittel!$A$3:$AR$386,20,0),"") ->  | V25: =IFERROR(VLOOKUP(A25,Futtermittel!$A$3:$AR$386,21,0),"") ->  | W25: =IFERROR(VLOOKUP(A25,Futtermittel!$A$3:$AR$386,23,0),"") ->  | X25: =IFERROR(VLOOKUP(A25,Futtermittel!$A$3:$AR$386,22,0),"") ->  | Y25: =IFERROR(VLOOKUP(A25,Futtermittel!$A$3:$AR$386,24,0),"") ->  | Z25: =IFERROR(VLOOKUP(A25,Futtermittel!$A$3:$AR$386,25,0),"") ->  | AA25: =IFERROR(VLOOKUP(A25,Futtermittel!$A$3:$AR$386,26,0),"") ->  | AB25: =IFERROR(VLOOKUP(A25,Futtermittel!$A$3:$AR$386,27,0),"") ->  | AC25: =IFERROR(VLOOKUP(A25,Futtermittel!$A$3:$AR$386,29,0),"") ->  | AD25: =IFERROR(VLOOKUP(A25,Futtermittel!$A$3:$AR$386,30,0),"") ->  | AE25: =IFERROR(VLOOKUP(A25,Futtermittel!$A$3:$AR$386,31,0),"") ->  | AF25: =IFERROR(VLOOKUP(A25,Futtermittel!$A$3:$AR$386,32,0),"") ->  | AG25: =IFERROR(VLOOKUP(A25,Futtermittel!$A$3:$AR$386,33,0),"") ->  | AH25: =IFERROR(VLOOKUP(A25,Futtermittel!$A$3:$AR$386,34,0),"") ->  | AI25: =IFERROR(VLOOKUP(A25,Futtermittel!$A$3:$AR$386,35,0),"") ->  | AJ25: =IFERROR(VLOOKUP(A25,Futtermittel!$A$3:$AR$386,16,0),"") ->  | AK25: =IFERROR(VLOOKUP(A25,Futtermittel!$A$3:$AR$386,41,0),"") ->  | AL25: =IFERROR(VLOOKUP(A25,Futtermittel!$A$3:$AR$386,42,0),"") ->  | AM25: =IF(D25="GF",4.4,IF(D25="KF",6,IF(D25="SF",6,""))) ->  | AN25: =IFERROR(VLOOKUP(A25,Futtermittel!$A$3:$AR$386,14,0),"") ->  | AO25: =IFERROR(VLOOKUP(A25,Futtermittel!$A$3:$AR$386,37,0),"") ->  | AP25: =IFERROR(VLOOKUP(A25,Futtermittel!$A$3:$AR$386,38,0),"") ->  | AQ25: =IFERROR(VLOOKUP(A25,Futtermittel!$A$3:$AR$386,39,0),"") ->  | AR25: =IFERROR(VLOOKUP(A25,Futtermittel!$A$3:$AR$386,40,0),"") ->  | AS25: =IFERROR(VLOOKUP(A25,Futtermittel!$A$3:$AR$386,16,0),"") ->  | AT25: =IFERROR(VLOOKUP(A25,Futtermittel!$A$3:$AR$386,19,0),"") ->  | AU25: =IFERROR(VLOOKUP(A25,Futtermittel!$A$3:$AR$386,36,0),"") -> 
B26: =IFERROR(VLOOKUP(A26,Futtermittel!$A$3:$AR$386,2,0),"") ->  | C26: =IFERROR(F26/1000,0) -> 0 | D26: =IFERROR(VLOOKUP(A26,Futtermittel!$A$3:$AR$386,28,0),"") ->  | E26: 0 | F26: =IFERROR(VLOOKUP(A26,Futtermittel!$A$3:$AR$386,3,0),"") ->  | G26: =IFERROR(VLOOKUP(A26,Futtermittel!$A$3:$AR$386,4,0),"") ->  | H26: =IFERROR(VLOOKUP(A26,Futtermittel!$A$3:$AR$386,5,0),"") ->  | I26: =IFERROR(VLOOKUP(A26,Futtermittel!$A$3:$AR$386,6,0),"") ->  | J26: =IFERROR(VLOOKUP(A26,Futtermittel!$A$3:$AR$386,7,0),"") ->  | K26: =IFERROR(VLOOKUP(A26,Futtermittel!$A$3:$AR$386,8,0),"") ->  | L26: =IFERROR(VLOOKUP(A26,Futtermittel!$A$3:$AR$386,13,0),"") ->  | M26: =IFERROR(VLOOKUP(A26,Futtermittel!$A$3:$AR$386,18,0),"") ->  | N26: =IFERROR(VLOOKUP(A26,Futtermittel!$A$3:$AR$386,9,0),"") ->  | O26: =IFERROR(VLOOKUP(A26,Futtermittel!$A$3:$AR$386,14,0),"") ->  | P26: =IFERROR(VLOOKUP(A26,Futtermittel!$A$3:$AR$386,10,0),"") ->  | Q26: =IFERROR(VLOOKUP(A26,Futtermittel!$A$3:$AR$386,11,0),"") ->  | R26: =IFERROR(VLOOKUP(A26,Futtermittel!$A$3:$AR$386,43,0),0) -> 0 | S26: =IFERROR(VLOOKUP(A26,Futtermittel!$A$3:$AR$386,12,0),"") ->  | T26: =IFERROR(VLOOKUP(A26,Futtermittel!$A$3:$AR$386,17,0),"") ->  | U26: =IFERROR(VLOOKUP(A26,Futtermittel!$A$3:$AR$386,20,0),"") ->  | V26: =IFERROR(VLOOKUP(A26,Futtermittel!$A$3:$AR$386,21,0),"") ->  | W26: =IFERROR(VLOOKUP(A26,Futtermittel!$A$3:$AR$386,23,0),"") ->  | X26: =IFERROR(VLOOKUP(A26,Futtermittel!$A$3:$AR$386,22,0),"") ->  | Y26: =IFERROR(VLOOKUP(A26,Futtermittel!$A$3:$AR$386,24,0),"") ->  | Z26: =IFERROR(VLOOKUP(A26,Futtermittel!$A$3:$AR$386,25,0),"") ->  | AA26: =IFERROR(VLOOKUP(A26,Futtermittel!$A$3:$AR$386,26,0),"") ->  | AB26: =IFERROR(VLOOKUP(A26,Futtermittel!$A$3:$AR$386,27,0),"") ->  | AC26: =IFERROR(VLOOKUP(A26,Futtermittel!$A$3:$AR$386,29,0),"") ->  | AD26: =IFERROR(VLOOKUP(A26,Futtermittel!$A$3:$AR$386,30,0),"") ->  | AE26: =IFERROR(VLOOKUP(A26,Futtermittel!$A$3:$AR$386,31,0),"") ->  | AF26: =IFERROR(VLOOKUP(A26,Futtermittel!$A$3:$AR$386,32,0),"") ->  | AG26: =IFERROR(VLOOKUP(A26,Futtermittel!$A$3:$AR$386,33,0),"") ->  | AH26: =IFERROR(VLOOKUP(A26,Futtermittel!$A$3:$AR$386,34,0),"") ->  | AI26: =IFERROR(VLOOKUP(A26,Futtermittel!$A$3:$AR$386,35,0),"") ->  | AJ26: =IFERROR(VLOOKUP(A26,Futtermittel!$A$3:$AR$386,16,0),"") ->  | AK26: =IFERROR(VLOOKUP(A26,Futtermittel!$A$3:$AR$386,41,0),"") ->  | AL26: =IFERROR(VLOOKUP(A26,Futtermittel!$A$3:$AR$386,42,0),"") ->  | AN26: =IFERROR(VLOOKUP(A26,Futtermittel!$A$3:$AR$386,14,0),"") ->  | AO26: =IFERROR(VLOOKUP(A26,Futtermittel!$A$3:$AR$386,37,0),"") ->  | AP26: =IFERROR(VLOOKUP(A26,Futtermittel!$A$3:$AR$386,38,0),"") ->  | AQ26: =IFERROR(VLOOKUP(A26,Futtermittel!$A$3:$AR$386,39,0),"") ->  | AR26: =IFERROR(VLOOKUP(A26,Futtermittel!$A$3:$AR$386,40,0),0) -> 0 | AS26: =IFERROR(VLOOKUP(A26,Futtermittel!$A$3:$AR$386,16,0),"") ->  | AT26: =IFERROR(VLOOKUP(A26,Futtermittel!$A$3:$AR$386,19,0),"") ->  | AU26: =IFERROR(VLOOKUP(A26,Futtermittel!$A$3:$AR$386,36,0),"") -> 
B27: =IFERROR(VLOOKUP(A27,Futtermittel!$A$3:$AR$386,2,0),"") ->  | C27: 0 | D27: =IFERROR(VLOOKUP(A27,Futtermittel!$A$3:$AR$386,28,0),"") ->  | E27: 0 | F27: =IFERROR(VLOOKUP(A27,Futtermittel!$A$3:$AR$386,3,0),"") ->  | G27: =IFERROR(VLOOKUP(A27,Futtermittel!$A$3:$AR$386,4,0),"") ->  | H27: =IFERROR(VLOOKUP(A27,Futtermittel!$A$3:$AR$386,5,0),"") ->  | I27: =IFERROR(VLOOKUP(A27,Futtermittel!$A$3:$AR$386,6,0),"") ->  | J27: =IFERROR(VLOOKUP(A27,Futtermittel!$A$3:$AR$386,7,0),"") ->  | K27: =IFERROR(VLOOKUP(A27,Futtermittel!$A$3:$AR$386,8,0),"") ->  | L27: =IFERROR(VLOOKUP(A27,Futtermittel!$A$3:$AR$386,13,0),"") ->  | M27: =IFERROR(VLOOKUP(A27,Futtermittel!$A$3:$AR$386,18,0),"") ->  | N27: =IFERROR(VLOOKUP(A27,Futtermittel!$A$3:$AR$386,9,0),"") ->  | O27: =IFERROR(VLOOKUP(A27,Futtermittel!$A$3:$AR$386,14,0),"") ->  | P27: =IFERROR(VLOOKUP(A27,Futtermittel!$A$3:$AR$386,10,0),"") ->  | Q27: =IFERROR(VLOOKUP(A27,Futtermittel!$A$3:$AR$386,11,0),"") ->  | R27: =IFERROR(VLOOKUP(A27,Futtermittel!$A$3:$AR$386,43,0),0) -> 0 | S27: =IFERROR(VLOOKUP(A27,Futtermittel!$A$3:$AR$386,12,0),"") ->  | T27: =IFERROR(VLOOKUP(A27,Futtermittel!$A$3:$AR$386,17,0),"") ->  | U27: =IFERROR(VLOOKUP(A27,Futtermittel!$A$3:$AR$386,20,0),"") ->  | V27: =IFERROR(VLOOKUP(A27,Futtermittel!$A$3:$AR$386,21,0),"") ->  | W27: =IFERROR(VLOOKUP(A27,Futtermittel!$A$3:$AR$386,23,0),"") ->  | X27: =IFERROR(VLOOKUP(A27,Futtermittel!$A$3:$AR$386,22,0),"") ->  | Y27: =IFERROR(VLOOKUP(A27,Futtermittel!$A$3:$AR$386,24,0),"") ->  | Z27: =IFERROR(VLOOKUP(A27,Futtermittel!$A$3:$AR$386,25,0),"") ->  | AA27: =IFERROR(VLOOKUP(A27,Futtermittel!$A$3:$AR$386,26,0),"") ->  | AB27: =IFERROR(VLOOKUP(A27,Futtermittel!$A$3:$AR$386,27,0),"") ->  | AC27: =IFERROR(VLOOKUP(A27,Futtermittel!$A$3:$AR$386,29,0),"") ->  | AD27: =IFERROR(VLOOKUP(A27,Futtermittel!$A$3:$AR$386,30,0),"") ->  | AE27: =IFERROR(VLOOKUP(A27,Futtermittel!$A$3:$AR$386,31,0),"") ->  | AF27: =IFERROR(VLOOKUP(A27,Futtermittel!$A$3:$AR$386,32,0),"") ->  | AG27: =IFERROR(VLOOKUP(A27,Futtermittel!$A$3:$AR$386,33,0),"") ->  | AH27: =IFERROR(VLOOKUP(A27,Futtermittel!$A$3:$AR$386,34,0),"") ->  | AI27: =IFERROR(VLOOKUP(A27,Futtermittel!$A$3:$AR$386,35,0),"") ->  | AJ27: =IFERROR(VLOOKUP(A27,Futtermittel!$A$3:$AR$386,16,0),"") ->  | AK27: =IFERROR(VLOOKUP(A27,Futtermittel!$A$3:$AR$386,41,0),"") ->  | AL27: =IFERROR(VLOOKUP(A27,Futtermittel!$A$3:$AR$386,42,0),"") ->  | AN27: =IFERROR(VLOOKUP(A27,Futtermittel!$A$3:$AR$386,14,0),"") ->  | AO27: =IFERROR(VLOOKUP(A27,Futtermittel!$A$3:$AR$386,37,0),"") ->  | AP27: =IFERROR(VLOOKUP(A27,Futtermittel!$A$3:$AR$386,38,0),"") ->  | AQ27: =IFERROR(VLOOKUP(A27,Futtermittel!$A$3:$AR$386,39,0),"") ->  | AR27: =IFERROR(VLOOKUP(A27,Futtermittel!$A$3:$AR$386,40,0),0) -> 0 | AS27: =IFERROR(VLOOKUP(A27,Futtermittel!$A$3:$AR$386,16,0),"") ->  | AT27: =IFERROR(VLOOKUP(A27,Futtermittel!$A$3:$AR$386,19,0),"") ->  | AU27: =IFERROR(VLOOKUP(A27,Futtermittel!$A$3:$AR$386,36,0),"") -> 
B28: =IFERROR(VLOOKUP(A28,Futtermittel!$A$3:$AR$386,2,0),"") ->  | C28: 0 | D28: =IFERROR(VLOOKUP(A28,Futtermittel!$A$3:$AR$386,28,0),"") ->  | E28: 0 | F28: =IFERROR(VLOOKUP(A28,Futtermittel!$A$3:$AR$386,3,0),"") ->  | G28: =IFERROR(VLOOKUP(A28,Futtermittel!$A$3:$AR$386,4,0),"") ->  | H28: =IFERROR(VLOOKUP(A28,Futtermittel!$A$3:$AR$386,5,0),"") ->  | I28: =IFERROR(VLOOKUP(A28,Futtermittel!$A$3:$AR$386,6,0),"") ->  | J28: =IFERROR(VLOOKUP(A28,Futtermittel!$A$3:$AR$386,7,0),"") ->  | K28: =IFERROR(VLOOKUP(A28,Futtermittel!$A$3:$AR$386,8,0),"") ->  | L28: =IFERROR(VLOOKUP(A28,Futtermittel!$A$3:$AR$386,13,0),"") ->  | M28: =IFERROR(VLOOKUP(A28,Futtermittel!$A$3:$AR$386,18,0),"") ->  | N28: =IFERROR(VLOOKUP(A28,Futtermittel!$A$3:$AR$386,9,0),"") ->  | O28: =IFERROR(VLOOKUP(A28,Futtermittel!$A$3:$AR$386,14,0),"") ->  | P28: =IFERROR(VLOOKUP(A28,Futtermittel!$A$3:$AR$386,10,0),"") ->  | Q28: =IFERROR(VLOOKUP(A28,Futtermittel!$A$3:$AR$386,11,0),"") ->  | R28: =IFERROR(VLOOKUP(A28,Futtermittel!$A$3:$AR$386,43,0),0) -> 0 | S28: =IFERROR(VLOOKUP(A28,Futtermittel!$A$3:$AR$386,12,0),"") ->  | T28: =IFERROR(VLOOKUP(A28,Futtermittel!$A$3:$AR$386,17,0),"") ->  | U28: =IFERROR(VLOOKUP(A28,Futtermittel!$A$3:$AR$386,20,0),"") ->  | V28: =IFERROR(VLOOKUP(A28,Futtermittel!$A$3:$AR$386,21,0),"") ->  | W28: =IFERROR(VLOOKUP(A28,Futtermittel!$A$3:$AR$386,23,0),"") ->  | X28: =IFERROR(VLOOKUP(A28,Futtermittel!$A$3:$AR$386,22,0),"") ->  | Y28: =IFERROR(VLOOKUP(A28,Futtermittel!$A$3:$AR$386,24,0),"") ->  | Z28: =IFERROR(VLOOKUP(A28,Futtermittel!$A$3:$AR$386,25,0),"") ->  | AA28: =IFERROR(VLOOKUP(A28,Futtermittel!$A$3:$AR$386,26,0),"") ->  | AB28: =IFERROR(VLOOKUP(A28,Futtermittel!$A$3:$AR$386,27,0),"") ->  | AC28: =IFERROR(VLOOKUP(A28,Futtermittel!$A$3:$AR$386,29,0),"") ->  | AD28: =IFERROR(VLOOKUP(A28,Futtermittel!$A$3:$AR$386,30,0),"") ->  | AE28: =IFERROR(VLOOKUP(A28,Futtermittel!$A$3:$AR$386,31,0),"") ->  | AF28: =IFERROR(VLOOKUP(A28,Futtermittel!$A$3:$AR$386,32,0),"") ->  | AG28: =IFERROR(VLOOKUP(A28,Futtermittel!$A$3:$AR$386,33,0),"") ->  | AH28: =IFERROR(VLOOKUP(A28,Futtermittel!$A$3:$AR$386,34,0),"") ->  | AI28: =IFERROR(VLOOKUP(A28,Futtermittel!$A$3:$AR$386,35,0),"") ->  | AJ28: =IFERROR(VLOOKUP(A28,Futtermittel!$A$3:$AR$386,16,0),"") ->  | AK28: =IFERROR(VLOOKUP(A28,Futtermittel!$A$3:$AR$386,41,0),"") ->  | AL28: =IFERROR(VLOOKUP(A28,Futtermittel!$A$3:$AR$386,42,0),"") ->  | AN28: =IFERROR(VLOOKUP(A28,Futtermittel!$A$3:$AR$386,14,0),"") ->  | AO28: =IFERROR(VLOOKUP(A28,Futtermittel!$A$3:$AR$386,37,0),"") ->  | AP28: =IFERROR(VLOOKUP(A28,Futtermittel!$A$3:$AR$386,38,0),"") ->  | AQ28: =IFERROR(VLOOKUP(A28,Futtermittel!$A$3:$AR$386,39,0),"") ->  | AR28: =IFERROR(VLOOKUP(A28,Futtermittel!$A$3:$AR$386,40,0),0) -> 0 | AS28: =IFERROR(VLOOKUP(A28,Futtermittel!$A$3:$AR$386,16,0),"") ->  | AT28: =IFERROR(VLOOKUP(A28,Futtermittel!$A$3:$AR$386,19,0),"") ->  | AU28: =IFERROR(VLOOKUP(A28,Futtermittel!$A$3:$AR$386,36,0),"") -> 
B29: =IFERROR(VLOOKUP(A29,Futtermittel!$A$3:$AR$386,2,0),"") ->  | C29: 0 | D29: =IFERROR(VLOOKUP(A29,Futtermittel!$A$3:$AR$386,28,0),"") ->  | E29: 0 | F29: =IFERROR(VLOOKUP(A29,Futtermittel!$A$3:$AR$386,3,0),"") ->  | G29: =IFERROR(VLOOKUP(A29,Futtermittel!$A$3:$AR$386,4,0),"") ->  | H29: =IFERROR(VLOOKUP(A29,Futtermittel!$A$3:$AR$386,5,0),"") ->  | I29: =IFERROR(VLOOKUP(A29,Futtermittel!$A$3:$AR$386,6,0),"") ->  | J29: =IFERROR(VLOOKUP(A29,Futtermittel!$A$3:$AR$386,7,0),"") ->  | K29: =IFERROR(VLOOKUP(A29,Futtermittel!$A$3:$AR$386,8,0),"") ->  | L29: =IFERROR(VLOOKUP(A29,Futtermittel!$A$3:$AR$386,13,0),"") ->  | M29: =IFERROR(VLOOKUP(A29,Futtermittel!$A$3:$AR$386,18,0),"") ->  | N29: =IFERROR(VLOOKUP(A29,Futtermittel!$A$3:$AR$386,9,0),"") ->  | O29: =IFERROR(VLOOKUP(A29,Futtermittel!$A$3:$AR$386,14,0),"") ->  | P29: =IFERROR(VLOOKUP(A29,Futtermittel!$A$3:$AR$386,10,0),"") ->  | Q29: =IFERROR(VLOOKUP(A29,Futtermittel!$A$3:$AR$386,11,0),"") ->  | R29: =IFERROR(VLOOKUP(A29,Futtermittel!$A$3:$AR$386,43,0),0) -> 0 | S29: =IFERROR(VLOOKUP(A29,Futtermittel!$A$3:$AR$386,12,0),"") ->  | T29: =IFERROR(VLOOKUP(A29,Futtermittel!$A$3:$AR$386,17,0),"") ->  | U29: =IFERROR(VLOOKUP(A29,Futtermittel!$A$3:$AR$386,20,0),"") ->  | V29: =IFERROR(VLOOKUP(A29,Futtermittel!$A$3:$AR$386,21,0),"") ->  | W29: =IFERROR(VLOOKUP(A29,Futtermittel!$A$3:$AR$386,23,0),"") ->  | X29: =IFERROR(VLOOKUP(A29,Futtermittel!$A$3:$AR$386,22,0),"") ->  | Y29: =IFERROR(VLOOKUP(A29,Futtermittel!$A$3:$AR$386,24,0),"") ->  | Z29: =IFERROR(VLOOKUP(A29,Futtermittel!$A$3:$AR$386,25,0),"") ->  | AA29: =IFERROR(VLOOKUP(A29,Futtermittel!$A$3:$AR$386,26,0),"") ->  | AB29: =IFERROR(VLOOKUP(A29,Futtermittel!$A$3:$AR$386,27,0),"") ->  | AC29: =IFERROR(VLOOKUP(A29,Futtermittel!$A$3:$AR$386,29,0),"") ->  | AD29: =IFERROR(VLOOKUP(A29,Futtermittel!$A$3:$AR$386,30,0),"") ->  | AE29: =IFERROR(VLOOKUP(A29,Futtermittel!$A$3:$AR$386,31,0),"") ->  | AF29: =IFERROR(VLOOKUP(A29,Futtermittel!$A$3:$AR$386,32,0),"") ->  | AG29: =IFERROR(VLOOKUP(A29,Futtermittel!$A$3:$AR$386,33,0),"") ->  | AH29: =IFERROR(VLOOKUP(A29,Futtermittel!$A$3:$AR$386,34,0),"") ->  | AI29: =IFERROR(VLOOKUP(A29,Futtermittel!$A$3:$AR$386,35,0),"") ->  | AJ29: =IFERROR(VLOOKUP(A29,Futtermittel!$A$3:$AR$386,16,0),"") ->  | AK29: =IFERROR(VLOOKUP(A29,Futtermittel!$A$3:$AR$386,41,0),"") ->  | AL29: =IFERROR(VLOOKUP(A29,Futtermittel!$A$3:$AR$386,42,0),"") ->  | AN29: =IFERROR(VLOOKUP(A29,Futtermittel!$A$3:$AR$386,14,0),"") ->  | AO29: =IFERROR(VLOOKUP(A29,Futtermittel!$A$3:$AR$386,37,0),"") ->  | AP29: =IFERROR(VLOOKUP(A29,Futtermittel!$A$3:$AR$386,38,0),"") ->  | AQ29: =IFERROR(VLOOKUP(A29,Futtermittel!$A$3:$AR$386,39,0),"") ->  | AR29: =IFERROR(VLOOKUP(A29,Futtermittel!$A$3:$AR$386,40,0),0) -> 0 | AS29: =IFERROR(VLOOKUP(A29,Futtermittel!$A$3:$AR$386,16,0),"") ->  | AT29: =IFERROR(VLOOKUP(A29,Futtermittel!$A$3:$AR$386,19,0),"") ->  | AU29: =IFERROR(VLOOKUP(A29,Futtermittel!$A$3:$AR$386,36,0),"") -> 
B30: =IFERROR(VLOOKUP(A30,Futtermittel!$A$3:$AR$386,2,0),"") ->  | C30: 0 | D30: =IFERROR(VLOOKUP(A30,Futtermittel!$A$3:$AR$386,28,0),"") ->  | E30: 0 | F30: =IFERROR(VLOOKUP(A30,Futtermittel!$A$3:$AR$386,3,0),"") ->  | G30: =IFERROR(VLOOKUP(A30,Futtermittel!$A$3:$AR$386,4,0),"") ->  | H30: =IFERROR(VLOOKUP(A30,Futtermittel!$A$3:$AR$386,5,0),"") ->  | I30: =IFERROR(VLOOKUP(A30,Futtermittel!$A$3:$AR$386,6,0),"") ->  | J30: =IFERROR(VLOOKUP(A30,Futtermittel!$A$3:$AR$386,7,0),"") ->  | K30: =IFERROR(VLOOKUP(A30,Futtermittel!$A$3:$AR$386,8,0),"") ->  | L30: =IFERROR(VLOOKUP(A30,Futtermittel!$A$3:$AR$386,13,0),"") ->  | M30: =IFERROR(VLOOKUP(A30,Futtermittel!$A$3:$AR$386,18,0),"") ->  | N30: =IFERROR(VLOOKUP(A30,Futtermittel!$A$3:$AR$386,9,0),"") ->  | O30: =IFERROR(VLOOKUP(A30,Futtermittel!$A$3:$AR$386,14,0),"") ->  | P30: =IFERROR(VLOOKUP(A30,Futtermittel!$A$3:$AR$386,10,0),"") ->  | Q30: =IFERROR(VLOOKUP(A30,Futtermittel!$A$3:$AR$386,11,0),"") ->  | R30: =IFERROR(VLOOKUP(A30,Futtermittel!$A$3:$AR$386,43,0),0) -> 0 | S30: =IFERROR(VLOOKUP(A30,Futtermittel!$A$3:$AR$386,12,0),"") ->  | T30: =IFERROR(VLOOKUP(A30,Futtermittel!$A$3:$AR$386,17,0),"") ->  | U30: =IFERROR(VLOOKUP(A30,Futtermittel!$A$3:$AR$386,20,0),"") ->  | V30: =IFERROR(VLOOKUP(A30,Futtermittel!$A$3:$AR$386,21,0),"") ->  | W30: =IFERROR(VLOOKUP(A30,Futtermittel!$A$3:$AR$386,23,0),"") ->  | X30: =IFERROR(VLOOKUP(A30,Futtermittel!$A$3:$AR$386,22,0),"") ->  | Y30: =IFERROR(VLOOKUP(A30,Futtermittel!$A$3:$AR$386,24,0),"") ->  | Z30: =IFERROR(VLOOKUP(A30,Futtermittel!$A$3:$AR$386,25,0),"") ->  | AA30: =IFERROR(VLOOKUP(A30,Futtermittel!$A$3:$AR$386,26,0),"") ->  | AB30: =IFERROR(VLOOKUP(A30,Futtermittel!$A$3:$AR$386,27,0),"") ->  | AC30: =IFERROR(VLOOKUP(A30,Futtermittel!$A$3:$AR$386,29,0),"") ->  | AD30: =IFERROR(VLOOKUP(A30,Futtermittel!$A$3:$AR$386,30,0),"") ->  | AE30: =IFERROR(VLOOKUP(A30,Futtermittel!$A$3:$AR$386,31,0),"") ->  | AF30: =IFERROR(VLOOKUP(A30,Futtermittel!$A$3:$AR$386,32,0),"") ->  | AG30: =IFERROR(VLOOKUP(A30,Futtermittel!$A$3:$AR$386,33,0),"") ->  | AH30: =IFERROR(VLOOKUP(A30,Futtermittel!$A$3:$AR$386,34,0),"") ->  | AI30: =IFERROR(VLOOKUP(A30,Futtermittel!$A$3:$AR$386,35,0),"") ->  | AJ30: =IFERROR(VLOOKUP(A30,Futtermittel!$A$3:$AR$386,16,0),"") ->  | AK30: =IFERROR(VLOOKUP(A30,Futtermittel!$A$3:$AR$386,41,0),"") ->  | AL30: =IFERROR(VLOOKUP(A30,Futtermittel!$A$3:$AR$386,42,0),"") ->  | AN30: =IFERROR(VLOOKUP(A30,Futtermittel!$A$3:$AR$386,14,0),"") ->  | AO30: =IFERROR(VLOOKUP(A30,Futtermittel!$A$3:$AR$386,37,0),"") ->  | AP30: =IFERROR(VLOOKUP(A30,Futtermittel!$A$3:$AR$386,38,0),"") ->  | AQ30: =IFERROR(VLOOKUP(A30,Futtermittel!$A$3:$AR$386,39,0),"") ->  | AR30: =IFERROR(VLOOKUP(A30,Futtermittel!$A$3:$AR$386,40,0),0) -> 0 | AS30: =IFERROR(VLOOKUP(A30,Futtermittel!$A$3:$AR$386,16,0),"") ->  | AT30: =IFERROR(VLOOKUP(A30,Futtermittel!$A$3:$AR$386,19,0),"") ->  | AU30: =IFERROR(VLOOKUP(A30,Futtermittel!$A$3:$AR$386,36,0),"") -> 
B31: =IFERROR(VLOOKUP(A31,Futtermittel!$A$3:$AR$386,2,0),"") ->  | C31: 0 | D31: =IFERROR(VLOOKUP(A31,Futtermittel!$A$3:$AR$386,28,0),"") ->  | E31: 0 | F31: =IFERROR(VLOOKUP(A31,Futtermittel!$A$3:$AR$386,3,0),"") ->  | G31: =IFERROR(VLOOKUP(A31,Futtermittel!$A$3:$AR$386,4,0),"") ->  | H31: =IFERROR(VLOOKUP(A31,Futtermittel!$A$3:$AR$386,5,0),"") ->  | I31: =IFERROR(VLOOKUP(A31,Futtermittel!$A$3:$AR$386,6,0),"") ->  | J31: =IFERROR(VLOOKUP(A31,Futtermittel!$A$3:$AR$386,7,0),"") ->  | K31: =IFERROR(VLOOKUP(A31,Futtermittel!$A$3:$AR$386,8,0),"") ->  | L31: =IFERROR(VLOOKUP(A31,Futtermittel!$A$3:$AR$386,13,0),"") ->  | M31: =IFERROR(VLOOKUP(A31,Futtermittel!$A$3:$AR$386,18,0),"") ->  | N31: =IFERROR(VLOOKUP(A31,Futtermittel!$A$3:$AR$386,9,0),"") ->  | O31: =IFERROR(VLOOKUP(A31,Futtermittel!$A$3:$AR$386,14,0),"") ->  | P31: =IFERROR(VLOOKUP(A31,Futtermittel!$A$3:$AR$386,10,0),"") ->  | Q31: =IFERROR(VLOOKUP(A31,Futtermittel!$A$3:$AR$386,11,0),"") ->  | R31: =IFERROR(VLOOKUP(A31,Futtermittel!$A$3:$AR$386,43,0),0) -> 0 | S31: =IFERROR(VLOOKUP(A31,Futtermittel!$A$3:$AR$386,12,0),"") ->  | T31: =IFERROR(VLOOKUP(A31,Futtermittel!$A$3:$AR$386,17,0),"") ->  | U31: =IFERROR(VLOOKUP(A31,Futtermittel!$A$3:$AR$386,20,0),"") ->  | V31: =IFERROR(VLOOKUP(A31,Futtermittel!$A$3:$AR$386,21,0),"") ->  | W31: =IFERROR(VLOOKUP(A31,Futtermittel!$A$3:$AR$386,23,0),"") ->  | X31: =IFERROR(VLOOKUP(A31,Futtermittel!$A$3:$AR$386,22,0),"") ->  | Y31: =IFERROR(VLOOKUP(A31,Futtermittel!$A$3:$AR$386,24,0),"") ->  | Z31: =IFERROR(VLOOKUP(A31,Futtermittel!$A$3:$AR$386,25,0),"") ->  | AA31: =IFERROR(VLOOKUP(A31,Futtermittel!$A$3:$AR$386,26,0),"") ->  | AB31: =IFERROR(VLOOKUP(A31,Futtermittel!$A$3:$AR$386,27,0),"") ->  | AC31: =IFERROR(VLOOKUP(A31,Futtermittel!$A$3:$AR$386,29,0),"") ->  | AD31: =IFERROR(VLOOKUP(A31,Futtermittel!$A$3:$AR$386,30,0),"") ->  | AE31: =IFERROR(VLOOKUP(A31,Futtermittel!$A$3:$AR$386,31,0),"") ->  | AF31: =IFERROR(VLOOKUP(A31,Futtermittel!$A$3:$AR$386,32,0),"") ->  | AG31: =IFERROR(VLOOKUP(A31,Futtermittel!$A$3:$AR$386,33,0),"") ->  | AH31: =IFERROR(VLOOKUP(A31,Futtermittel!$A$3:$AR$386,34,0),"") ->  | AI31: =IFERROR(VLOOKUP(A31,Futtermittel!$A$3:$AR$386,35,0),"") ->  | AJ31: =IFERROR(VLOOKUP(A31,Futtermittel!$A$3:$AR$386,16,0),"") ->  | AK31: =IFERROR(VLOOKUP(A31,Futtermittel!$A$3:$AR$386,41,0),"") ->  | AL31: =IFERROR(VLOOKUP(A31,Futtermittel!$A$3:$AR$386,42,0),"") ->  | AN31: =IFERROR(VLOOKUP(A31,Futtermittel!$A$3:$AR$386,14,0),"") ->  | AO31: =IFERROR(VLOOKUP(A31,Futtermittel!$A$3:$AR$386,37,0),"") ->  | AP31: =IFERROR(VLOOKUP(A31,Futtermittel!$A$3:$AR$386,38,0),"") ->  | AQ31: =IFERROR(VLOOKUP(A31,Futtermittel!$A$3:$AR$386,39,0),"") ->  | AR31: =IFERROR(VLOOKUP(A31,Futtermittel!$A$3:$AR$386,40,0),0) -> 0 | AS31: =IFERROR(VLOOKUP(A31,Futtermittel!$A$3:$AR$386,16,0),"") ->  | AU31: =IFERROR(VLOOKUP(A31,Futtermittel!$A$3:$AR$386,36,0),"") -> 
B32: =IFERROR(VLOOKUP(A32,Futtermittel!$A$3:$AR$386,2,0),"") ->  | C32: 0 | D32: =IFERROR(VLOOKUP(A32,Futtermittel!$A$3:$AR$386,28,0),"") ->  | E32: 0 | F32: =IFERROR(VLOOKUP(A32,Futtermittel!$A$3:$AR$386,3,0),"") ->  | G32: =IFERROR(VLOOKUP(A32,Futtermittel!$A$3:$AR$386,4,0),"") ->  | H32: =IFERROR(VLOOKUP(A32,Futtermittel!$A$3:$AR$386,5,0),"") ->  | I32: =IFERROR(VLOOKUP(A32,Futtermittel!$A$3:$AR$386,6,0),"") ->  | J32: =IFERROR(VLOOKUP(A32,Futtermittel!$A$3:$AR$386,7,0),"") ->  | K32: =IFERROR(VLOOKUP(A32,Futtermittel!$A$3:$AR$386,8,0),"") ->  | L32: =IFERROR(VLOOKUP(A32,Futtermittel!$A$3:$AR$386,13,0),"") ->  | M32: =IFERROR(VLOOKUP(A32,Futtermittel!$A$3:$AR$386,18,0),"") ->  | N32: =IFERROR(VLOOKUP(A32,Futtermittel!$A$3:$AR$386,9,0),"") ->  | O32: =IFERROR(VLOOKUP(A32,Futtermittel!$A$3:$AR$386,14,0),"") ->  | P32: =IFERROR(VLOOKUP(A32,Futtermittel!$A$3:$AR$386,10,0),"") ->  | Q32: =IFERROR(VLOOKUP(A32,Futtermittel!$A$3:$AR$386,11,0),"") ->  | R32: =IFERROR(VLOOKUP(A32,Futtermittel!$A$3:$AR$386,43,0),0) -> 0 | S32: =IFERROR(VLOOKUP(A32,Futtermittel!$A$3:$AR$386,12,0),"") ->  | T32: =IFERROR(VLOOKUP(A32,Futtermittel!$A$3:$AR$386,17,0),"") ->  | U32: =IFERROR(VLOOKUP(A32,Futtermittel!$A$3:$AR$386,20,0),"") ->  | V32: =IFERROR(VLOOKUP(A32,Futtermittel!$A$3:$AR$386,21,0),"") ->  | W32: =IFERROR(VLOOKUP(A32,Futtermittel!$A$3:$AR$386,23,0),"") ->  | X32: =IFERROR(VLOOKUP(A32,Futtermittel!$A$3:$AR$386,22,0),"") ->  | Y32: =IFERROR(VLOOKUP(A32,Futtermittel!$A$3:$AR$386,24,0),"") ->  | Z32: =IFERROR(VLOOKUP(A32,Futtermittel!$A$3:$AR$386,25,0),"") ->  | AA32: =IFERROR(VLOOKUP(A32,Futtermittel!$A$3:$AR$386,26,0),"") ->  | AB32: =IFERROR(VLOOKUP(A32,Futtermittel!$A$3:$AR$386,27,0),"") ->  | AC32: =IFERROR(VLOOKUP(A32,Futtermittel!$A$3:$AR$386,29,0),"") ->  | AD32: =IFERROR(VLOOKUP(A32,Futtermittel!$A$3:$AR$386,30,0),"") ->  | AE32: =IFERROR(VLOOKUP(A32,Futtermittel!$A$3:$AR$386,31,0),"") ->  | AF32: =IFERROR(VLOOKUP(A32,Futtermittel!$A$3:$AR$386,32,0),"") ->  | AG32: =IFERROR(VLOOKUP(A32,Futtermittel!$A$3:$AR$386,33,0),"") ->  | AH32: =IFERROR(VLOOKUP(A32,Futtermittel!$A$3:$AR$386,34,0),"") ->  | AI32: =IFERROR(VLOOKUP(A32,Futtermittel!$A$3:$AR$386,35,0),"") ->  | AJ32: =IFERROR(VLOOKUP(A32,Futtermittel!$A$3:$AR$386,16,0),"") ->  | AK32: =IFERROR(VLOOKUP(A32,Futtermittel!$A$3:$AR$386,41,0),"") ->  | AL32: =IFERROR(VLOOKUP(A32,Futtermittel!$A$3:$AR$386,42,0),"") ->  | AN32: =IFERROR(VLOOKUP(A32,Futtermittel!$A$3:$AR$386,14,0),"") ->  | AO32: =IFERROR(VLOOKUP(A32,Futtermittel!$A$3:$AR$386,37,0),"") ->  | AP32: =IFERROR(VLOOKUP(A32,Futtermittel!$A$3:$AR$386,38,0),"") ->  | AQ32: =IFERROR(VLOOKUP(A32,Futtermittel!$A$3:$AR$386,39,0),"") ->  | AR32: =IFERROR(VLOOKUP(A32,Futtermittel!$A$3:$AR$386,40,0),0) -> 0 | AS32: =IFERROR(VLOOKUP(A32,Futtermittel!$A$3:$AR$386,16,0),"") ->  | AT32: =IFERROR(VLOOKUP(A32,Futtermittel!$A$3:$AR$386,19,0),"") ->  | AU32: =IFERROR(VLOOKUP(A32,Futtermittel!$A$3:$AR$386,36,0),"") -> 
B33: =IFERROR(VLOOKUP(A33,Futtermittel!$A$3:$AR$386,2,0),"") ->  | C33: 0 | D33: =IFERROR(VLOOKUP(A33,Futtermittel!$A$3:$AR$386,28,0),"") ->  | E33: 0 | F33: =IFERROR(VLOOKUP(A33,Futtermittel!$A$3:$AR$386,3,0),"") ->  | G33: =IFERROR(VLOOKUP(A33,Futtermittel!$A$3:$AR$386,4,0),"") ->  | H33: =IFERROR(VLOOKUP(A33,Futtermittel!$A$3:$AR$386,5,0),"") ->  | I33: =IFERROR(VLOOKUP(A33,Futtermittel!$A$3:$AR$386,6,0),"") ->  | J33: =IFERROR(VLOOKUP(A33,Futtermittel!$A$3:$AR$386,7,0),"") ->  | K33: =IFERROR(VLOOKUP(A33,Futtermittel!$A$3:$AR$386,8,0),"") ->  | L33: =IFERROR(VLOOKUP(A33,Futtermittel!$A$3:$AR$386,13,0),"") ->  | M33: =IFERROR(VLOOKUP(A33,Futtermittel!$A$3:$AR$386,18,0),"") ->  | N33: =IFERROR(VLOOKUP(A33,Futtermittel!$A$3:$AR$386,9,0),"") ->  | O33: =IFERROR(VLOOKUP(A33,Futtermittel!$A$3:$AR$386,14,0),"") ->  | P33: =IFERROR(VLOOKUP(A33,Futtermittel!$A$3:$AR$386,10,0),"") ->  | Q33: =IFERROR(VLOOKUP(A33,Futtermittel!$A$3:$AR$386,11,0),"") ->  | R33: =IFERROR(VLOOKUP(A33,Futtermittel!$A$3:$AR$386,43,0),0) -> 0 | S33: =IFERROR(VLOOKUP(A33,Futtermittel!$A$3:$AR$386,12,0),"") ->  | T33: =IFERROR(VLOOKUP(A33,Futtermittel!$A$3:$AR$386,17,0),"") ->  | U33: =IFERROR(VLOOKUP(A33,Futtermittel!$A$3:$AR$386,20,0),"") ->  | V33: =IFERROR(VLOOKUP(A33,Futtermittel!$A$3:$AR$386,21,0),"") ->  | W33: =IFERROR(VLOOKUP(A33,Futtermittel!$A$3:$AR$386,23,0),"") ->  | X33: =IFERROR(VLOOKUP(A33,Futtermittel!$A$3:$AR$386,22,0),"") ->  | Y33: =IFERROR(VLOOKUP(A33,Futtermittel!$A$3:$AR$386,24,0),"") ->  | Z33: =IFERROR(VLOOKUP(A33,Futtermittel!$A$3:$AR$386,25,0),"") ->  | AA33: =IFERROR(VLOOKUP(A33,Futtermittel!$A$3:$AR$386,26,0),"") ->  | AB33: =IFERROR(VLOOKUP(A33,Futtermittel!$A$3:$AR$386,27,0),"") ->  | AC33: =IFERROR(VLOOKUP(A33,Futtermittel!$A$3:$AR$386,29,0),"") ->  | AD33: =IFERROR(VLOOKUP(A33,Futtermittel!$A$3:$AR$386,30,0),"") ->  | AE33: =IFERROR(VLOOKUP(A33,Futtermittel!$A$3:$AR$386,31,0),"") ->  | AF33: =IFERROR(VLOOKUP(A33,Futtermittel!$A$3:$AR$386,32,0),"") ->  | AG33: =IFERROR(VLOOKUP(A33,Futtermittel!$A$3:$AR$386,33,0),"") ->  | AH33: =IFERROR(VLOOKUP(A33,Futtermittel!$A$3:$AR$386,34,0),"") ->  | AI33: =IFERROR(VLOOKUP(A33,Futtermittel!$A$3:$AR$386,35,0),"") ->  | AJ33: =IFERROR(VLOOKUP(A33,Futtermittel!$A$3:$AR$386,16,0),"") ->  | AK33: =IFERROR(VLOOKUP(A33,Futtermittel!$A$3:$AR$386,41,0),"") ->  | AL33: =IFERROR(VLOOKUP(A33,Futtermittel!$A$3:$AR$386,42,0),"") ->  | AN33: =IFERROR(VLOOKUP(A33,Futtermittel!$A$3:$AR$386,14,0),"") ->  | AO33: =IFERROR(VLOOKUP(A33,Futtermittel!$A$3:$AR$386,37,0),"") ->  | AP33: =IFERROR(VLOOKUP(A33,Futtermittel!$A$3:$AR$386,38,0),"") ->  | AQ33: =IFERROR(VLOOKUP(A33,Futtermittel!$A$3:$AR$386,39,0),"") ->  | AR33: =IFERROR(VLOOKUP(A33,Futtermittel!$A$3:$AR$386,40,0),0) -> 0 | AS33: =IFERROR(VLOOKUP(A33,Futtermittel!$A$3:$AR$386,16,0),"") ->  | AT33: =IFERROR(VLOOKUP(A33,Futtermittel!$A$3:$AR$386,19,0),"") ->  | AU33: =IFERROR(VLOOKUP(A33,Futtermittel!$A$3:$AR$386,36,0),"") -> 
B34: =IFERROR(VLOOKUP(A34,Futtermittel!$A$3:$AR$386,2,0),"") ->  | C34: 0 | D34: =IFERROR(VLOOKUP(A34,Futtermittel!$A$3:$AR$386,28,0),"") ->  | E34: 0 | F34: =IFERROR(VLOOKUP(A34,Futtermittel!$A$3:$AR$386,3,0),"") ->  | G34: =IFERROR(VLOOKUP(A34,Futtermittel!$A$3:$AR$386,4,0),"") ->  | H34: =IFERROR(VLOOKUP(A34,Futtermittel!$A$3:$AR$386,5,0),"") ->  | I34: =IFERROR(VLOOKUP(A34,Futtermittel!$A$3:$AR$386,6,0),"") ->  | J34: =IFERROR(VLOOKUP(A34,Futtermittel!$A$3:$AR$386,7,0),"") ->  | K34: =IFERROR(VLOOKUP(A34,Futtermittel!$A$3:$AR$386,8,0),"") ->  | L34: =IFERROR(VLOOKUP(A34,Futtermittel!$A$3:$AR$386,13,0),"") ->  | M34: =IFERROR(VLOOKUP(A34,Futtermittel!$A$3:$AR$386,18,0),"") ->  | N34: =IFERROR(VLOOKUP(A34,Futtermittel!$A$3:$AR$386,9,0),"") ->  | O34: =IFERROR(VLOOKUP(A34,Futtermittel!$A$3:$AR$386,14,0),"") ->  | P34: =IFERROR(VLOOKUP(A34,Futtermittel!$A$3:$AR$386,10,0),"") ->  | Q34: =IFERROR(VLOOKUP(A34,Futtermittel!$A$3:$AR$386,11,0),"") ->  | R34: =IFERROR(VLOOKUP(A34,Futtermittel!$A$3:$AR$386,43,0),0) -> 0 | S34: =IFERROR(VLOOKUP(A34,Futtermittel!$A$3:$AR$386,12,0),"") ->  | T34: =IFERROR(VLOOKUP(A34,Futtermittel!$A$3:$AR$386,17,0),"") ->  | U34: =IFERROR(VLOOKUP(A34,Futtermittel!$A$3:$AR$386,20,0),"") ->  | V34: =IFERROR(VLOOKUP(A34,Futtermittel!$A$3:$AR$386,21,0),"") ->  | W34: =IFERROR(VLOOKUP(A34,Futtermittel!$A$3:$AR$386,23,0),"") ->  | X34: =IFERROR(VLOOKUP(A34,Futtermittel!$A$3:$AR$386,22,0),"") ->  | Y34: =IFERROR(VLOOKUP(A34,Futtermittel!$A$3:$AR$386,24,0),"") ->  | Z34: =IFERROR(VLOOKUP(A34,Futtermittel!$A$3:$AR$386,25,0),"") ->  | AA34: =IFERROR(VLOOKUP(A34,Futtermittel!$A$3:$AR$386,26,0),"") ->  | AB34: =IFERROR(VLOOKUP(A34,Futtermittel!$A$3:$AR$386,27,0),"") ->  | AC34: =IFERROR(VLOOKUP(A34,Futtermittel!$A$3:$AR$386,29,0),"") ->  | AD34: =IFERROR(VLOOKUP(A34,Futtermittel!$A$3:$AR$386,30,0),"") ->  | AE34: =IFERROR(VLOOKUP(A34,Futtermittel!$A$3:$AR$386,31,0),"") ->  | AF34: =IFERROR(VLOOKUP(A34,Futtermittel!$A$3:$AR$386,32,0),"") ->  | AG34: =IFERROR(VLOOKUP(A34,Futtermittel!$A$3:$AR$386,33,0),"") ->  | AH34: =IFERROR(VLOOKUP(A34,Futtermittel!$A$3:$AR$386,34,0),"") ->  | AI34: =IFERROR(VLOOKUP(A34,Futtermittel!$A$3:$AR$386,35,0),"") ->  | AJ34: =IFERROR(VLOOKUP(A34,Futtermittel!$A$3:$AR$386,16,0),"") ->  | AK34: =IFERROR(VLOOKUP(A34,Futtermittel!$A$3:$AR$386,41,0),"") ->  | AL34: =IFERROR(VLOOKUP(A34,Futtermittel!$A$3:$AR$386,42,0),"") ->  | AN34: =IFERROR(VLOOKUP(A34,Futtermittel!$A$3:$AR$386,14,0),"") ->  | AO34: =IFERROR(VLOOKUP(A34,Futtermittel!$A$3:$AR$386,37,0),"") ->  | AP34: =IFERROR(VLOOKUP(A34,Futtermittel!$A$3:$AR$386,38,0),"") ->  | AQ34: =IFERROR(VLOOKUP(A34,Futtermittel!$A$3:$AR$386,39,0),"") ->  | AR34: =IFERROR(VLOOKUP(A34,Futtermittel!$A$3:$AR$386,40,0),0) -> 0 | AS34: =IFERROR(VLOOKUP(A34,Futtermittel!$A$3:$AR$386,16,0),"") ->  | AT34: =IFERROR(VLOOKUP(A34,Futtermittel!$A$3:$AR$386,19,0),"") ->  | AU34: =IFERROR(VLOOKUP(A34,Futtermittel!$A$3:$AR$386,36,0),"") -> 
B35: =IFERROR(VLOOKUP(A35,Futtermittel!$A$3:$AR$386,2,0),"") ->  | C35: 0 | D35: =IFERROR(VLOOKUP(A35,Futtermittel!$A$3:$AR$386,28,0),"") ->  | E35: 0 | F35: =IFERROR(VLOOKUP(A35,Futtermittel!$A$3:$AR$386,3,0),"") ->  | G35: =IFERROR(VLOOKUP(A35,Futtermittel!$A$3:$AR$386,4,0),"") ->  | H35: =IFERROR(VLOOKUP(A35,Futtermittel!$A$3:$AR$386,5,0),"") ->  | I35: =IFERROR(VLOOKUP(A35,Futtermittel!$A$3:$AR$386,6,0),"") ->  | J35: =IFERROR(VLOOKUP(A35,Futtermittel!$A$3:$AR$386,7,0),"") ->  | K35: =IFERROR(VLOOKUP(A35,Futtermittel!$A$3:$AR$386,8,0),"") ->  | L35: =IFERROR(VLOOKUP(A35,Futtermittel!$A$3:$AR$386,13,0),"") ->  | M35: =IFERROR(VLOOKUP(A35,Futtermittel!$A$3:$AR$386,18,0),"") ->  | N35: =IFERROR(VLOOKUP(A35,Futtermittel!$A$3:$AR$386,9,0),"") ->  | O35: =IFERROR(VLOOKUP(A35,Futtermittel!$A$3:$AR$386,14,0),"") ->  | P35: =IFERROR(VLOOKUP(A35,Futtermittel!$A$3:$AR$386,10,0),"") ->  | Q35: =IFERROR(VLOOKUP(A35,Futtermittel!$A$3:$AR$386,11,0),"") ->  | R35: =IFERROR(VLOOKUP(A35,Futtermittel!$A$3:$AR$386,43,0),0) -> 0 | S35: =IFERROR(VLOOKUP(A35,Futtermittel!$A$3:$AR$386,12,0),"") ->  | T35: =IFERROR(VLOOKUP(A35,Futtermittel!$A$3:$AR$386,17,0),"") ->  | U35: =IFERROR(VLOOKUP(A35,Futtermittel!$A$3:$AR$386,20,0),"") ->  | V35: =IFERROR(VLOOKUP(A35,Futtermittel!$A$3:$AR$386,21,0),"") ->  | W35: =IFERROR(VLOOKUP(A35,Futtermittel!$A$3:$AR$386,23,0),"") ->  | X35: =IFERROR(VLOOKUP(A35,Futtermittel!$A$3:$AR$386,22,0),"") ->  | Y35: =IFERROR(VLOOKUP(A35,Futtermittel!$A$3:$AR$386,24,0),"") ->  | Z35: =IFERROR(VLOOKUP(A35,Futtermittel!$A$3:$AR$386,25,0),"") ->  | AA35: =IFERROR(VLOOKUP(A35,Futtermittel!$A$3:$AR$386,26,0),"") ->  | AB35: =IFERROR(VLOOKUP(A35,Futtermittel!$A$3:$AR$386,27,0),"") ->  | AC35: =IFERROR(VLOOKUP(A35,Futtermittel!$A$3:$AR$386,29,0),"") ->  | AD35: =IFERROR(VLOOKUP(A35,Futtermittel!$A$3:$AR$386,30,0),"") ->  | AE35: =IFERROR(VLOOKUP(A35,Futtermittel!$A$3:$AR$386,31,0),"") ->  | AF35: =IFERROR(VLOOKUP(A35,Futtermittel!$A$3:$AR$386,32,0),"") ->  | AG35: =IFERROR(VLOOKUP(A35,Futtermittel!$A$3:$AR$386,33,0),"") ->  | AH35: =IFERROR(VLOOKUP(A35,Futtermittel!$A$3:$AR$386,34,0),"") ->  | AI35: =IFERROR(VLOOKUP(A35,Futtermittel!$A$3:$AR$386,35,0),"") ->  | AJ35: =IFERROR(VLOOKUP(A35,Futtermittel!$A$3:$AR$386,16,0),"") ->  | AK35: =IFERROR(VLOOKUP(A35,Futtermittel!$A$3:$AR$386,41,0),"") ->  | AL35: =IFERROR(VLOOKUP(A35,Futtermittel!$A$3:$AR$386,42,0),"") ->  | AN35: =IFERROR(VLOOKUP(A35,Futtermittel!$A$3:$AR$386,14,0),"") ->  | AO35: =IFERROR(VLOOKUP(A35,Futtermittel!$A$3:$AR$386,37,0),"") ->  | AP35: =IFERROR(VLOOKUP(A35,Futtermittel!$A$3:$AR$386,38,0),"") ->  | AQ35: =IFERROR(VLOOKUP(A35,Futtermittel!$A$3:$AR$386,39,0),"") ->  | AR35: =IFERROR(VLOOKUP(A35,Futtermittel!$A$3:$AR$386,40,0),0) -> 0 | AS35: =IFERROR(VLOOKUP(A35,Futtermittel!$A$3:$AR$386,16,0),"") ->  | AT35: =IFERROR(VLOOKUP(A35,Futtermittel!$A$3:$AR$386,19,0),"") ->  | AU35: =IFERROR(VLOOKUP(A35,Futtermittel!$A$3:$AR$386,36,0),"") -> 
B36: =IFERROR(VLOOKUP(A36,Futtermittel!$A$3:$AR$386,2,0),"") ->  | C36: 0 | D36: =IFERROR(VLOOKUP(A36,Futtermittel!$A$3:$AR$386,28,0),"") ->  | E36: 0 | F36: =IFERROR(VLOOKUP(A36,Futtermittel!$A$3:$AR$386,3,0),"") ->  | G36: =IFERROR(VLOOKUP(A36,Futtermittel!$A$3:$AR$386,4,0),"") ->  | H36: =IFERROR(VLOOKUP(A36,Futtermittel!$A$3:$AR$386,5,0),"") ->  | I36: =IFERROR(VLOOKUP(A36,Futtermittel!$A$3:$AR$386,6,0),"") ->  | J36: =IFERROR(VLOOKUP(A36,Futtermittel!$A$3:$AR$386,7,0),"") ->  | K36: =IFERROR(VLOOKUP(A36,Futtermittel!$A$3:$AR$386,8,0),"") ->  | L36: =IFERROR(VLOOKUP(A36,Futtermittel!$A$3:$AR$386,13,0),"") ->  | M36: =IFERROR(VLOOKUP(A36,Futtermittel!$A$3:$AR$386,18,0),"") ->  | N36: =IFERROR(VLOOKUP(A36,Futtermittel!$A$3:$AR$386,9,0),"") ->  | O36: =IFERROR(VLOOKUP(A36,Futtermittel!$A$3:$AR$386,14,0),"") ->  | P36: =IFERROR(VLOOKUP(A36,Futtermittel!$A$3:$AR$386,10,0),"") ->  | Q36: =IFERROR(VLOOKUP(A36,Futtermittel!$A$3:$AR$386,11,0),"") ->  | R36: =IFERROR(VLOOKUP(A36,Futtermittel!$A$3:$AR$386,43,0),0) -> 0 | S36: =IFERROR(VLOOKUP(A36,Futtermittel!$A$3:$AR$386,12,0),"") ->  | T36: =IFERROR(VLOOKUP(A36,Futtermittel!$A$3:$AR$386,17,0),"") ->  | U36: =IFERROR(VLOOKUP(A36,Futtermittel!$A$3:$AR$386,20,0),"") ->  | V36: =IFERROR(VLOOKUP(A36,Futtermittel!$A$3:$AR$386,21,0),"") ->  | W36: =IFERROR(VLOOKUP(A36,Futtermittel!$A$3:$AR$386,23,0),"") ->  | X36: =IFERROR(VLOOKUP(A36,Futtermittel!$A$3:$AR$386,22,0),"") ->  | Y36: =IFERROR(VLOOKUP(A36,Futtermittel!$A$3:$AR$386,24,0),"") ->  | Z36: =IFERROR(VLOOKUP(A36,Futtermittel!$A$3:$AR$386,25,0),"") ->  | AA36: =IFERROR(VLOOKUP(A36,Futtermittel!$A$3:$AR$386,26,0),"") ->  | AB36: =IFERROR(VLOOKUP(A36,Futtermittel!$A$3:$AR$386,27,0),"") ->  | AC36: =IFERROR(VLOOKUP(A36,Futtermittel!$A$3:$AR$386,29,0),"") ->  | AD36: =IFERROR(VLOOKUP(A36,Futtermittel!$A$3:$AR$386,30,0),"") ->  | AE36: =IFERROR(VLOOKUP(A36,Futtermittel!$A$3:$AR$386,31,0),"") ->  | AF36: =IFERROR(VLOOKUP(A36,Futtermittel!$A$3:$AR$386,32,0),"") ->  | AG36: =IFERROR(VLOOKUP(A36,Futtermittel!$A$3:$AR$386,33,0),"") ->  | AH36: =IFERROR(VLOOKUP(A36,Futtermittel!$A$3:$AP$386,34,0),"") ->  | AI36: =IFERROR(VLOOKUP(A36,Futtermittel!$A$3:$AR$386,35,0),"") ->  | AJ36: =IFERROR(VLOOKUP(A36,Futtermittel!$A$3:$AR$386,16,0),"") ->  | AK36: =IFERROR(VLOOKUP(A36,Futtermittel!$A$3:$AR$386,41,0),"") ->  | AL36: =IFERROR(VLOOKUP(A36,Futtermittel!$A$3:$AR$386,42,0),"") ->  | AN36: =IFERROR(VLOOKUP(A36,Futtermittel!$A$3:$AR$386,14,0),"") ->  | AO36: =IFERROR(VLOOKUP(A36,Futtermittel!$A$3:$AR$386,37,0),"") ->  | AP36: =IFERROR(VLOOKUP(A36,Futtermittel!$A$3:$AR$386,38,0),"") ->  | AQ36: =IFERROR(VLOOKUP(A36,Futtermittel!$A$3:$AR$386,39,0),"") ->  | AR36: =IFERROR(VLOOKUP(A36,Futtermittel!$A$3:$AR$386,40,0),0) -> 0 | AS36: =IFERROR(VLOOKUP(A36,Futtermittel!$A$3:$AR$386,16,0),"") ->  | AT36: =IFERROR(VLOOKUP(A36,Futtermittel!$A$3:$AR$386,19,0),"") ->  | AU36: =IFERROR(VLOOKUP(A36,Futtermittel!$A$3:$AR$386,36,0),"") -> 

Sheet Mischung 1
A1: Mischung | D1: TM | E1: CA | F1: OM | G1: aNDFom | H1: ADFom | I1: OMDFANi | J1: GE | K1: MEFANi | L1: CP | M1: sidP FANi | N1: CL | O1: ST | P1: bST | Q1: ZU | R1: RMDFANi | S1: Ca | T1: P | U1: Na | V1: Mg | W1: K | X1: Cl | Y1: S | Z1: DCAB | AA1: Fe | AB1: Cu | AC1: Zn | AD1: Mn | AE1: Co | AF1: J | AG1: Se | AH1: siDUDP | AI1: Lysin | AJ1: Methionin | AK1: Passagerate k | AL1: sidP udp | AM1: a | AN1: b | AO1: c | AP1: lag | AQ1: sidUDP FAN1 | AR1: pabKH | AS1: Preis | AT1: Berechnung von Basis Fan1 auf FANi -- DLG Information 01 | 25 - DLG-Merknlatt 503 - DLG-MERKBLATT 504
B2: Futtermittel - Mischungsanteil in % | C2: Anteil | D2: g | E2: g | F2: g | G2: g | H2: g | I2: % OM | J2: MJ | K2: MJ | L2: g | M2: g | N2: g | O2: g | P2: g | Q2: g | R2: g | S2: g | T2: g | U2: g | V2: g | W2: g | X2: g | Y2: g | Z2: meq | AA2: mg | AB2: mg | AC2: mg | AD2: mg | AE2: mg | AF2: mg | AG2: mg | AH2: % | AI2: g | AJ2: g | AK2: % / h | AL2: g | AM2: % | AN2: % | AO2: % / h | AP2: h | AQ2: g | AR2: g | AS2: € | AT2: CH4E FAN1 | AU2: CH4E FANi | AV2: Harnenergie | AW2: ME FANi | AX2: MCP g/kg | AY2: sidP aus MCP | AZ2: EDGFANi % | BA2: UDPFANi | BB2: RDP g/d | BC2: sidPUDP g | BD2: sidP g/kg | BE2: RDP g/kg | BF2: MCP g/d | BG2: RMDFANi | BH2: DOMFANi | BI2: MCP/DOM | BJ2: UDP %
A3: =A25 -> 0 | B3: =B25 ->  | D3: =IFERROR(D25*C3,0) -> 0 | E3: =IFERROR(E25*D3/1000,0) -> 0 | F3: =IFERROR(F25*D3/1000,0) -> 0 | G3: =IF(AND(C25="GF",C3>0),G25*D3/1000,0) -> 0 | H3: =IFERROR(H25*D3/1000,0) -> 0 | I3: =IF(C3>0,I25-(1.5+0.05*(I25-65))*('Start-Einstellung'!$G$8-1),0) -> 0 | J3: =IFERROR(J25*D3/1000,0) -> 0 | K3: =IFERROR((AW3*D3/1000),0) -> 0 | L3: =IFERROR(L25*D3/1000,0) -> 0 | M3: =(D3/1000)*BD3 -> 0 | N3: =IFERROR(N25*D3/1000,0) -> 0 | O3: =IFERROR(O25*D3/1000,0) -> 0 | P3: =IFERROR(P25*D3/1000,0) -> 0 | Q3: =IFERROR(Q25*D3/1000,0) -> 0 | R3: =IFERROR((BB3-BF3)/6.25,0) -> 0 | S3: =IFERROR(S25*D3/1000,0) -> 0 | T3: =IFERROR(T25*D3/1000,0) -> 0 | U3: =IFERROR(U25*D3/1000,0) -> 0 | V3: =IFERROR(V25*D3/1000,0) -> 0 | W3: =IFERROR(W25*D3/1000,0) -> 0 | X3: =IFERROR(X25*D3/1000,0) -> 0 | Y3: =IFERROR(Y25*D3/1000,0) -> 0 | Z3: =IFERROR(Z25*D3/1000,0) -> 0 | AA3: =IFERROR(AA25*D3/1000,0) -> 0 | AB3: =IFERROR(AB25*D3/1000,0) -> 0 | AC3: =IFERROR(AC25*D3/1000,0) -> 0 | AD3: =IFERROR(AD25*D3/1000,0) -> 0 | AE3: =IFERROR(AE25*D3/1000,0) -> 0 | AF3: =IFERROR(AF25*D3/1000,0) -> 0 | AG3: =IFERROR(AG25*D3/1000,0) -> 0 | AH3: =IF(C3=0,0,AH25) -> 0 | AI3: =IFERROR(AI25*D3/1000,0) -> 0 | AJ3: =IFERROR(AJ25*D3/1000,0) -> 0 | AK3: =IF(C3=0,0,IF(C25="GF",(1.7286+0.8857*'Start-Einstellung'!$G$8),IF(C25="KF",(2.2357+1.2429*'Start-Einstellung'!$G$8),IF(C25="SF",(1.9607+0.9643*'Start-Einstellung'!$G$8),0)))) -> 0 | AL3: =IFERROR(BC3*D3/1000,0) -> 0 | AM3: =IF(C3=0,0,AM25) -> 0 | AN3: =IF(C3=0,0,AN25) -> 0 | AO3: =IF(C3>0,AO25/100,0) -> 0 | AP3: =IF(C3=0,0,AP25) -> 0 | AQ3: =IFERROR(AQ25*D3/1000,0) -> 0 | AR3: =IFERROR(AR25*D3/1000,0) -> 0 | AS3: =IF(C3=0,0,IF(C3>0,(AS25/100)*C3)) -> 0 | AT3: =IF(C3=0,0,IF(C3>0,(0.7+0.014*I25)*(F25/1000))) -> 0 | AU3: =IFERROR(IF(C3=0,0,IF(C3>0,(((AT3/(F25/1000)+0.9*('Start-Einstellung'!$G$8-1))/'Start-Einstellung'!$G$8*(F25/1000))))),0) -> 0 | AV3: =IF(C3=0,0,IF(C3>0,(0.0037*L25))) -> 0 | AW3: =IF(C3=0,0,IF(C3>0,((J25*(I3-3.3)/100)-AV3-AU3))) -> 0 | AX3: =BI3*BH3/1000 -> 0 | AY3: =IFERROR((AX3*0.78*0.85),0) -> 0 | AZ3: =IF(C3>0,AM3+(AN3*AO3)/(AO3+AK3%)*(EXP(-AK3/100*AP3)),0) -> 0 | BA3: =IF(C3=0,0,IF(C3>0,(L25*(1-(AZ3/100))))) -> 0 | BB3: =IF(C3>0,BE3*(D3/1000),0) -> 0 | BC3: =IF(C3>0,(BA3*AH3%),0) -> 0 | BD3: =IFERROR((AY3+BC3),0) -> 0 | BE3: =IFERROR(L25*AZ3/100,0) -> 0 | BF3: =IF(F3>0,AX3*(D3/1000),0) -> 0 | BG3: =IFERROR((BE3-AX3)/6.25,0) -> 0 | BH3: =IFERROR((F25*I3/100),0) -> 0 | BI3: =IF(C3=0,0,IF('Start-Einstellung'!$G$8<3.4,150,IF(-11+(47.1*'Start-Einstellung'!$G$8)>180,180,(-11+(47.1*'Start-Einstellung'!$G$8))))) -> 0 | BJ3: =IFERROR((BA3/L25)*100,0) -> 0
A4: 0 | D4: 0 | E4: =IFERROR(E26*D4/1000,0) -> 0 | F4: =IFERROR(F26*D4/1000,0) -> 0 | G4: =IF(AND(C26="GF",C4>0),G26*D4/1000,0) -> 0 | H4: =IFERROR(H26*D4/1000,0) -> 0 | I4: =IF(C4>0,I26-(1.5+0.05*(I26-65))*('Start-Einstellung'!$G$8-1),0) -> 0 | J4: =IFERROR(J26*D4/1000,0) -> 0 | K4: =IFERROR((AW4*D4/1000),0) -> 0 | L4: =IFERROR(L26*D4/1000,0) -> 0 | M4: =(D4/1000)*BD4 -> 0 | N4: =IFERROR(N26*D4/1000,0) -> 0 | O4: =IFERROR(O26*D4/1000,0) -> 0 | P4: =IFERROR(P26*D4/1000,0) -> 0 | Q4: =IFERROR(Q26*D4/1000,0) -> 0 | R4: =IFERROR((BB4-BF4)/6.25,0) -> 0 | S4: =IFERROR(S26*D4/1000,0) -> 0 | T4: =IFERROR(T26*D4/1000,0) -> 0 | U4: =IFERROR(U26*D4/1000,0) -> 0 | V4: =IFERROR(V26*D4/1000,0) -> 0 | W4: =IFERROR(W26*D4/1000,0) -> 0 | X4: =IFERROR(X26*D4/1000,0) -> 0 | Y4: =IFERROR(Y26*D4/1000,0) -> 0 | Z4: =IFERROR(Z26*D4/1000,0) -> 0 | AA4: =IFERROR(AA26*D4/1000,0) -> 0 | AB4: =IFERROR(AB26*D4/1000,0) -> 0 | AC4: =IFERROR(AC26*D4/1000,0) -> 0 | AD4: =IFERROR(AD26*D4/1000,0) -> 0 | AE4: =IFERROR(AE26*D4/1000,0) -> 0 | AF4: =IFERROR(AF26*C4,0) -> 0 | AG4: =IFERROR(AG26*D4/1000,0) -> 0 | AH4: =IF(C4=0,0,AH26) -> 0 | AI4: =IFERROR(AI26*D4/1000,0) -> 0 | AJ4: =IFERROR(AJ26*D4/1000,0) -> 0 | AK4: =IF(C4=0,0,IF(C26="GF",(1.7286+0.8857*'Start-Einstellung'!$G$8),IF(C26="KF",(2.2357+1.2429*'Start-Einstellung'!$G$8),IF(C26="SF",(1.9607+0.9643*'Start-Einstellung'!$G$8),0)))) -> 0 | AL4: =IFERROR(BC4*D4/1000,0) -> 0 | AM4: =IF(C4=0,0,AM26) -> 0 | AN4: =IF(C4=0,0,AN26) -> 0 | AO4: 0 | AP4: =IF(C4=0,0,AP26) -> 0 | AQ4: =IFERROR(AQ26*D4/1000,0) -> 0 | AR4: =IFERROR(AR26*D4/1000,0) -> 0 | AS4: 0 | AT4: 0 | AU4: =IFERROR(IF(C4=0,0,IF(C4>0,(((AT4/(F26/1000)+0.9*('Start-Einstellung'!$G$8-1))/'Start-Einstellung'!$G$8*(F26/1000))))),0) -> 0 | AV4: 0 | AW4: 0 | AX4: =BI4*BH4/1000 -> 0 | AY4: =IFERROR((AX4*0.78*0.85),0) -> 0 | AZ4: =IF(C4>0,AM4+(AN4*AO4)/(AO4+AK4%)*(EXP(-AK4/100*AP4)),0) -> 0 | BA4: 0 | BB4: =IF(C4>0,BE4*(D4/1000),0) -> 0 | BC4: =IF(C4>0,(BA4*AH4%),0) -> 0 | BD4: =IFERROR((AY4+BC4),0) -> 0 | BE4: 0 | BF4: =IF(F4>0,AX4*(D4/1000),0) -> 0 | BG4: =IFERROR((BE4-AX4)/6.25,0) -> 0 | BH4: 0 | BI4: =IF(C4=0,0,IF('Start-Einstellung'!$G$8<3.4,150,IF(-11+(47.1*'Start-Einstellung'!$G$8)>180,180,(-11+(47.1*'Start-Einstellung'!$G$8))))) -> 0 | BJ4: 0
A5: 0 | D5: 0 | E5: 0 | F5: 0 | G5: 0 | H5: 0 | I5: =IF(C5>0,I27-(1.5+0.05*(I27-65))*('Start-Einstellung'!$G$8-1),0) -> 0 | J5: 0 | K5: 0 | L5: 0 | M5: 0 | N5: 0 | O5: 0 | P5: 0 | Q5: 0 | R5: 0 | S5: 0 | T5: 0 | U5: 0 | V5: 0 | W5: 0 | X5: 0 | Y5: 0 | Z5: 0 | AA5: 0 | AB5: 0 | AC5: 0 | AD5: 0 | AE5: 0 | AF5: 0 | AG5: 0 | AH5: 0 | AI5: 0 | AJ5: 0 | AK5: =IF(C5=0,0,IF(C27="GF",(1.7286+0.8857*'Start-Einstellung'!$G$8),IF(C27="KF",(2.2357+1.2429*'Start-Einstellung'!$G$8),IF(C27="SF",(1.9607+0.9643*'Start-Einstellung'!$G$8),0)))) -> 0 | AL5: 0 | AM5: 0 | AN5: 0 | AO5: 0 | AP5: 0 | AQ5: 0 | AR5: 0 | AS5: 0 | AT5: 0 | AU5: =IFERROR(IF(C5=0,0,IF(C5>0,(((AT5/(F27/1000)+0.9*('Start-Einstellung'!$G$8-1))/'Start-Einstellung'!$G$8*(F27/1000))))),0) -> 0 | AV5: 0 | AW5: 0 | AX5: 0 | AY5: 0 | AZ5: 0 | BA5: 0 | BB5: 0 | BC5: 0 | BD5: 0 | BE5: 0 | BF5: 0 | BG5: 0 | BH5: 0 | BI5: =IF(C5=0,0,IF('Start-Einstellung'!$G$8<3.4,150,IF(-11+(47.1*'Start-Einstellung'!$G$8)>180,180,(-11+(47.1*'Start-Einstellung'!$G$8))))) -> 0 | BJ5: 0
A6: 0 | D6: 0 | E6: 0 | F6: 0 | G6: 0 | H6: 0 | I6: =IF(C6>0,I28-(1.5+0.05*(I28-65))*('Start-Einstellung'!$G$8-1),0) -> 0 | J6: 0 | K6: 0 | L6: 0 | M6: 0 | N6: 0 | O6: 0 | P6: 0 | Q6: 0 | R6: 0 | S6: 0 | T6: 0 | U6: 0 | V6: 0 | W6: 0 | X6: 0 | Y6: 0 | Z6: 0 | AA6: 0 | AB6: 0 | AC6: 0 | AD6: 0 | AE6: 0 | AF6: 0 | AG6: 0 | AH6: 0 | AI6: 0 | AJ6: 0 | AK6: =IF(C6=0,0,IF(C28="GF",(1.7286+0.8857*'Start-Einstellung'!$G$8),IF(C28="KF",(2.2357+1.2429*'Start-Einstellung'!$G$8),IF(C28="SF",(1.9607+0.9643*'Start-Einstellung'!$G$8),0)))) -> 0 | AL6: 0 | AM6: 0 | AN6: 0 | AO6: 0 | AP6: 0 | AQ6: 0 | AR6: 0 | AS6: 0 | AT6: 0 | AU6: =IFERROR(IF(C6=0,0,IF(C6>0,(((AT6/(F28/1000)+0.9*('Start-Einstellung'!$G$8-1))/'Start-Einstellung'!$G$8*(F28/1000))))),0) -> 0 | AV6: 0 | AW6: 0 | AX6: 0 | AY6: 0 | AZ6: 0 | BA6: 0 | BB6: 0 | BC6: 0 | BD6: 0 | BE6: 0 | BF6: 0 | BG6: 0 | BH6: 0 | BI6: =IF(C6=0,0,IF('Start-Einstellung'!$G$8<3.4,150,IF(-11+(47.1*'Start-Einstellung'!$G$8)>180,180,(-11+(47.1*'Start-Einstellung'!$G$8))))) -> 0 | BJ6: 0
A7: 0 | D7: 0 | E7: 0 | F7: 0 | G7: 0 | H7: 0 | I7: =IF(C7>0,I29-(1.5+0.05*(I29-65))*('Start-Einstellung'!$G$8-1),0) -> 0 | J7: 0 | K7: 0 | L7: 0 | M7: 0 | N7: 0 | O7: 0 | P7: 0 | Q7: 0 | R7: 0 | S7: 0 | T7: 0 | U7: 0 | V7: 0 | W7: 0 | X7: 0 | Y7: 0 | Z7: 0 | AA7: 0 | AB7: 0 | AC7: 0 | AD7: 0 | AE7: 0 | AF7: 0 | AG7: 0 | AH7: 0 | AI7: 0 | AJ7: 0 | AK7: =IF(C7=0,0,IF(C29="GF",(1.7286+0.8857*'Start-Einstellung'!$G$8),IF(C29="KF",(2.2357+1.2429*'Start-Einstellung'!$G$8),IF(C29="SF",(1.9607+0.9643*'Start-Einstellung'!$G$8),0)))) -> 0 | AL7: 0 | AM7: 0 | AN7: 0 | AO7: 0 | AP7: 0 | AQ7: 0 | AR7: 0 | AS7: 0 | AT7: 0 | AU7: =IFERROR(IF(C7=0,0,IF(C7>0,(((AT7/(F29/1000)+0.9*('Start-Einstellung'!$G$8-1))/'Start-Einstellung'!$G$8*(F29/1000))))),0) -> 0 | AV7: 0 | AW7: 0 | AX7: 0 | AY7: 0 | AZ7: 0 | BA7: 0 | BB7: 0 | BC7: 0 | BD7: 0 | BE7: 0 | BF7: 0 | BG7: 0 | BH7: 0 | BI7: =IF(C7=0,0,IF('Start-Einstellung'!$G$8<3.4,150,IF(-11+(47.1*'Start-Einstellung'!$G$8)>180,180,(-11+(47.1*'Start-Einstellung'!$G$8))))) -> 0 | BJ7: 0
A8: 0 | D8: 0 | E8: 0 | F8: 0 | G8: 0 | H8: 0 | I8: =IF(C8>0,I30-(1.5+0.05*(I30-65))*('Start-Einstellung'!$G$8-1),0) -> 0 | J8: 0 | K8: 0 | L8: 0 | M8: 0 | N8: 0 | O8: 0 | P8: 0 | Q8: 0 | R8: 0 | S8: 0 | T8: 0 | U8: 0 | V8: 0 | W8: 0 | X8: 0 | Y8: 0 | Z8: 0 | AA8: 0 | AB8: 0 | AC8: 0 | AD8: 0 | AE8: 0 | AF8: 0 | AG8: 0 | AH8: 0 | AI8: 0 | AJ8: 0 | AK8: =IF(C8=0,0,IF(C30="GF",(1.7286+0.8857*'Start-Einstellung'!$G$8),IF(C30="KF",(2.2357+1.2429*'Start-Einstellung'!$G$8),IF(C30="SF",(1.9607+0.9643*'Start-Einstellung'!$G$8),0)))) -> 0 | AL8: 0 | AM8: 0 | AN8: 0 | AO8: 0 | AP8: 0 | AQ8: 0 | AR8: 0 | AS8: 0 | AT8: 0 | AU8: =IFERROR(IF(C8=0,0,IF(C8>0,(((AT8/(F30/1000)+0.9*('Start-Einstellung'!$G$8-1))/'Start-Einstellung'!$G$8*(F30/1000))))),0) -> 0 | AV8: 0 | AW8: 0 | AX8: 0 | AY8: 0 | AZ8: 0 | BA8: 0 | BB8: 0 | BC8: 0 | BD8: 0 | BE8: 0 | BF8: 0 | BG8: 0 | BH8: 0 | BI8: =IF(C8=0,0,IF('Start-Einstellung'!$G$8<3.4,150,IF(-11+(47.1*'Start-Einstellung'!$G$8)>180,180,(-11+(47.1*'Start-Einstellung'!$G$8))))) -> 0 | BJ8: 0
A9: 0 | D9: 0 | E9: 0 | F9: 0 | G9: 0 | H9: 0 | I9: =IF(C9>0,I31-(1.5+0.05*(I31-65))*('Start-Einstellung'!$G$8-1),0) -> 0 | J9: 0 | K9: 0 | L9: 0 | M9: 0 | N9: 0 | O9: 0 | P9: 0 | Q9: 0 | R9: 0 | S9: 0 | T9: 0 | U9: 0 | V9: 0 | W9: 0 | X9: 0 | Y9: 0 | Z9: 0 | AA9: 0 | AB9: 0 | AC9: 0 | AD9: 0 | AE9: 0 | AF9: 0 | AG9: 0 | AH9: 0 | AI9: 0 | AJ9: 0 | AK9: =IF(C9=0,0,IF(C31="GF",(1.7286+0.8857*'Start-Einstellung'!$G$8),IF(C31="KF",(2.2357+1.2429*'Start-Einstellung'!$G$8),IF(C31="SF",(1.9607+0.9643*'Start-Einstellung'!$G$8),0)))) -> 0 | AL9: 0 | AM9: 0 | AN9: 0 | AO9: 0 | AP9: 0 | AQ9: 0 | AR9: 0 | AS9: 0 | AT9: 0 | AU9: =IFERROR(IF(C9=0,0,IF(C9>0,(((AT9/(F31/1000)+0.9*('Start-Einstellung'!$G$8-1))/'Start-Einstellung'!$G$8*(F31/1000))))),0) -> 0 | AV9: 0 | AW9: 0 | AX9: 0 | AY9: 0 | AZ9: 0 | BA9: 0 | BB9: 0 | BC9: 0 | BD9: 0 | BE9: 0 | BF9: 0 | BG9: 0 | BH9: 0 | BI9: =IF(C9=0,0,IF('Start-Einstellung'!$G$8<3.4,150,IF(-11+(47.1*'Start-Einstellung'!$G$8)>180,180,(-11+(47.1*'Start-Einstellung'!$G$8))))) -> 0 | BJ9: 0
A10: 0 | D10: 0 | E10: 0 | F10: 0 | G10: 0 | H10: 0 | I10: =IF(C10>0,I32-(1.5+0.05*(I32-65))*('Start-Einstellung'!$G$8-1),0) -> 0 | J10: 0 | K10: 0 | L10: 0 | M10: 0 | N10: 0 | O10: 0 | P10: 0 | Q10: 0 | R10: 0 | S10: 0 | T10: 0 | U10: 0 | V10: 0 | W10: 0 | X10: 0 | Y10: 0 | Z10: 0 | AA10: 0 | AB10: 0 | AC10: 0 | AD10: 0 | AE10: 0 | AF10: 0 | AG10: 0 | AH10: 0 | AI10: 0 | AJ10: 0 | AK10: =IF(C10=0,0,IF(C32="GF",(1.7286+0.8857*'Start-Einstellung'!$G$8),IF(C32="KF",(2.2357+1.2429*'Start-Einstellung'!$G$8),IF(C32="SF",(1.9607+0.9643*'Start-Einstellung'!$G$8),0)))) -> 0 | AL10: 0 | AM10: 0 | AN10: 0 | AO10: 0 | AP10: 0 | AQ10: 0 | AR10: 0 | AS10: 0 | AT10: 0 | AU10: =IFERROR(IF(C10=0,0,IF(C10>0,(((AT10/(F32/1000)+0.9*('Start-Einstellung'!$G$8-1))/'Start-Einstellung'!$G$8*(F32/1000))))),0) -> 0 | AV10: 0 | AW10: 0 | AX10: 0 | AY10: 0 | AZ10: 0 | BA10: 0 | BB10: 0 | BC10: 0 | BD10: 0 | BE10: 0 | BF10: 0 | BG10: 0 | BH10: 0 | BI10: =IF(C10=0,0,IF('Start-Einstellung'!$G$8<3.4,150,IF(-11+(47.1*'Start-Einstellung'!$G$8)>180,180,(-11+(47.1*'Start-Einstellung'!$G$8))))) -> 0 | BJ10: 0
A11: 0 | D11: 0 | E11: 0 | F11: 0 | G11: 0 | H11: 0 | I11: =IF(C11>0,I33-(1.5+0.05*(I33-65))*('Start-Einstellung'!$G$8-1),0) -> 0 | J11: 0 | K11: 0 | L11: 0 | M11: 0 | N11: 0 | O11: 0 | P11: 0 | Q11: 0 | R11: 0 | S11: 0 | T11: 0 | U11: 0 | V11: 0 | W11: 0 | X11: 0 | Y11: 0 | Z11: 0 | AA11: 0 | AB11: 0 | AC11: 0 | AD11: 0 | AE11: 0 | AF11: 0 | AG11: 0 | AH11: 0 | AI11: 0 | AJ11: 0 | AK11: =IF(C11=0,0,IF(C33="GF",(1.7286+0.8857*'Start-Einstellung'!$G$8),IF(C33="KF",(2.2357+1.2429*'Start-Einstellung'!$G$8),IF(C33="SF",(1.9607+0.9643*'Start-Einstellung'!$G$8),0)))) -> 0 | AL11: 0 | AM11: 0 | AN11: 0 | AO11: 0 | AP11: 0 | AQ11: 0 | AR11: 0 | AS11: 0 | AT11: 0 | AU11: =IFERROR(IF(C11=0,0,IF(C11>0,(((AT11/(F33/1000)+0.9*('Start-Einstellung'!$G$8-1))/'Start-Einstellung'!$G$8*(F33/1000))))),0) -> 0 | AV11: 0 | AW11: 0 | AX11: 0 | AY11: 0 | AZ11: 0 | BA11: 0 | BB11: 0 | BC11: 0 | BD11: 0 | BE11: 0 | BF11: 0 | BG11: 0 | BH11: 0 | BI11: =IF(C11=0,0,IF('Start-Einstellung'!$G$8<3.4,150,IF(-11+(47.1*'Start-Einstellung'!$G$8)>180,180,(-11+(47.1*'Start-Einstellung'!$G$8))))) -> 0 | BJ11: 0
A12: 0 | D12: 0 | E12: 0 | F12: 0 | G12: 0 | H12: 0 | I12: =IF(C12>0,I34-(1.5+0.05*(I34-65))*('Start-Einstellung'!$G$8-1),0) -> 0 | J12: 0 | K12: 0 | L12: 0 | M12: 0 | N12: 0 | O12: 0 | P12: 0 | Q12: 0 | R12: 0 | S12: 0 | T12: 0 | U12: 0 | V12: 0 | W12: 0 | X12: 0 | Y12: 0 | Z12: 0 | AA12: 0 | AB12: 0 | AC12: 0 | AD12: 0 | AE12: 0 | AF12: 0 | AG12: 0 | AH12: 0 | AI12: 0 | AJ12: 0 | AK12: =IF(C12=0,0,IF(C34="GF",(1.7286+0.8857*'Start-Einstellung'!$G$8),IF(C34="KF",(2.2357+1.2429*'Start-Einstellung'!$G$8),IF(C34="SF",(1.9607+0.9643*'Start-Einstellung'!$G$8),0)))) -> 0 | AL12: 0 | AM12: 0 | AN12: 0 | AO12: 0 | AP12: 0 | AQ12: 0 | AR12: 0 | AS12: 0 | AT12: 0 | AU12: =IFERROR(IF(C12=0,0,IF(C12>0,(((AT12/(F34/1000)+0.9*('Start-Einstellung'!$G$8-1))/'Start-Einstellung'!$G$8*(F34/1000))))),0) -> 0 | AV12: 0 | AW12: 0 | AX12: 0 | AY12: 0 | AZ12: 0 | BA12: 0 | BB12: 0 | BC12: 0 | BD12: 0 | BE12: 0 | BF12: 0 | BG12: 0 | BH12: 0 | BI12: =IF(C12=0,0,IF('Start-Einstellung'!$G$8<3.4,150,IF(-11+(47.1*'Start-Einstellung'!$G$8)>180,180,(-11+(47.1*'Start-Einstellung'!$G$8))))) -> 0 | BJ12: 0
A13: 0 | D13: 0 | E13: 0 | F13: 0 | G13: 0 | H13: 0 | I13: =IF(C13>0,I35-(1.5+0.05*(I35-65))*('Start-Einstellung'!$G$8-1),0) -> 0 | J13: 0 | K13: 0 | L13: 0 | M13: 0 | N13: 0 | O13: 0 | P13: 0 | Q13: 0 | R13: 0 | S13: 0 | T13: 0 | U13: 0 | V13: 0 | W13: 0 | X13: 0 | Y13: 0 | Z13: 0 | AA13: 0 | AB13: 0 | AC13: 0 | AD13: 0 | AE13: 0 | AF13: 0 | AG13: 0 | AH13: 0 | AI13: 0 | AJ13: 0 | AK13: =IF(C13=0,0,IF(C35="GF",(1.7286+0.8857*'Start-Einstellung'!$G$8),IF(C35="KF",(2.2357+1.2429*'Start-Einstellung'!$G$8),IF(C35="SF",(1.9607+0.9643*'Start-Einstellung'!$G$8),0)))) -> 0 | AL13: 0 | AM13: 0 | AN13: 0 | AO13: 0 | AP13: 0 | AQ13: 0 | AR13: 0 | AS13: 0 | AT13: 0 | AU13: =IFERROR(IF(C13=0,0,IF(C13>0,(((AT13/(F35/1000)+0.9*('Start-Einstellung'!$G$8-1))/'Start-Einstellung'!$G$8*(F35/1000))))),0) -> 0 | AV13: 0 | AW13: 0 | AX13: 0 | AY13: 0 | AZ13: 0 | BA13: 0 | BB13: 0 | BC13: 0 | BD13: 0 | BE13: 0 | BF13: 0 | BG13: 0 | BH13: 0 | BI13: =IF(C13=0,0,IF('Start-Einstellung'!$G$8<3.4,150,IF(-11+(47.1*'Start-Einstellung'!$G$8)>180,180,(-11+(47.1*'Start-Einstellung'!$G$8))))) -> 0 | BJ13: 0
A14: 0 | D14: 0 | E14: 0 | F14: 0 | G14: 0 | H14: 0 | I14: =IF(C14>0,I36-(1.5+0.05*(I36-65))*('Start-Einstellung'!$G$8-1),0) -> 0 | J14: 0 | K14: 0 | L14: 0 | M14: 0 | N14: 0 | O14: 0 | P14: 0 | Q14: 0 | R14: 0 | S14: 0 | T14: 0 | U14: 0 | V14: 0 | W14: 0 | X14: 0 | Y14: 0 | Z14: 0 | AA14: 0 | AB14: 0 | AC14: 0 | AD14: 0 | AE14: 0 | AF14: 0 | AG14: 0 | AH14: 0 | AI14: 0 | AJ14: 0 | AK14: =IF(C14=0,0,IF(C36="GF",(1.7286+0.8857*'Start-Einstellung'!$G$8),IF(C36="KF",(2.2357+1.2429*'Start-Einstellung'!$G$8),IF(C36="SF",(1.9607+0.9643*'Start-Einstellung'!$G$8),0)))) -> 0 | AL14: 0 | AM14: 0 | AN14: 0 | AO14: 0 | AP14: 0 | AQ14: 0 | AR14: 0 | AS14: 0 | AT14: 0 | AU14: =IFERROR(IF(C14=0,0,IF(C14>0,(((AT14/(F36/1000)+0.9*('Start-Einstellung'!$G$8-1))/'Start-Einstellung'!$G$8*(F36/1000))))),0) -> 0 | AV14: 0 | AW14: 0 | AX14: 0 | AY14: 0 | AZ14: 0 | BA14: 0 | BB14: 0 | BC14: 0 | BD14: 0 | BE14: 0 | BF14: 0 | BG14: 0 | BH14: 0 | BI14: =IF(C14=0,0,IF('Start-Einstellung'!$G$8<3.4,150,IF(-11+(47.1*'Start-Einstellung'!$G$8)>180,180,(-11+(47.1*'Start-Einstellung'!$G$8))))) -> 0 | BJ14: 0
B15: Summe | C15: =SUM(C3:C14) -> 0 | D15: =SUM(D3:D14) -> 0 | E15: 0 | F15: 0 | G15: 0 | H15: 0 | J15: =SUM(J3:J14) -> 0 | K15: =SUM(K3:K14) -> 0 | L15: =SUM(L3:L14) -> 0 | M15: =SUM(M3:M14) -> 0 | N15: =SUM(N3:N14) -> 0 | O15: =SUM(O3:O14) -> 0 | P15: =SUM(P3:P14) -> 0 | Q15: =SUM(Q3:Q14) -> 0 | R15: =SUM(R3:R14) -> 0 | S15: =SUM(S3:S14) -> 0 | T15: 0 | U15: 0 | V15: 0 | W15: 0 | X15: 0 | Y15: 0 | Z15: =SUM(Z3:Z14) -> 0 | AA15: =SUM(AA3:AA14) -> 0 | AB15: =SUM(AB3:AB14) -> 0 | AC15: 0 | AD15: 0 | AE15: =IFERROR(SUM(AE3:AE14),0) -> 0 | AF15: =SUM(AF3:AF14) -> 0 | AG15: 0 | AI15: =SUM(AI3:AI14) -> 0 | AJ15: 0 | AL15: 0 | AQ15: =SUM(AQ3:AQ14) -> 0 | AR15: =IFERROR(SUM(AR3:AR14),0) -> 0 | AS15: =SUM(AS3:AS14) -> 0
B16: Milcherzeugungswert / Kennzahlen | K16: =IF(K15>0,K15/'Start-Einstellung'!E24,0) -> 0 | L16: =IF(D15>0,L15/D15,0) -> 0 | M16: =IF(M15>0,M15/'Start-Einstellung'!D17,0) -> 0 | N16: =IF(D15>0,N15/D15,0) -> 0 | S16: =IF(S15>0,S15/'Start-Einstellung'!F24,0) -> 0 | U16: =IF(U15>0,U15/'Start-Einstellung'!G24,0) -> 0
B24: Futtermittel aus Gruber Tabelle | C24: Art | D24: TM | E24: CA | F24: OM | G24: aNDFom | H24: ADFom | I24: OMDFAN1 | J24: GE | K24: MEFAN1 | L24: CP | M24: sidP FAN1 | N24: CL | O24: ST | P24: bST | Q24: ZU | R24: RMDFAN1 | S24: Ca | T24: P | U24: Na | V24: Mg | W24: K | X24: Cl | Y24: S | Z24: DCAB | AA24: Fe | AB24: Cu | AC24: Zn | AD24: Mn | AE24: Co | AF24: J | AG24: Se | AH24: siDUDP | AI24: Lysin | AJ24: Methionin | AL24: sidPUDP | AM24: a | AN24: b | AO24: c | AP24: lag h | AQ24: sidUDP FAN1 | AR24: pabKH | AS24: Preis / €
B25: =IFERROR(VLOOKUP(A25,Futtermittel!$A$3:$AR$386,2,0),"") ->  | C25: =IFERROR(VLOOKUP(A25,Futtermittel!$A$3:$AR$386,28,0),"") ->  | D25: =IFERROR(VLOOKUP(A25,Futtermittel!$A$3:$AR$386,3,0),"") ->  | E25: =IFERROR(VLOOKUP(A25,Futtermittel!$A$3:$AR$386,4,0),"") ->  | F25: =IFERROR(VLOOKUP(A25,Futtermittel!$A$3:$AR$386,5,0),"") ->  | G25: =IFERROR(VLOOKUP(A25,Futtermittel!$A$3:$AR$386,6,0),"") ->  | H25: =IFERROR(VLOOKUP(A25,Futtermittel!$A$3:$AR$386,7,0),"") ->  | I25: =IFERROR(VLOOKUP(A25,Futtermittel!$A$3:$AR$386,8,0),"") ->  | J25: =IFERROR(VLOOKUP(A25,Futtermittel!$A$3:$AR$386,13,0),"") ->  | K25: =IFERROR(VLOOKUP(A25,Futtermittel!$A$3:$AR$386,18,0),"") ->  | L25: =IFERROR(VLOOKUP(A25,Futtermittel!$A$3:$AR$386,9,0),"") ->  | M25: =IFERROR(VLOOKUP(A25,Futtermittel!$A$3:$AR$386,14,0),"") ->  | N25: =IFERROR(VLOOKUP(A25,Futtermittel!$A$3:$AR$386,10,0),"") ->  | O25: =IFERROR(VLOOKUP(A25,Futtermittel!$A$3:$AR$386,11,0),"") ->  | P25: =IFERROR(VLOOKUP(A25,Futtermittel!$A$3:$AR$386,43,0),"") ->  | Q25: =IFERROR(VLOOKUP(A25,Futtermittel!$A$3:$AR$386,12,0),"") ->  | R25: =IFERROR(VLOOKUP(A25,Futtermittel!$A$3:$AR$386,17,0),"") ->  | S25: =IFERROR(VLOOKUP(A25,Futtermittel!$A$3:$AR$386,20,0),"") ->  | T25: =IFERROR(VLOOKUP(A25,Futtermittel!$A$3:$AR$386,21,0),"") ->  | U25: =IFERROR(VLOOKUP(A25,Futtermittel!$A$3:$AR$386,23,0),"") ->  | V25: =IFERROR(VLOOKUP(A25,Futtermittel!$A$3:$AR$386,22,0),"") ->  | W25: =IFERROR(VLOOKUP(A25,Futtermittel!$A$3:$AR$386,24,0),"") ->  | X25: =IFERROR(VLOOKUP(A25,Futtermittel!$A$3:$AR$386,25,0),"") ->  | Y25: =IFERROR(VLOOKUP(A25,Futtermittel!$A$3:$AR$386,26,0),"") ->  | Z25: =IFERROR(VLOOKUP(A25,Futtermittel!$A$3:$AR$386,27,0),"") ->  | AA25: =IFERROR(VLOOKUP(A25,Futtermittel!$A$3:$AR$386,29,0),"") ->  | AB25: =IFERROR(VLOOKUP(A25,Futtermittel!$A$3:$AR$386,30,0),"") ->  | AC25: =IFERROR(VLOOKUP(A25,Futtermittel!$A$3:$AR$386,31,0),"") ->  | AD25: =IFERROR(VLOOKUP(A25,Futtermittel!$A$3:$AR$386,32,0),"") ->  | AE25: =IFERROR(VLOOKUP(A25,Futtermittel!$A$3:$AR$386,33,0),"") ->  | AF25: =IFERROR(VLOOKUP(A25,Futtermittel!$A$3:$AR$386,34,0),"") ->  | AG25: =IFERROR(VLOOKUP(A25,Futtermittel!$A$3:$AR$386,35,0),"") ->  | AH25: =IFERROR(VLOOKUP(A25,Futtermittel!$A$3:$AR$386,16,0),"") ->  | AI25: =IFERROR(VLOOKUP(A25,Futtermittel!$A$3:$AR$386,41,0),"") ->  | AJ25: =IFERROR(VLOOKUP(A25,Futtermittel!$A$3:$AR$386,42,0),"") ->  | AK25: =IF(C25="GF",4.4,IF(C25="KF",6,IF(C25="SF",6,""))) ->  | AL25: =IFERROR(VLOOKUP(A25,Futtermittel!$A$3:$AR$386,15,0),"") ->  | AM25: =IFERROR(VLOOKUP(A25,Futtermittel!$A$3:$AR$386,37,0),"") ->  | AN25: =IFERROR(VLOOKUP(A25,Futtermittel!$A$3:$AR$386,38,0),"") ->  | AO25: =IFERROR(VLOOKUP(A25,Futtermittel!$A$3:$AR$386,39,0),"") ->  | AP25: =IFERROR(VLOOKUP(A25,Futtermittel!$A$3:$AR$386,40,0),"") ->  | AQ25: =IFERROR(VLOOKUP(A25,Futtermittel!$A$3:$AR$386,15,0),"") ->  | AR25: =IFERROR(VLOOKUP(A25,Futtermittel!$A$3:$AR$386,19,0),"") ->  | AS25: =IFERROR(VLOOKUP(A25,Futtermittel!$A$3:$AR$386,36,0),"") -> 
B26: =IFERROR(VLOOKUP(A26,Futtermittel!$A$3:$AR$386,2,0),"") ->  | C26: =IFERROR(VLOOKUP(A26,Futtermittel!$A$3:$AR$386,28,0),"") ->  | D26: =IFERROR(VLOOKUP(A26,Futtermittel!$A$3:$AR$386,3,0),"") ->  | E26: =IFERROR(VLOOKUP(A26,Futtermittel!$A$3:$AR$386,4,0),"") ->  | F26: =IFERROR(VLOOKUP(A26,Futtermittel!$A$3:$AR$386,5,0),"") ->  | G26: =IFERROR(VLOOKUP(A26,Futtermittel!$A$3:$AR$386,6,0),"") ->  | H26: =IFERROR(VLOOKUP(A26,Futtermittel!$A$3:$AR$386,7,0),"") ->  | I26: =IFERROR(VLOOKUP(A26,Futtermittel!$A$3:$AR$386,8,0),"") ->  | J26: =IFERROR(VLOOKUP(A26,Futtermittel!$A$3:$AR$386,13,0),"") ->  | K26: =IFERROR(VLOOKUP(A26,Futtermittel!$A$3:$AR$386,18,0),"") ->  | L26: =IFERROR(VLOOKUP(A26,Futtermittel!$A$3:$AR$386,9,0),"") ->  | M26: =IFERROR(VLOOKUP(A26,Futtermittel!$A$3:$AR$386,14,0),"") ->  | N26: =IFERROR(VLOOKUP(A26,Futtermittel!$A$3:$AR$386,10,0),"") ->  | O26: =IFERROR(VLOOKUP(A26,Futtermittel!$A$3:$AR$386,11,0),"") ->  | P26: =IFERROR(VLOOKUP(A26,Futtermittel!$A$3:$AR$386,43,0),"") ->  | Q26: =IFERROR(VLOOKUP(A26,Futtermittel!$A$3:$AR$386,12,0),"") ->  | R26: =IFERROR(VLOOKUP(A26,Futtermittel!$A$3:$AR$386,17,0),"") ->  | S26: =IFERROR(VLOOKUP(A26,Futtermittel!$A$3:$AR$386,20,0),"") ->  | T26: =IFERROR(VLOOKUP(A26,Futtermittel!$A$3:$AR$386,21,0),"") ->  | U26: =IFERROR(VLOOKUP(A26,Futtermittel!$A$3:$AR$386,23,0),"") ->  | V26: =IFERROR(VLOOKUP(A26,Futtermittel!$A$3:$AR$386,22,0),"") ->  | W26: =IFERROR(VLOOKUP(A26,Futtermittel!$A$3:$AR$386,24,0),"") ->  | X26: =IFERROR(VLOOKUP(A26,Futtermittel!$A$3:$AR$386,25,0),"") ->  | Y26: =IFERROR(VLOOKUP(A26,Futtermittel!$A$3:$AR$386,26,0),"") ->  | Z26: =IFERROR(VLOOKUP(A26,Futtermittel!$A$3:$AR$386,27,0),"") ->  | AA26: =IFERROR(VLOOKUP(A26,Futtermittel!$A$3:$AR$386,29,0),"") ->  | AB26: =IFERROR(VLOOKUP(A26,Futtermittel!$A$3:$AR$386,30,0),"") ->  | AC26: =IFERROR(VLOOKUP(A26,Futtermittel!$A$3:$AR$386,31,0),"") ->  | AD26: =IFERROR(VLOOKUP(A26,Futtermittel!$A$3:$AR$386,32,0),"") ->  | AE26: =IFERROR(VLOOKUP(A26,Futtermittel!$A$3:$AR$386,33,0),"") ->  | AF26: =IFERROR(VLOOKUP(A26,Futtermittel!$A$3:$AR$386,34,0),"") ->  | AG26: =IFERROR(VLOOKUP(A26,Futtermittel!$A$3:$AR$386,35,0),"") ->  | AH26: =IFERROR(VLOOKUP(A26,Futtermittel!$A$3:$AR$386,16,0),"") ->  | AI26: =IFERROR(VLOOKUP(A26,Futtermittel!$A$3:$AR$386,41,0),"") ->  | AJ26: =IFERROR(VLOOKUP(A26,Futtermittel!$A$3:$AR$386,42,0),"") ->  | AK26: =IF(C26="GF",4.4,IF(C26="KF",6,IF(C26="SF",6,""))) ->  | AL26: =IFERROR(VLOOKUP(A26,Futtermittel!$A$3:$AR$386,15,0),"") ->  | AM26: =IFERROR(VLOOKUP(A26,Futtermittel!$A$3:$AR$386,37,0),"") ->  | AN26: =IFERROR(VLOOKUP(A26,Futtermittel!$A$3:$AR$386,38,0),"") ->  | AO26: =IFERROR(VLOOKUP(A26,Futtermittel!$A$3:$AR$386,39,0),"") ->  | AP26: =IFERROR(VLOOKUP(A26,Futtermittel!$A$3:$AR$386,40,0),"") ->  | AQ26: =IFERROR(VLOOKUP(A26,Futtermittel!$A$3:$AR$386,15,0),"") ->  | AR26: =IFERROR(VLOOKUP(A26,Futtermittel!$A$3:$AR$386,19,0),"") ->  | AS26: =IFERROR(VLOOKUP(A26,Futtermittel!$A$3:$AR$386,36,0),"") -> 
B27: =IFERROR(VLOOKUP(A27,Futtermittel!$A$3:$AR$386,2,0),"") ->  | C27: =IFERROR(VLOOKUP(A27,Futtermittel!$A$3:$AR$386,28,0),"") ->  | D27: =IFERROR(VLOOKUP(A27,Futtermittel!$A$3:$AR$386,3,0),"") ->  | E27: =IFERROR(VLOOKUP(A27,Futtermittel!$A$3:$AR$386,4,0),"") ->  | F27: =IFERROR(VLOOKUP(A27,Futtermittel!$A$3:$AR$386,5,0),"") ->  | G27: =IFERROR(VLOOKUP(A27,Futtermittel!$A$3:$AR$386,6,0),"") ->  | H27: =IFERROR(VLOOKUP(A27,Futtermittel!$A$3:$AR$386,7,0),"") ->  | I27: =IFERROR(VLOOKUP(A27,Futtermittel!$A$3:$AR$386,8,0),"") ->  | J27: =IFERROR(VLOOKUP(A27,Futtermittel!$A$3:$AR$386,13,0),"") ->  | K27: =IFERROR(VLOOKUP(A27,Futtermittel!$A$3:$AR$386,18,0),"") ->  | L27: =IFERROR(VLOOKUP(A27,Futtermittel!$A$3:$AR$386,9,0),"") ->  | M27: =IFERROR(VLOOKUP(A27,Futtermittel!$A$3:$AR$386,14,0),"") ->  | N27: =IFERROR(VLOOKUP(A27,Futtermittel!$A$3:$AR$386,10,0),"") ->  | O27: =IFERROR(VLOOKUP(A27,Futtermittel!$A$3:$AR$386,11,0),"") ->  | P27: =IFERROR(VLOOKUP(A27,Futtermittel!$A$3:$AR$386,43,0),"") ->  | Q27: =IFERROR(VLOOKUP(A27,Futtermittel!$A$3:$AR$386,12,0),"") ->  | R27: =IFERROR(VLOOKUP(A27,Futtermittel!$A$3:$AR$386,17,0),"") ->  | S27: =IFERROR(VLOOKUP(A27,Futtermittel!$A$3:$AR$386,20,0),"") ->  | T27: =IFERROR(VLOOKUP(A27,Futtermittel!$A$3:$AR$386,21,0),"") ->  | U27: =IFERROR(VLOOKUP(A27,Futtermittel!$A$3:$AR$386,23,0),"") ->  | V27: =IFERROR(VLOOKUP(A27,Futtermittel!$A$3:$AR$386,22,0),"") ->  | W27: =IFERROR(VLOOKUP(A27,Futtermittel!$A$3:$AR$386,24,0),"") ->  | X27: =IFERROR(VLOOKUP(A27,Futtermittel!$A$3:$AR$386,25,0),"") ->  | Y27: =IFERROR(VLOOKUP(A27,Futtermittel!$A$3:$AR$386,26,0),"") ->  | Z27: =IFERROR(VLOOKUP(A27,Futtermittel!$A$3:$AR$386,27,0),"") ->  | AA27: =IFERROR(VLOOKUP(A27,Futtermittel!$A$3:$AR$386,29,0),"") ->  | AB27: =IFERROR(VLOOKUP(A27,Futtermittel!$A$3:$AR$386,30,0),"") ->  | AC27: =IFERROR(VLOOKUP(A27,Futtermittel!$A$3:$AR$386,31,0),"") ->  | AD27: =IFERROR(VLOOKUP(A27,Futtermittel!$A$3:$AR$386,32,0),"") ->  | AE27: =IFERROR(VLOOKUP(A27,Futtermittel!$A$3:$AR$386,33,0),"") ->  | AF27: =IFERROR(VLOOKUP(A27,Futtermittel!$A$3:$AR$386,34,0),"") ->  | AG27: =IFERROR(VLOOKUP(A27,Futtermittel!$A$3:$AR$386,35,0),"") ->  | AH27: =IFERROR(VLOOKUP(A27,Futtermittel!$A$3:$AR$386,16,0),"") ->  | AI27: =IFERROR(VLOOKUP(A27,Futtermittel!$A$3:$AR$386,41,0),"") ->  | AJ27: =IFERROR(VLOOKUP(A27,Futtermittel!$A$3:$AR$386,42,0),"") ->  | AL27: =IFERROR(VLOOKUP(A27,Futtermittel!$A$3:$AR$386,15,0),"") ->  | AM27: =IFERROR(VLOOKUP(A27,Futtermittel!$A$3:$AR$386,37,0),"") ->  | AN27: =IFERROR(VLOOKUP(A27,Futtermittel!$A$3:$AR$386,38,0),"") ->  | AO27: =IFERROR(VLOOKUP(A27,Futtermittel!$A$3:$AR$386,39,0),"") ->  | AP27: =IFERROR(VLOOKUP(A27,Futtermittel!$A$3:$AR$386,40,0),"") ->  | AQ27: =IFERROR(VLOOKUP(A27,Futtermittel!$A$3:$AR$386,15,0),"") ->  | AR27: =IFERROR(VLOOKUP(A27,Futtermittel!$A$3:$AR$386,19,0),"") ->  | AS27: =IFERROR(VLOOKUP(A27,Futtermittel!$A$3:$AR$386,36,0),"") -> 
B28: =IFERROR(VLOOKUP(A28,Futtermittel!$A$3:$AR$386,2,0),"") ->  | C28: =IFERROR(VLOOKUP(A28,Futtermittel!$A$3:$AR$386,28,0),"") ->  | D28: =IFERROR(VLOOKUP(A28,Futtermittel!$A$3:$AR$386,3,0),"") ->  | E28: =IFERROR(VLOOKUP(A28,Futtermittel!$A$3:$AR$386,4,0),"") ->  | F28: =IFERROR(VLOOKUP(A28,Futtermittel!$A$3:$AR$386,5,0),"") ->  | G28: =IFERROR(VLOOKUP(A28,Futtermittel!$A$3:$AR$386,6,0),"") ->  | H28: =IFERROR(VLOOKUP(A28,Futtermittel!$A$3:$AR$386,7,0),"") ->  | I28: =IFERROR(VLOOKUP(A28,Futtermittel!$A$3:$AR$386,8,0),"") ->  | J28: =IFERROR(VLOOKUP(A28,Futtermittel!$A$3:$AR$386,13,0),"") ->  | K28: =IFERROR(VLOOKUP(A28,Futtermittel!$A$3:$AR$386,18,0),"") ->  | L28: =IFERROR(VLOOKUP(A28,Futtermittel!$A$3:$AR$386,9,0),"") ->  | M28: =IFERROR(VLOOKUP(A28,Futtermittel!$A$3:$AR$386,14,0),"") ->  | N28: =IFERROR(VLOOKUP(A28,Futtermittel!$A$3:$AR$386,10,0),"") ->  | O28: =IFERROR(VLOOKUP(A28,Futtermittel!$A$3:$AR$386,11,0),"") ->  | P28: =IFERROR(VLOOKUP(A28,Futtermittel!$A$3:$AR$386,43,0),"") ->  | Q28: =IFERROR(VLOOKUP(A28,Futtermittel!$A$3:$AR$386,12,0),"") ->  | R28: =IFERROR(VLOOKUP(A28,Futtermittel!$A$3:$AR$386,17,0),"") ->  | S28: =IFERROR(VLOOKUP(A28,Futtermittel!$A$3:$AR$386,20,0),"") ->  | T28: =IFERROR(VLOOKUP(A28,Futtermittel!$A$3:$AR$386,21,0),"") ->  | U28: =IFERROR(VLOOKUP(A28,Futtermittel!$A$3:$AR$386,23,0),"") ->  | V28: =IFERROR(VLOOKUP(A28,Futtermittel!$A$3:$AR$386,22,0),"") ->  | W28: =IFERROR(VLOOKUP(A28,Futtermittel!$A$3:$AR$386,24,0),"") ->  | X28: =IFERROR(VLOOKUP(A28,Futtermittel!$A$3:$AR$386,25,0),"") ->  | Y28: =IFERROR(VLOOKUP(A28,Futtermittel!$A$3:$AR$386,26,0),"") ->  | Z28: =IFERROR(VLOOKUP(A28,Futtermittel!$A$3:$AR$386,27,0),"") ->  | AA28: =IFERROR(VLOOKUP(A28,Futtermittel!$A$3:$AR$386,29,0),"") ->  | AB28: =IFERROR(VLOOKUP(A28,Futtermittel!$A$3:$AR$386,30,0),"") ->  | AC28: =IFERROR(VLOOKUP(A28,Futtermittel!$A$3:$AR$386,31,0),"") ->  | AD28: =IFERROR(VLOOKUP(A28,Futtermittel!$A$3:$AR$386,32,0),"") ->  | AE28: =IFERROR(VLOOKUP(A28,Futtermittel!$A$3:$AR$386,33,0),"") ->  | AF28: =IFERROR(VLOOKUP(A28,Futtermittel!$A$3:$AR$386,34,0),"") ->  | AG28: =IFERROR(VLOOKUP(A28,Futtermittel!$A$3:$AR$386,35,0),"") ->  | AH28: =IFERROR(VLOOKUP(A28,Futtermittel!$A$3:$AR$386,16,0),"") ->  | AI28: =IFERROR(VLOOKUP(A28,Futtermittel!$A$3:$AR$386,41,0),"") ->  | AJ28: =IFERROR(VLOOKUP(A28,Futtermittel!$A$3:$AR$386,42,0),"") ->  | AL28: =IFERROR(VLOOKUP(A28,Futtermittel!$A$3:$AR$386,15,0),"") ->  | AM28: =IFERROR(VLOOKUP(A28,Futtermittel!$A$3:$AR$386,37,0),"") ->  | AN28: =IFERROR(VLOOKUP(A28,Futtermittel!$A$3:$AR$386,38,0),"") ->  | AO28: =IFERROR(VLOOKUP(A28,Futtermittel!$A$3:$AR$386,39,0),"") ->  | AP28: =IFERROR(VLOOKUP(A28,Futtermittel!$A$3:$AR$386,40,0),"") ->  | AQ28: =IFERROR(VLOOKUP(A28,Futtermittel!$A$3:$AR$386,15,0),"") ->  | AR28: =IFERROR(VLOOKUP(A28,Futtermittel!$A$3:$AR$386,19,0),"") ->  | AS28: =IFERROR(VLOOKUP(A28,Futtermittel!$A$3:$AR$386,36,0),"") -> 
B29: =IFERROR(VLOOKUP(A29,Futtermittel!$A$3:$AR$386,2,0),"") ->  | C29: =IFERROR(VLOOKUP(A29,Futtermittel!$A$3:$AR$386,28,0),"") ->  | D29: =IFERROR(VLOOKUP(A29,Futtermittel!$A$3:$AR$386,3,0),"") ->  | E29: =IFERROR(VLOOKUP(A29,Futtermittel!$A$3:$AR$386,4,0),"") ->  | F29: =IFERROR(VLOOKUP(A29,Futtermittel!$A$3:$AR$386,5,0),"") ->  | G29: =IFERROR(VLOOKUP(A29,Futtermittel!$A$3:$AR$386,6,0),"") ->  | H29: =IFERROR(VLOOKUP(A29,Futtermittel!$A$3:$AR$386,7,0),"") ->  | I29: =IFERROR(VLOOKUP(A29,Futtermittel!$A$3:$AR$386,8,0),"") ->  | J29: =IFERROR(VLOOKUP(A29,Futtermittel!$A$3:$AR$386,13,0),"") ->  | K29: =IFERROR(VLOOKUP(A29,Futtermittel!$A$3:$AR$386,18,0),"") ->  | L29: =IFERROR(VLOOKUP(A29,Futtermittel!$A$3:$AR$386,9,0),"") ->  | M29: =IFERROR(VLOOKUP(A29,Futtermittel!$A$3:$AR$386,14,0),"") ->  | N29: =IFERROR(VLOOKUP(A29,Futtermittel!$A$3:$AR$386,10,0),"") ->  | O29: =IFERROR(VLOOKUP(A29,Futtermittel!$A$3:$AR$386,11,0),"") ->  | P29: =IFERROR(VLOOKUP(A29,Futtermittel!$A$3:$AR$386,43,0),"") ->  | Q29: =IFERROR(VLOOKUP(A29,Futtermittel!$A$3:$AR$386,12,0),"") ->  | R29: =IFERROR(VLOOKUP(A29,Futtermittel!$A$3:$AR$386,17,0),"") ->  | S29: =IFERROR(VLOOKUP(A29,Futtermittel!$A$3:$AR$386,20,0),"") ->  | T29: =IFERROR(VLOOKUP(A29,Futtermittel!$A$3:$AR$386,21,0),"") ->  | U29: =IFERROR(VLOOKUP(A29,Futtermittel!$A$3:$AR$386,23,0),"") ->  | V29: =IFERROR(VLOOKUP(A29,Futtermittel!$A$3:$AR$386,22,0),"") ->  | W29: =IFERROR(VLOOKUP(A29,Futtermittel!$A$3:$AR$386,24,0),"") ->  | X29: =IFERROR(VLOOKUP(A29,Futtermittel!$A$3:$AR$386,25,0),"") ->  | Y29: =IFERROR(VLOOKUP(A29,Futtermittel!$A$3:$AR$386,26,0),"") ->  | Z29: =IFERROR(VLOOKUP(A29,Futtermittel!$A$3:$AR$386,27,0),"") ->  | AA29: =IFERROR(VLOOKUP(A29,Futtermittel!$A$3:$AR$386,29,0),"") ->  | AB29: =IFERROR(VLOOKUP(A29,Futtermittel!$A$3:$AR$386,30,0),"") ->  | AC29: =IFERROR(VLOOKUP(A29,Futtermittel!$A$3:$AR$386,31,0),"") ->  | AD29: =IFERROR(VLOOKUP(A29,Futtermittel!$A$3:$AR$386,32,0),"") ->  | AE29: =IFERROR(VLOOKUP(A29,Futtermittel!$A$3:$AR$386,33,0),"") ->  | AF29: =IFERROR(VLOOKUP(A29,Futtermittel!$A$3:$AR$386,34,0),"") ->  | AG29: =IFERROR(VLOOKUP(A29,Futtermittel!$A$3:$AR$386,35,0),"") ->  | AH29: =IFERROR(VLOOKUP(A29,Futtermittel!$A$3:$AR$386,16,0),"") ->  | AI29: =IFERROR(VLOOKUP(A29,Futtermittel!$A$3:$AR$386,41,0),"") ->  | AJ29: =IFERROR(VLOOKUP(A29,Futtermittel!$A$3:$AR$386,42,0),"") ->  | AL29: =IFERROR(VLOOKUP(A29,Futtermittel!$A$3:$AR$386,15,0),"") ->  | AM29: =IFERROR(VLOOKUP(A29,Futtermittel!$A$3:$AR$386,37,0),"") ->  | AN29: =IFERROR(VLOOKUP(A29,Futtermittel!$A$3:$AR$386,38,0),"") ->  | AO29: =IFERROR(VLOOKUP(A29,Futtermittel!$A$3:$AR$386,39,0),"") ->  | AP29: =IFERROR(VLOOKUP(A29,Futtermittel!$A$3:$AR$386,40,0),"") ->  | AQ29: =IFERROR(VLOOKUP(A29,Futtermittel!$A$3:$AR$386,15,0),"") ->  | AR29: =IFERROR(VLOOKUP(A29,Futtermittel!$A$3:$AR$386,19,0),"") ->  | AS29: =IFERROR(VLOOKUP(A29,Futtermittel!$A$3:$AR$386,36,0),"") -> 
B30: =IFERROR(VLOOKUP(A30,Futtermittel!$A$3:$AR$386,2,0),"") ->  | C30: =IFERROR(VLOOKUP(A30,Futtermittel!$A$3:$AR$386,28,0),"") ->  | D30: =IFERROR(VLOOKUP(A30,Futtermittel!$A$3:$AR$386,3,0),"") ->  | E30: =IFERROR(VLOOKUP(A30,Futtermittel!$A$3:$AR$386,4,0),"") ->  | F30: =IFERROR(VLOOKUP(A30,Futtermittel!$A$3:$AR$386,5,0),"") ->  | G30: =IFERROR(VLOOKUP(A30,Futtermittel!$A$3:$AR$386,6,0),"") ->  | H30: =IFERROR(VLOOKUP(A30,Futtermittel!$A$3:$AR$386,7,0),"") ->  | I30: =IFERROR(VLOOKUP(A30,Futtermittel!$A$3:$AR$386,8,0),"") ->  | J30: =IFERROR(VLOOKUP(A30,Futtermittel!$A$3:$AR$386,13,0),"") ->  | K30: =IFERROR(VLOOKUP(A30,Futtermittel!$A$3:$AR$386,18,0),"") ->  | L30: =IFERROR(VLOOKUP(A30,Futtermittel!$A$3:$AR$386,9,0),"") ->  | M30: =IFERROR(VLOOKUP(A30,Futtermittel!$A$3:$AR$386,14,0),"") ->  | N30: =IFERROR(VLOOKUP(A30,Futtermittel!$A$3:$AR$386,10,0),"") ->  | O30: =IFERROR(VLOOKUP(A30,Futtermittel!$A$3:$AR$386,11,0),"") ->  | P30: =IFERROR(VLOOKUP(A30,Futtermittel!$A$3:$AR$386,43,0),"") ->  | Q30: =IFERROR(VLOOKUP(A30,Futtermittel!$A$3:$AR$386,12,0),"") ->  | R30: =IFERROR(VLOOKUP(A30,Futtermittel!$A$3:$AR$386,17,0),"") ->  | S30: =IFERROR(VLOOKUP(A30,Futtermittel!$A$3:$AR$386,20,0),"") ->  | T30: =IFERROR(VLOOKUP(A30,Futtermittel!$A$3:$AR$386,21,0),"") ->  | U30: =IFERROR(VLOOKUP(A30,Futtermittel!$A$3:$AR$386,23,0),"") ->  | V30: =IFERROR(VLOOKUP(A30,Futtermittel!$A$3:$AR$386,22,0),"") ->  | W30: =IFERROR(VLOOKUP(A30,Futtermittel!$A$3:$AR$386,24,0),"") ->  | X30: =IFERROR(VLOOKUP(A30,Futtermittel!$A$3:$AR$386,25,0),"") ->  | Y30: =IFERROR(VLOOKUP(A30,Futtermittel!$A$3:$AR$386,26,0),"") ->  | Z30: =IFERROR(VLOOKUP(A30,Futtermittel!$A$3:$AR$386,27,0),"") ->  | AA30: =IFERROR(VLOOKUP(A30,Futtermittel!$A$3:$AR$386,29,0),"") ->  | AB30: =IFERROR(VLOOKUP(A30,Futtermittel!$A$3:$AR$386,30,0),"") ->  | AC30: =IFERROR(VLOOKUP(A30,Futtermittel!$A$3:$AR$386,31,0),"") ->  | AD30: =IFERROR(VLOOKUP(A30,Futtermittel!$A$3:$AR$386,32,0),"") ->  | AE30: =IFERROR(VLOOKUP(A30,Futtermittel!$A$3:$AR$386,33,0),"") ->  | AF30: =IFERROR(VLOOKUP(A30,Futtermittel!$A$3:$AR$386,34,0),"") ->  | AG30: =IFERROR(VLOOKUP(A30,Futtermittel!$A$3:$AR$386,35,0),"") ->  | AH30: =IFERROR(VLOOKUP(A30,Futtermittel!$A$3:$AR$386,16,0),"") ->  | AI30: =IFERROR(VLOOKUP(A30,Futtermittel!$A$3:$AR$386,41,0),"") ->  | AJ30: =IFERROR(VLOOKUP(A30,Futtermittel!$A$3:$AR$386,42,0),"") ->  | AL30: =IFERROR(VLOOKUP(A30,Futtermittel!$A$3:$AR$386,15,0),"") ->  | AM30: =IFERROR(VLOOKUP(A30,Futtermittel!$A$3:$AR$386,37,0),"") ->  | AN30: =IFERROR(VLOOKUP(A30,Futtermittel!$A$3:$AR$386,38,0),"") ->  | AO30: =IFERROR(VLOOKUP(A30,Futtermittel!$A$3:$AR$386,39,0),"") ->  | AP30: =IFERROR(VLOOKUP(A30,Futtermittel!$A$3:$AR$386,40,0),"") ->  | AQ30: =IFERROR(VLOOKUP(A30,Futtermittel!$A$3:$AR$386,15,0),"") ->  | AR30: =IFERROR(VLOOKUP(A30,Futtermittel!$A$3:$AR$386,19,0),"") ->  | AS30: =IFERROR(VLOOKUP(A30,Futtermittel!$A$3:$AR$386,36,0),"") -> 
B31: =IFERROR(VLOOKUP(A31,Futtermittel!$A$3:$AR$386,2,0),"") ->  | C31: =IFERROR(VLOOKUP(A31,Futtermittel!$A$3:$AR$386,28,0),"") ->  | D31: =IFERROR(VLOOKUP(A31,Futtermittel!$A$3:$AR$386,3,0),"") ->  | E31: =IFERROR(VLOOKUP(A31,Futtermittel!$A$3:$AR$386,4,0),"") ->  | F31: =IFERROR(VLOOKUP(A31,Futtermittel!$A$3:$AR$386,5,0),"") ->  | G31: =IFERROR(VLOOKUP(A31,Futtermittel!$A$3:$AR$386,6,0),"") ->  | H31: =IFERROR(VLOOKUP(A31,Futtermittel!$A$3:$AR$386,7,0),"") ->  | I31: =IFERROR(VLOOKUP(A31,Futtermittel!$A$3:$AR$386,8,0),"") ->  | J31: =IFERROR(VLOOKUP(A31,Futtermittel!$A$3:$AR$386,13,0),"") ->  | K31: =IFERROR(VLOOKUP(A31,Futtermittel!$A$3:$AR$386,18,0),"") ->  | L31: =IFERROR(VLOOKUP(A31,Futtermittel!$A$3:$AR$386,9,0),"") ->  | M31: =IFERROR(VLOOKUP(A31,Futtermittel!$A$3:$AR$386,14,0),"") ->  | N31: =IFERROR(VLOOKUP(A31,Futtermittel!$A$3:$AR$386,10,0),"") ->  | O31: =IFERROR(VLOOKUP(A31,Futtermittel!$A$3:$AR$386,11,0),"") ->  | P31: =IFERROR(VLOOKUP(A31,Futtermittel!$A$3:$AR$386,43,0),"") ->  | Q31: =IFERROR(VLOOKUP(A31,Futtermittel!$A$3:$AR$386,12,0),"") ->  | R31: =IFERROR(VLOOKUP(A31,Futtermittel!$A$3:$AR$386,17,0),"") ->  | S31: =IFERROR(VLOOKUP(A31,Futtermittel!$A$3:$AR$386,20,0),"") ->  | T31: =IFERROR(VLOOKUP(A31,Futtermittel!$A$3:$AR$386,21,0),"") ->  | U31: =IFERROR(VLOOKUP(A31,Futtermittel!$A$3:$AR$386,23,0),"") ->  | V31: =IFERROR(VLOOKUP(A31,Futtermittel!$A$3:$AR$386,22,0),"") ->  | W31: =IFERROR(VLOOKUP(A31,Futtermittel!$A$3:$AR$386,24,0),"") ->  | X31: =IFERROR(VLOOKUP(A31,Futtermittel!$A$3:$AR$386,25,0),"") ->  | Y31: =IFERROR(VLOOKUP(A31,Futtermittel!$A$3:$AR$386,26,0),"") ->  | Z31: =IFERROR(VLOOKUP(A31,Futtermittel!$A$3:$AR$386,27,0),"") ->  | AA31: =IFERROR(VLOOKUP(A31,Futtermittel!$A$3:$AR$386,29,0),"") ->  | AB31: =IFERROR(VLOOKUP(A31,Futtermittel!$A$3:$AR$386,30,0),"") ->  | AC31: =IFERROR(VLOOKUP(A31,Futtermittel!$A$3:$AR$386,31,0),"") ->  | AD31: =IFERROR(VLOOKUP(A31,Futtermittel!$A$3:$AR$386,32,0),"") ->  | AE31: =IFERROR(VLOOKUP(A31,Futtermittel!$A$3:$AR$386,33,0),"") ->  | AF31: =IFERROR(VLOOKUP(A31,Futtermittel!$A$3:$AR$386,34,0),"") ->  | AG31: =IFERROR(VLOOKUP(A31,Futtermittel!$A$3:$AR$386,35,0),"") ->  | AH31: =IFERROR(VLOOKUP(A31,Futtermittel!$A$3:$AR$386,16,0),"") ->  | AI31: =IFERROR(VLOOKUP(A31,Futtermittel!$A$3:$AR$386,41,0),"") ->  | AJ31: =IFERROR(VLOOKUP(A31,Futtermittel!$A$3:$AR$386,42,0),"") ->  | AL31: =IFERROR(VLOOKUP(A31,Futtermittel!$A$3:$AR$386,15,0),"") ->  | AM31: =IFERROR(VLOOKUP(A31,Futtermittel!$A$3:$AR$386,37,0),"") ->  | AN31: =IFERROR(VLOOKUP(A31,Futtermittel!$A$3:$AR$386,38,0),"") ->  | AO31: =IFERROR(VLOOKUP(A31,Futtermittel!$A$3:$AR$386,39,0),"") ->  | AP31: =IFERROR(VLOOKUP(A31,Futtermittel!$A$3:$AR$386,40,0),"") ->  | AQ31: =IFERROR(VLOOKUP(A31,Futtermittel!$A$3:$AR$386,15,0),"") ->  | AR31: =IFERROR(VLOOKUP(A31,Futtermittel!$A$3:$AR$386,19,0),"") ->  | AS31: =IFERROR(VLOOKUP(A31,Futtermittel!$A$3:$AR$386,36,0),"") -> 
B32: =IFERROR(VLOOKUP(A32,Futtermittel!$A$3:$AR$386,2,0),"") ->  | C32: =IFERROR(VLOOKUP(A32,Futtermittel!$A$3:$AR$386,28,0),"") ->  | D32: =IFERROR(VLOOKUP(A32,Futtermittel!$A$3:$AR$386,3,0),"") ->  | E32: =IFERROR(VLOOKUP(A32,Futtermittel!$A$3:$AR$386,4,0),"") ->  | F32: =IFERROR(VLOOKUP(A32,Futtermittel!$A$3:$AR$386,5,0),"") ->  | G32: =IFERROR(VLOOKUP(A32,Futtermittel!$A$3:$AR$386,6,0),"") ->  | H32: =IFERROR(VLOOKUP(A32,Futtermittel!$A$3:$AR$386,7,0),"") ->  | I32: =IFERROR(VLOOKUP(A32,Futtermittel!$A$3:$AR$386,8,0),"") ->  | J32: =IFERROR(VLOOKUP(A32,Futtermittel!$A$3:$AR$386,13,0),"") ->  | K32: =IFERROR(VLOOKUP(A32,Futtermittel!$A$3:$AR$386,18,0),"") ->  | L32: =IFERROR(VLOOKUP(A32,Futtermittel!$A$3:$AR$386,9,0),"") ->  | M32: =IFERROR(VLOOKUP(A32,Futtermittel!$A$3:$AR$386,14,0),"") ->  | N32: =IFERROR(VLOOKUP(A32,Futtermittel!$A$3:$AR$386,10,0),"") ->  | O32: =IFERROR(VLOOKUP(A32,Futtermittel!$A$3:$AR$386,11,0),"") ->  | P32: =IFERROR(VLOOKUP(A32,Futtermittel!$A$3:$AR$386,43,0),"") ->  | Q32: =IFERROR(VLOOKUP(A32,Futtermittel!$A$3:$AR$386,12,0),"") ->  | R32: =IFERROR(VLOOKUP(A32,Futtermittel!$A$3:$AR$386,17,0),"") ->  | S32: =IFERROR(VLOOKUP(A32,Futtermittel!$A$3:$AR$386,20,0),"") ->  | T32: =IFERROR(VLOOKUP(A32,Futtermittel!$A$3:$AR$386,21,0),"") ->  | U32: =IFERROR(VLOOKUP(A32,Futtermittel!$A$3:$AR$386,23,0),"") ->  | V32: =IFERROR(VLOOKUP(A32,Futtermittel!$A$3:$AR$386,22,0),"") ->  | W32: =IFERROR(VLOOKUP(A32,Futtermittel!$A$3:$AR$386,24,0),"") ->  | X32: =IFERROR(VLOOKUP(A32,Futtermittel!$A$3:$AR$386,25,0),"") ->  | Y32: =IFERROR(VLOOKUP(A32,Futtermittel!$A$3:$AR$386,26,0),"") ->  | Z32: =IFERROR(VLOOKUP(A32,Futtermittel!$A$3:$AR$386,27,0),"") ->  | AA32: =IFERROR(VLOOKUP(A32,Futtermittel!$A$3:$AR$386,29,0),"") ->  | AB32: =IFERROR(VLOOKUP(A32,Futtermittel!$A$3:$AR$386,30,0),"") ->  | AC32: =IFERROR(VLOOKUP(A32,Futtermittel!$A$3:$AR$386,31,0),"") ->  | AD32: =IFERROR(VLOOKUP(A32,Futtermittel!$A$3:$AR$386,32,0),"") ->  | AE32: =IFERROR(VLOOKUP(A32,Futtermittel!$A$3:$AR$386,33,0),"") ->  | AF32: =IFERROR(VLOOKUP(A32,Futtermittel!$A$3:$AR$386,34,0),"") ->  | AG32: =IFERROR(VLOOKUP(A32,Futtermittel!$A$3:$AR$386,35,0),"") ->  | AH32: =IFERROR(VLOOKUP(A32,Futtermittel!$A$3:$AR$386,16,0),"") ->  | AI32: =IFERROR(VLOOKUP(A32,Futtermittel!$A$3:$AR$386,41,0),"") ->  | AJ32: =IFERROR(VLOOKUP(A32,Futtermittel!$A$3:$AR$386,42,0),"") ->  | AL32: =IFERROR(VLOOKUP(A32,Futtermittel!$A$3:$AR$386,15,0),"") ->  | AM32: =IFERROR(VLOOKUP(A32,Futtermittel!$A$3:$AR$386,37,0),"") ->  | AN32: =IFERROR(VLOOKUP(A32,Futtermittel!$A$3:$AR$386,38,0),"") ->  | AO32: =IFERROR(VLOOKUP(A32,Futtermittel!$A$3:$AR$386,39,0),"") ->  | AP32: =IFERROR(VLOOKUP(A32,Futtermittel!$A$3:$AR$386,40,0),"") ->  | AQ32: =IFERROR(VLOOKUP(A32,Futtermittel!$A$3:$AR$386,15,0),"") ->  | AR32: =IFERROR(VLOOKUP(A32,Futtermittel!$A$3:$AR$386,19,0),"") ->  | AS32: =IFERROR(VLOOKUP(A32,Futtermittel!$A$3:$AR$386,36,0),"") -> 
B33: =IFERROR(VLOOKUP(A33,Futtermittel!$A$3:$AR$386,2,0),"") ->  | C33: =IFERROR(VLOOKUP(A33,Futtermittel!$A$3:$AR$386,28,0),"") ->  | D33: =IFERROR(VLOOKUP(A33,Futtermittel!$A$3:$AR$386,3,0),"") ->  | E33: =IFERROR(VLOOKUP(A33,Futtermittel!$A$3:$AR$386,4,0),"") ->  | F33: =IFERROR(VLOOKUP(A33,Futtermittel!$A$3:$AR$386,5,0),"") ->  | G33: =IFERROR(VLOOKUP(A33,Futtermittel!$A$3:$AR$386,6,0),"") ->  | H33: =IFERROR(VLOOKUP(A33,Futtermittel!$A$3:$AR$386,7,0),"") ->  | I33: =IFERROR(VLOOKUP(A33,Futtermittel!$A$3:$AR$386,8,0),"") ->  | J33: =IFERROR(VLOOKUP(A33,Futtermittel!$A$3:$AR$386,13,0),"") ->  | K33: =IFERROR(VLOOKUP(A33,Futtermittel!$A$3:$AR$386,18,0),"") ->  | L33: =IFERROR(VLOOKUP(A33,Futtermittel!$A$3:$AR$386,9,0),"") ->  | M33: =IFERROR(VLOOKUP(A33,Futtermittel!$A$3:$AR$386,14,0),"") ->  | N33: =IFERROR(VLOOKUP(A33,Futtermittel!$A$3:$AR$386,10,0),"") ->  | O33: =IFERROR(VLOOKUP(A33,Futtermittel!$A$3:$AR$386,11,0),"") ->  | P33: =IFERROR(VLOOKUP(A33,Futtermittel!$A$3:$AR$386,43,0),"") ->  | Q33: =IFERROR(VLOOKUP(A33,Futtermittel!$A$3:$AR$386,12,0),"") ->  | R33: =IFERROR(VLOOKUP(A33,Futtermittel!$A$3:$AR$386,17,0),"") ->  | S33: =IFERROR(VLOOKUP(A33,Futtermittel!$A$3:$AR$386,20,0),"") ->  | T33: =IFERROR(VLOOKUP(A33,Futtermittel!$A$3:$AR$386,21,0),"") ->  | U33: =IFERROR(VLOOKUP(A33,Futtermittel!$A$3:$AR$386,23,0),"") ->  | V33: =IFERROR(VLOOKUP(A33,Futtermittel!$A$3:$AR$386,22,0),"") ->  | W33: =IFERROR(VLOOKUP(A33,Futtermittel!$A$3:$AR$386,24,0),"") ->  | X33: =IFERROR(VLOOKUP(A33,Futtermittel!$A$3:$AR$386,25,0),"") ->  | Y33: =IFERROR(VLOOKUP(A33,Futtermittel!$A$3:$AR$386,26,0),"") ->  | Z33: =IFERROR(VLOOKUP(A33,Futtermittel!$A$3:$AR$386,27,0),"") ->  | AA33: =IFERROR(VLOOKUP(A33,Futtermittel!$A$3:$AR$386,29,0),"") ->  | AB33: =IFERROR(VLOOKUP(A33,Futtermittel!$A$3:$AR$386,30,0),"") ->  | AC33: =IFERROR(VLOOKUP(A33,Futtermittel!$A$3:$AR$386,31,0),"") ->  | AD33: =IFERROR(VLOOKUP(A33,Futtermittel!$A$3:$AR$386,32,0),"") ->  | AE33: =IFERROR(VLOOKUP(A33,Futtermittel!$A$3:$AR$386,33,0),"") ->  | AF33: =IFERROR(VLOOKUP(A33,Futtermittel!$A$3:$AR$386,34,0),"") ->  | AG33: =IFERROR(VLOOKUP(A33,Futtermittel!$A$3:$AR$386,35,0),"") ->  | AH33: =IFERROR(VLOOKUP(A33,Futtermittel!$A$3:$AR$386,16,0),"") ->  | AI33: =IFERROR(VLOOKUP(A33,Futtermittel!$A$3:$AR$386,41,0),"") ->  | AJ33: =IFERROR(VLOOKUP(A33,Futtermittel!$A$3:$AR$386,42,0),"") ->  | AL33: =IFERROR(VLOOKUP(A33,Futtermittel!$A$3:$AR$386,15,0),"") ->  | AM33: =IFERROR(VLOOKUP(A33,Futtermittel!$A$3:$AR$386,37,0),"") ->  | AN33: =IFERROR(VLOOKUP(A33,Futtermittel!$A$3:$AR$386,38,0),"") ->  | AO33: =IFERROR(VLOOKUP(A33,Futtermittel!$A$3:$AR$386,39,0),"") ->  | AP33: =IFERROR(VLOOKUP(A33,Futtermittel!$A$3:$AR$386,40,0),"") ->  | AQ33: =IFERROR(VLOOKUP(A33,Futtermittel!$A$3:$AR$386,15,0),"") ->  | AR33: =IFERROR(VLOOKUP(A33,Futtermittel!$A$3:$AR$386,19,0),"") ->  | AS33: =IFERROR(VLOOKUP(A33,Futtermittel!$A$3:$AR$386,36,0),"") -> 
B34: =IFERROR(VLOOKUP(A34,Futtermittel!$A$3:$AR$386,2,0),"") ->  | C34: =IFERROR(VLOOKUP(A34,Futtermittel!$A$3:$AR$386,28,0),"") ->  | D34: =IFERROR(VLOOKUP(A34,Futtermittel!$A$3:$AR$386,3,0),"") ->  | E34: =IFERROR(VLOOKUP(A34,Futtermittel!$A$3:$AR$386,4,0),"") ->  | F34: =IFERROR(VLOOKUP(A34,Futtermittel!$A$3:$AR$386,5,0),"") ->  | G34: =IFERROR(VLOOKUP(A34,Futtermittel!$A$3:$AR$386,6,0),"") ->  | H34: =IFERROR(VLOOKUP(A34,Futtermittel!$A$3:$AR$386,7,0),"") ->  | I34: =IFERROR(VLOOKUP(A34,Futtermittel!$A$3:$AR$386,8,0),"") ->  | J34: =IFERROR(VLOOKUP(A34,Futtermittel!$A$3:$AR$386,13,0),"") ->  | K34: =IFERROR(VLOOKUP(A34,Futtermittel!$A$3:$AR$386,18,0),"") ->  | L34: =IFERROR(VLOOKUP(A34,Futtermittel!$A$3:$AR$386,9,0),"") ->  | M34: =IFERROR(VLOOKUP(A34,Futtermittel!$A$3:$AR$386,14,0),"") ->  | N34: =IFERROR(VLOOKUP(A34,Futtermittel!$A$3:$AR$386,10,0),"") ->  | O34: =IFERROR(VLOOKUP(A34,Futtermittel!$A$3:$AR$386,11,0),"") ->  | P34: =IFERROR(VLOOKUP(A34,Futtermittel!$A$3:$AR$386,43,0),"") ->  | Q34: =IFERROR(VLOOKUP(A34,Futtermittel!$A$3:$AR$386,12,0),"") ->  | R34: =IFERROR(VLOOKUP(A34,Futtermittel!$A$3:$AR$386,17,0),"") ->  | S34: =IFERROR(VLOOKUP(A34,Futtermittel!$A$3:$AR$386,20,0),"") ->  | T34: =IFERROR(VLOOKUP(A34,Futtermittel!$A$3:$AR$386,21,0),"") ->  | U34: =IFERROR(VLOOKUP(A34,Futtermittel!$A$3:$AR$386,23,0),"") ->  | V34: =IFERROR(VLOOKUP(A34,Futtermittel!$A$3:$AR$386,22,0),"") ->  | W34: =IFERROR(VLOOKUP(A34,Futtermittel!$A$3:$AR$386,24,0),"") ->  | X34: =IFERROR(VLOOKUP(A34,Futtermittel!$A$3:$AR$386,25,0),"") ->  | Y34: =IFERROR(VLOOKUP(A34,Futtermittel!$A$3:$AR$386,26,0),"") ->  | Z34: =IFERROR(VLOOKUP(A34,Futtermittel!$A$3:$AR$386,27,0),"") ->  | AA34: =IFERROR(VLOOKUP(A34,Futtermittel!$A$3:$AR$386,29,0),"") ->  | AB34: =IFERROR(VLOOKUP(A34,Futtermittel!$A$3:$AR$386,30,0),"") ->  | AC34: =IFERROR(VLOOKUP(A34,Futtermittel!$A$3:$AR$386,31,0),"") ->  | AD34: =IFERROR(VLOOKUP(A34,Futtermittel!$A$3:$AR$386,32,0),"") ->  | AE34: =IFERROR(VLOOKUP(A34,Futtermittel!$A$3:$AR$386,33,0),"") ->  | AF34: =IFERROR(VLOOKUP(A34,Futtermittel!$A$3:$AR$386,34,0),"") ->  | AG34: =IFERROR(VLOOKUP(A34,Futtermittel!$A$3:$AR$386,35,0),"") ->  | AH34: =IFERROR(VLOOKUP(A34,Futtermittel!$A$3:$AR$386,16,0),"") ->  | AI34: =IFERROR(VLOOKUP(A34,Futtermittel!$A$3:$AR$386,41,0),"") ->  | AJ34: =IFERROR(VLOOKUP(A34,Futtermittel!$A$3:$AR$386,42,0),"") ->  | AL34: =IFERROR(VLOOKUP(A34,Futtermittel!$A$3:$AR$386,15,0),"") ->  | AM34: =IFERROR(VLOOKUP(A34,Futtermittel!$A$3:$AR$386,37,0),"") ->  | AN34: =IFERROR(VLOOKUP(A34,Futtermittel!$A$3:$AR$386,38,0),"") ->  | AO34: =IFERROR(VLOOKUP(A34,Futtermittel!$A$3:$AR$386,39,0),"") ->  | AP34: =IFERROR(VLOOKUP(A34,Futtermittel!$A$3:$AR$386,40,0),"") ->  | AQ34: =IFERROR(VLOOKUP(A34,Futtermittel!$A$3:$AR$386,15,0),"") ->  | AR34: =IFERROR(VLOOKUP(A34,Futtermittel!$A$3:$AR$386,19,0),"") ->  | AS34: =IFERROR(VLOOKUP(A34,Futtermittel!$A$3:$AR$386,36,0),"") -> 
B35: =IFERROR(VLOOKUP(A35,Futtermittel!$A$3:$AR$386,2,0),"") ->  | C35: =IFERROR(VLOOKUP(A35,Futtermittel!$A$3:$AR$386,28,0),"") ->  | D35: =IFERROR(VLOOKUP(A35,Futtermittel!$A$3:$AR$386,3,0),"") ->  | E35: =IFERROR(VLOOKUP(A35,Futtermittel!$A$3:$AR$386,4,0),"") ->  | F35: =IFERROR(VLOOKUP(A35,Futtermittel!$A$3:$AR$386,5,0),"") ->  | G35: =IFERROR(VLOOKUP(A35,Futtermittel!$A$3:$AR$386,6,0),"") ->  | H35: =IFERROR(VLOOKUP(A35,Futtermittel!$A$3:$AR$386,7,0),"") ->  | I35: =IFERROR(VLOOKUP(A35,Futtermittel!$A$3:$AR$386,8,0),"") ->  | J35: =IFERROR(VLOOKUP(A35,Futtermittel!$A$3:$AR$386,13,0),"") ->  | K35: =IFERROR(VLOOKUP(A35,Futtermittel!$A$3:$AR$386,18,0),"") ->  | L35: =IFERROR(VLOOKUP(A35,Futtermittel!$A$3:$AR$386,9,0),"") ->  | M35: =IFERROR(VLOOKUP(A35,Futtermittel!$A$3:$AR$386,14,0),"") ->  | N35: =IFERROR(VLOOKUP(A35,Futtermittel!$A$3:$AR$386,10,0),"") ->  | O35: =IFERROR(VLOOKUP(A35,Futtermittel!$A$3:$AR$386,11,0),"") ->  | P35: =IFERROR(VLOOKUP(A35,Futtermittel!$A$3:$AR$386,43,0),"") ->  | Q35: =IFERROR(VLOOKUP(A35,Futtermittel!$A$3:$AR$386,12,0),"") ->  | R35: =IFERROR(VLOOKUP(A35,Futtermittel!$A$3:$AR$386,17,0),"") ->  | S35: =IFERROR(VLOOKUP(A35,Futtermittel!$A$3:$AR$386,20,0),"") ->  | T35: =IFERROR(VLOOKUP(A35,Futtermittel!$A$3:$AR$386,21,0),"") ->  | U35: =IFERROR(VLOOKUP(A35,Futtermittel!$A$3:$AR$386,23,0),"") ->  | V35: =IFERROR(VLOOKUP(A35,Futtermittel!$A$3:$AR$386,22,0),"") ->  | W35: =IFERROR(VLOOKUP(A35,Futtermittel!$A$3:$AR$386,24,0),"") ->  | X35: =IFERROR(VLOOKUP(A35,Futtermittel!$A$3:$AR$386,25,0),"") ->  | Y35: =IFERROR(VLOOKUP(A35,Futtermittel!$A$3:$AR$386,26,0),"") ->  | Z35: =IFERROR(VLOOKUP(A35,Futtermittel!$A$3:$AR$386,27,0),"") ->  | AA35: =IFERROR(VLOOKUP(A35,Futtermittel!$A$3:$AR$386,29,0),"") ->  | AB35: =IFERROR(VLOOKUP(A35,Futtermittel!$A$3:$AR$386,30,0),"") ->  | AC35: =IFERROR(VLOOKUP(A35,Futtermittel!$A$3:$AR$386,31,0),"") ->  | AD35: =IFERROR(VLOOKUP(A35,Futtermittel!$A$3:$AR$386,32,0),"") ->  | AE35: =IFERROR(VLOOKUP(A35,Futtermittel!$A$3:$AR$386,33,0),"") ->  | AF35: =IFERROR(VLOOKUP(A35,Futtermittel!$A$3:$AR$386,34,0),"") ->  | AG35: =IFERROR(VLOOKUP(A35,Futtermittel!$A$3:$AR$386,35,0),"") ->  | AH35: =IFERROR(VLOOKUP(A35,Futtermittel!$A$3:$AR$386,16,0),"") ->  | AI35: =IFERROR(VLOOKUP(A35,Futtermittel!$A$3:$AR$386,41,0),"") ->  | AJ35: =IFERROR(VLOOKUP(A35,Futtermittel!$A$3:$AR$386,42,0),"") ->  | AL35: =IFERROR(VLOOKUP(A35,Futtermittel!$A$3:$AR$386,15,0),"") ->  | AM35: =IFERROR(VLOOKUP(A35,Futtermittel!$A$3:$AR$386,37,0),"") ->  | AN35: =IFERROR(VLOOKUP(A35,Futtermittel!$A$3:$AR$386,38,0),"") ->  | AO35: =IFERROR(VLOOKUP(A35,Futtermittel!$A$3:$AR$386,39,0),"") ->  | AP35: =IFERROR(VLOOKUP(A35,Futtermittel!$A$3:$AR$386,40,0),"") ->  | AQ35: =IFERROR(VLOOKUP(A35,Futtermittel!$A$3:$AR$386,15,0),"") ->  | AR35: =IFERROR(VLOOKUP(A35,Futtermittel!$A$3:$AR$386,19,0),"") ->  | AS35: =IFERROR(VLOOKUP(A35,Futtermittel!$A$3:$AR$386,36,0),"") -> 
B36: =IFERROR(VLOOKUP(A36,Futtermittel!$A$3:$AR$386,2,0),"") ->  | C36: =IFERROR(VLOOKUP(A36,Futtermittel!$A$3:$AR$386,28,0),"") ->  | D36: =IFERROR(VLOOKUP(A36,Futtermittel!$A$3:$AR$386,3,0),"") ->  | E36: =IFERROR(VLOOKUP(A36,Futtermittel!$A$3:$AR$386,4,0),"") ->  | F36: =IFERROR(VLOOKUP(A36,Futtermittel!$A$3:$AR$386,5,0),"") ->  | G36: =IFERROR(VLOOKUP(A36,Futtermittel!$A$3:$AR$386,6,0),"") ->  | H36: =IFERROR(VLOOKUP(A36,Futtermittel!$A$3:$AR$386,7,0),"") ->  | I36: =IFERROR(VLOOKUP(A36,Futtermittel!$A$3:$AR$386,8,0),"") ->  | J36: =IFERROR(VLOOKUP(A36,Futtermittel!$A$3:$AR$386,13,0),"") ->  | K36: =IFERROR(VLOOKUP(A36,Futtermittel!$A$3:$AR$386,18,0),"") ->  | L36: =IFERROR(VLOOKUP(A36,Futtermittel!$A$3:$AR$386,9,0),"") ->  | M36: =IFERROR(VLOOKUP(A36,Futtermittel!$A$3:$AR$386,14,0),"") ->  | N36: =IFERROR(VLOOKUP(A36,Futtermittel!$A$3:$AR$386,10,0),"") ->  | O36: =IFERROR(VLOOKUP(A36,Futtermittel!$A$3:$AR$386,11,0),"") ->  | P36: =IFERROR(VLOOKUP(A36,Futtermittel!$A$3:$AR$386,43,0),"") ->  | Q36: =IFERROR(VLOOKUP(A36,Futtermittel!$A$3:$AR$386,12,0),"") ->  | R36: =IFERROR(VLOOKUP(A36,Futtermittel!$A$3:$AR$386,17,0),"") ->  | S36: =IFERROR(VLOOKUP(A36,Futtermittel!$A$3:$AR$386,20,0),"") ->  | T36: =IFERROR(VLOOKUP(A36,Futtermittel!$A$3:$AR$386,21,0),"") ->  | U36: =IFERROR(VLOOKUP(A36,Futtermittel!$A$3:$AR$386,23,0),"") ->  | V36: =IFERROR(VLOOKUP(A36,Futtermittel!$A$3:$AR$386,22,0),"") ->  | W36: =IFERROR(VLOOKUP(A36,Futtermittel!$A$3:$AR$386,24,0),"") ->  | X36: =IFERROR(VLOOKUP(A36,Futtermittel!$A$3:$AR$386,25,0),"") ->  | Y36: =IFERROR(VLOOKUP(A36,Futtermittel!$A$3:$AR$386,26,0),"") ->  | Z36: =IFERROR(VLOOKUP(A36,Futtermittel!$A$3:$AR$386,27,0),"") ->  | AA36: =IFERROR(VLOOKUP(A36,Futtermittel!$A$3:$AR$386,29,0),"") ->  | AB36: =IFERROR(VLOOKUP(A36,Futtermittel!$A$3:$AR$386,30,0),"") ->  | AC36: =IFERROR(VLOOKUP(A36,Futtermittel!$A$3:$AR$386,31,0),"") ->  | AD36: =IFERROR(VLOOKUP(A36,Futtermittel!$A$3:$AR$386,32,0),"") ->  | AE36: =IFERROR(VLOOKUP(A36,Futtermittel!$A$3:$AR$386,33,0),"") ->  | AF36: =IFERROR(VLOOKUP(A36,Futtermittel!$A$3:$AR$386,34,0),"") ->  | AG36: =IFERROR(VLOOKUP(A36,Futtermittel!$A$3:$AR$386,35,0),"") ->  | AH36: =IFERROR(VLOOKUP(A36,Futtermittel!$A$3:$AR$386,16,0),"") ->  | AI36: =IFERROR(VLOOKUP(A36,Futtermittel!$A$3:$AR$386,41,0),"") ->  | AJ36: =IFERROR(VLOOKUP(A36,Futtermittel!$A$3:$AR$386,42,0),"") ->  | AL36: =IFERROR(VLOOKUP(A36,Futtermittel!$A$3:$AR$386,15,0),"") ->  | AM36: =IFERROR(VLOOKUP(A36,Futtermittel!$A$3:$AR$386,37,0),"") ->  | AN36: =IFERROR(VLOOKUP(A36,Futtermittel!$A$3:$AR$386,38,0),"") ->  | AO36: =IFERROR(VLOOKUP(A36,Futtermittel!$A$3:$AR$386,39,0),"") ->  | AP36: =IFERROR(VLOOKUP(A36,Futtermittel!$A$3:$AR$386,40,0),"") ->  | AQ36: =IFERROR(VLOOKUP(A36,Futtermittel!$A$3:$AR$386,15,0),"") ->  | AR36: =IFERROR(VLOOKUP(A36,Futtermittel!$A$3:$AR$386,19,0),"") ->  | AS36: =IFERROR(VLOOKUP(A36,Futtermittel!$A$3:$AR$386,36,0),"") -> 

Sheet Futtermittel
A1: Ration | C1: TM/FM | D1: CA | E1: OM | F1: aNDFom | G1: ADFom | H1: OMD | I1: CP | J1: CL | K1: ST | L1: ZU | M1: GE | N1: sidP | O1: sidP- UDP | P1: siDUDP | Q1: RMD | R1: ME | S1: pabKH | T1: Ca | U1: P | V1: Mg | W1: Na | X1: K | Y1: Cl | Z1: S | AA1: DCAB | AB1: Fu-Art | AC1: Fe | AD1: Cu | AE1: Zn | AF1: Mn | AG1: Co | AH1: J | AI1: Se | AJ1: Kosten € | AK1: a | AL1: b | AM1: c | AN1: lag | AO1: Lysin | AP1: Methionin | AQ1: bST | AR1: Datum | AS1: LID | AT1: Primary ID
C2: g / kg FM | D2: g / kg TM | E2: g / kg TM | F2: g / kg TM | G2: g / kg TM | H2: % OM | I2: g / kg TM | J2: g / kg TM | K2: g / kg TM | L2: g / kg TM | M2: MJ / kg TM | N2: g / kg TM | O2: g / kg TM | P2: % | R2: MJ/ kg TM | S2: g / kg TM | T2: g / kg TM | U2: g / kg TM | V2: g / kg TM | W2: g / kg TM | X2: g / kg TM | Y2: g / kg TM | Z2: g / kg TM | AA2: meq / kg | AC2: mg / kg TM | AD2: mg / kg TM | AE2: mg / kg TM | AF2: mg / kg TM | AG2: mg / kg TM | AH2: mg / kg TM | AI2: mg / kg TM | AJ2: € / dt | AK2: % | AL2: % | AM2: % / h | AN2: h | AO2: g / kg TM | AP2: g / kg TM | AQ2: g / kg TM
A3: 10010010 | B3: Ackergras, Herbst - frisch | C3: 180 | D3: 160 | E3: =1000-D3 -> 840 | F3: 420 | G3: 250 | H3: 78 | I3: 200 | J3: 40 | K3: 0 | L3: 100 | M3: 17.4 | N3: 104 | O3: 38 | P3: 87 | Q3: 9 | R3: 10.7 | T3: 5 | U3: 3.8 | V3: 2 | W3: 0.5 | X3: 30 | Y3: 5.6 | Z3: 1.5 | AA3: 538 | AB3: GF | AC3: 150 | AD3: 9 | AE3: 36 | AF3: 75 | AI3: 0.04 | AJ3: 0 | AK3: 14 | AL3: 78 | AM3: 15 | AN3: 1.3 | AO3: 5.4 | AP3: 1.7 | AQ3: 0 | AS3: 1 | AT3: 10010010
A4: 10020010 | B4: Ackergras, jung - frisch | C4: 160 | D4: 110 | E4: =1000-D4 -> 890 | F4: 420 | G4: 250 | H4: 81 | I4: 190 | J4: 35 | K4: 0 | L4: 158 | M4: 18 | N4: 108 | O4: 37 | P4: 87 | Q4: 6 | R4: 11.6 | T4: 5 | U4: 3.8 | V4: 2 | W4: 0.5 | X4: 30 | Y4: 5.6 | Z4: 1.5 | AA4: 538 | AB4: GF | AC4: 150 | AD4: 9 | AE4: 36 | AF4: 75 | AI4: 0.04 | AJ4: 0 | AK4: 14 | AL4: 78 | AM4: 15 | AN4: 1.3 | AO4: 5.4 | AP4: 1.7 | AQ4: 0 | AS4: 2 | AT4: 10020010
A5: 10070010 | B5: Gras - frisch | C5: 180 | D5: 92 | E5: 908 | F5: 518 | G5: 297 | H5: 74 | I5: 149 | J5: 28 | K5: 0 | L5: 116 | M5: 18.1 | N5: 95 | O5: 28 | P5: 86 | Q5: 2 | R5: 10.7 | T5: 6.2 | U5: 3.2 | V5: 2.2 | W5: 0.5 | X5: 27 | Y5: 5.6 | Z5: 2 | AA5: 430 | AB5: GF | AC5: 137 | AD5: 9 | AE5: 48 | AF5: 164 | AI5: 0.04 | AJ5: 0 | AK5: 14 | AL5: 78 | AM5: 15 | AN5: 1.3 | AO5: 5.4 | AP5: 1.7 | AQ5: 0 | AS5: 7 | AT5: 10070010
A6: 10090010 | B6: Gras, frisch o. kons. 1. Aufw. - frisch | C6: 175 | D6: 89 | E6: 911 | F6: 524 | G6: 284 | H6: 73 | I6: 156 | J6: 32 | K6: 0 | L6: 64 | M6: 18.4 | N6: 96 | O6: 30 | P6: 86 | Q6: 4 | R6: 10.7 | T6: 5.8 | U6: 2.7 | V6: 1.8 | W6: 1.1 | X6: 21.3 | Y6: 7.3 | Z6: 2.2 | AA6: 250 | AB6: GF | AC6: 589 | AD6: 6 | AE6: 34 | AF6: 100 | AI6: 0.08 | AJ6: 0 | AK6: 14 | AL6: 78 | AM6: 15 | AN6: 1.3 | AO6: 5.4 | AP6: 1.7 | AQ6: 0 | AS6: 9 | AT6: 10090010
A7: 10100010 | B7: Gras, frisch o. kons. 2. Aufw. - frisch | C7: 175 | D7: 96 | E7: 904 | F7: 564 | G7: 292 | H7: 70 | I7: 159 | J7: 31 | K7: 0 | L7: 49 | M7: 18.3 | N7: 93 | O7: 30 | P7: 86 | Q7: 5 | R7: 10 | T7: 6.8 | U7: 2.5 | V7: 2 | W7: 1.4 | X7: 18.7 | Y7: 8.7 | Z7: 2.7 | AA7: 126 | AB7: GF | AC7: 690 | AD7: 7 | AE7: 37 | AF7: 113 | AI7: 0.05 | AJ7: 0 | AK7: 14 | AL7: 78 | AM7: 15 | AN7: 1.3 | AO7: 5.4 | AP7: 1.7 | AQ7: 0 | AS7: 10 | AT7: 10100010
A8: 10110010 | B8: Gras, frisch o. kons. 3. Aufw. - frisch | C8: 175 | D8: 107 | E8: 893 | F8: 550 | G8: 279 | H8: 71 | I8: 161 | J8: 31 | K8: 0 | L8: 61 | M8: 18.1 | N8: 93 | O8: 31 | P8: 86 | Q8: 5 | R8: 10.1 | T8: 7.6 | U8: 2.6 | V8: 2.3 | W8: 1.3 | X8: 19 | Y8: 8.9 | Z8: 2.8 | AA8: 117 | AB8: GF | AC8: 746 | AD8: 7 | AE8: 33 | AF8: 115 | AI8: 0.05 | AJ8: 0 | AK8: 14 | AL8: 78 | AM8: 15 | AN8: 1.3 | AO8: 5.4 | AP8: 1.7 | AQ8: 0 | AS8: 11 | AT8: 10110010
A9: 10120010 | B9: Gras, frisch o. kons. 4. Aufw. - frisch | C9: 175 | D9: 124 | E9: 876 | F9: 531 | G9: 260 | H9: 72 | I9: 179 | J9: 33 | K9: 0 | L9: 41 | M9: 18 | N9: 97 | O9: 34 | P9: 86 | Q9: 7 | R9: 10.2 | T9: 7.8 | U9: 2.8 | V9: 2.2 | W9: 0.4 | X9: 19.7 | Y9: 8.9 | Z9: 2.3 | AA9: 127 | AB9: GF | AC9: 235 | AD9: 8 | AE9: 30 | AF9: 56 | AI9: 0.05 | AJ9: 0 | AK9: 14 | AL9: 78 | AM9: 15 | AN9: 1.3 | AO9: 5.4 | AP9: 1.7 | AQ9: 0 | AS9: 12 | AT9: 10120010
A10: 10130010 | B10: Gras, frisch o. kons. 5. Aufw. - frisch | C10: 175 | D10: 140 | E10: 860 | F10: 506 | G10: 245 | H10: 74 | I10: 184 | J10: 35 | K10: 0 | L10: 39 | M10: 17.7 | N10: 98 | O10: 35 | P10: 86 | Q10: 8 | R10: 10.4 | T10: 6.9 | U10: 3.3 | V10: 2.1 | W10: 0.3 | X10: 24.7 | Y10: 8.9 | Z10: 2.5 | AA10: 238 | AB10: GF | AC10: 437 | AD10: 8 | AE10: 29 | AF10: 54 | AI10: 0.05 | AJ10: 0 | AK10: 14 | AL10: 78 | AM10: 15 | AN10: 1.3 | AO10: 5.4 | AP10: 1.7 | AQ10: 0 | AS10: 13 | AT10: 10130010
A11: 10140010 | B11: Gras, frisch o. kons. FolgeAufw. - frisch | C11: 175 | D11: 100 | E11: 900 | F11: 544 | G11: 291 | H11: 70 | I11: 156 | J11: 30 | K11: 0 | L11: 65 | M11: 18.2 | N11: 93 | O11: 30 | P11: 86 | Q11: 4 | R11: 10.1 | T11: 7 | U11: 2.7 | V11: 2.2 | W11: 0.8 | X11: 19.2 | Y11: 4.4 | Z11: 1.5 | AA11: 309 | AB11: GF | AC11: 399 | AD11: 9 | AE11: 25 | AF11: 60 | AI11: 0.05 | AJ11: 0 | AK11: 14 | AL11: 78 | AM11: 15 | AN11: 1.3 | AO11: 5.4 | AP11: 1.7 | AQ11: 0 | AS11: 14 | AT11: 10140010
A12: 10180010 | B12: Weide, Frühjahr, jung - frisch | C12: 160 | D12: 100 | E12: 900 | F12: 420 | G12: 225 | H12: 80 | I12: 200 | J12: 35 | K12: 0 | L12: 90 | M12: 18.4 | N12: 110 | O12: 38 | P12: 86 | Q12: 8 | R12: 11.8 | T12: 6.5 | U12: 4.5 | V12: 2 | W12: 0.5 | X12: 30 | Y12: 5.6 | Z12: 2 | AA12: 507 | AB12: GF | AC12: 150 | AD12: 9 | AE12: 36 | AF12: 75 | AI12: 0.04 | AJ12: 0 | AK12: 14 | AL12: 78 | AM12: 15 | AN12: 1.3 | AO12: 5.4 | AP12: 1.7 | AQ12: 0 | AS12: 18 | AT12: 10180010
A13: 10190010 | B13: Weide, Frühjahr, mittel - frisch | C13: 160 | D13: 100 | E13: 900 | F13: 450 | G13: 240 | H13: 77 | I13: 200 | J13: 40 | K13: 0 | L13: 85 | M13: 18.5 | N13: 107 | O13: 38 | P13: 86 | Q13: 8 | R13: 11.3 | T13: 5 | U13: 3.8 | V13: 2 | W13: 0.5 | X13: 30 | Y13: 5.6 | Z13: 2 | AA13: 507 | AB13: GF | AC13: 150 | AD13: 9 | AE13: 36 | AF13: 75 | AI13: 0.04 | AJ13: 0 | AK13: 14 | AL13: 78 | AM13: 15 | AN13: 1.3 | AO13: 5.4 | AP13: 1.7 | AQ13: 0 | AS13: 19 | AT13: 10190010
A14: 10200010 | B14: Weide, Frühjahr, älter - frisch | C14: 180 | D14: 100 | E14: 900 | F14: 480 | G14: 260 | H14: 74 | I14: 180 | J14: 40 | K14: 0 | L14: 80 | M14: 18.5 | N14: 100 | O14: 34 | P14: 86 | Q14: 6 | R14: 10.8 | T14: 5 | U14: 3.8 | V14: 2 | W14: 0.5 | X14: 30 | Y14: 5.6 | Z14: 2 | AA14: 507 | AB14: GF | AC14: 200 | AD14: 9 | AE14: 48 | AF14: 164 | AI14: 0.04 | AJ14: 0 | AK14: 14 | AL14: 78 | AM14: 15 | AN14: 1.3 | AO14: 5.4 | AP14: 1.7 | AQ14: 0 | AS14: 20 | AT14: 10200010
A15: 10210010 | B15: Weide, Sommer, jung - frisch | C15: 160 | D15: 100 | E15: 900 | F15: 420 | G15: 225 | H15: 74 | I15: 200 | J15: 35 | K15: 0 | L15: 90 | M15: 18.4 | N15: 104 | O15: 38 | P15: 86 | Q15: 9 | R15: 10.7 | T15: 5 | U15: 3.8 | V15: 2 | W15: 0.5 | X15: 30 | Y15: 5.6 | Z15: 2 | AA15: 507 | AB15: GF | AC15: 150 | AD15: 9 | AE15: 36 | AF15: 75 | AI15: 0.04 | AJ15: 0 | AK15: 14 | AL15: 78 | AM15: 15 | AN15: 1.3 | AO15: 5.4 | AP15: 1.7 | AQ15: 0 | AS15: 21 | AT15: 10210010
A16: 10220010 | B16: Weide, Sommer, älter - frisch | C16: 180 | D16: 100 | E16: 900 | F16: 480 | G16: 265 | H16: 70 | I16: 180 | J16: 40 | K16: 0 | L16: 80 | M16: 18.5 | N16: 97 | O16: 34 | P16: 86 | Q16: 7 | R16: 10.1 | T16: 6.5 | U16: 4.5 | V16: 2 | W16: 0.5 | X16: 30 | Y16: 5.6 | Z16: 2 | AA16: 507 | AB16: GF | AC16: 200 | AD16: 9 | AE16: 48 | AF16: 164 | AI16: 0.04 | AJ16: 0 | AK16: 14 | AL16: 78 | AM16: 15 | AN16: 1.3 | AO16: 5.4 | AP16: 1.7 | AQ16: 0 | AS16: 22 | AT16: 10220010
A17: 10230010 | B17: Raps, Ganzpflanze - frisch | C17: 110 | D17: 147 | E17: 853 | F17: 315 | G17: 185 | H17: 81 | I17: 194 | J17: 37 | K17: 0 | L17: 111 | M17: 17.5 | N17: 88 | O17: 19 | P17: 86 | Q17: 11 | R17: 11.3 | T17: 17 | U17: 4.5 | V17: 2.6 | W17: 1.3 | X17: 32 | Y17: 7.4 | Z17: 5.2 | AA17: 343 | AB17: GF | AC17: 230 | AD17: 6 | AE17: 37 | AF17: 120 | AI17: 0.1 | AJ17: 0 | AK17: 57 | AL17: 36 | AM17: 18 | AN17: 0 | AO17: 4.8 | AP17: 1.9 | AQ17: 0 | AS17: 23 | AT17: 10230010
A18: 10240010 | B18: Getreideganzpflanze für GPS - frisch | C18: 430 | D18: 41 | E18: 959 | F18: 496 | G18: 323 | H18: 66 | I18: 83 | J18: 23 | K18: 164 | L18: 134 | M18: 18.3 | N18: 73 | O18: 10 | P18: 58 | Q18: -5 | R18: 9.6 | T18: 2.3 | U18: 1.7 | V18: 0.9 | W18: 0.3 | X18: 13.5 | Y18: 4.1 | Z18: 1.6 | AA18: 143 | AB18: GF | AC18: 200 | AD18: 5 | AE18: 29 | AF18: 68 | AI18: 0.02 | AJ18: 0 | AK18: 24 | AL18: 68 | AM18: 13 | AN18: 0.7 | AO18: 5.5 | AP18: 1.5 | AQ18: 16 | AS18: 24 | AT18: 10240010
A19: 10260010 | B19: GPS, Gerste - frisch | C19: 430 | D19: 55 | E19: 945 | F19: 463 | G19: 297 | H19: 66 | I19: 92 | J19: 23 | K19: 115 | L19: 57 | M19: 18.4 | N19: 74 | O19: 11 | P19: 58 | Q19: -3 | R19: 9.7 | T19: 4.9 | U19: 3.2 | V19: 1.1 | W19: 0.4 | X19: 20 | Y19: 7.2 | Z19: 1.7 | AA19: 220 | AB19: GF | AC19: 200 | AD19: 7 | AE19: 25 | AF19: 43 | AI19: 0.12 | AJ19: 0 | AK19: 24 | AL19: 68 | AM19: 13 | AN19: 0.7 | AO19: 5.5 | AP19: 1.5 | AQ19: 12 | AS19: 26 | AT19: 10260010
A20: 10270010 | B20: GPS, Hafer - frisch | C20: 430 | D20: 62 | E20: 938 | F20: 366 | G20: 294 | H20: 69 | I20: 109 | J20: 32 | K20: 245 | L20: 75 | M20: 18.3 | N20: 77 | O20: 13 | P20: 58 | Q20: -2 | R20: 10 | T20: 7.2 | U20: 3 | V20: 1.6 | W20: 0.2 | X20: 17 | Y20: 3.2 | Z20: 1.5 | AA20: 260 | AB20: GF | AC20: 200 | AD20: 8 | AE20: 40 | AF20: 78 | AI20: 0.05 | AJ20: 0 | AK20: 24 | AL20: 68 | AM20: 13 | AN20: 0.7 | AO20: 5.5 | AP20: 1.5 | AQ20: 25 | AS20: 27 | AT20: 10270010
A21: 10280010 | B21: GPS, Roggen - frisch | C21: 430 | D21: 43 | E21: 957 | F21: 489 | G21: 326 | H21: 66 | I21: 82 | J21: 22 | K21: 86 | L21: 103 | M21: 18.5 | N21: 73 | O21: 10 | P21: 58 | Q21: -5 | R21: 9.8 | T21: 2.3 | U21: 2.4 | V21: 0.9 | W21: 0.3 | X21: 19.9 | Y21: 4.1 | Z21: 1.6 | AA21: 307 | AB21: GF | AC21: 200 | AD21: 5 | AE21: 29 | AF21: 68 | AI21: 0.02 | AJ21: 0 | AK21: 24 | AL21: 68 | AM21: 13 | AN21: 0.7 | AO21: 5.5 | AP21: 1.5 | AQ21: 9 | AS21: 28 | AT21: 10280010
A22: 10300010 | B22: GPS, Weizen - frisch | C22: 430 | D22: 46 | E22: 954 | F22: 462 | G22: 290 | H22: 67 | I22: 90 | J22: 23 | K22: 236 | L22: 75 | M22: 18.3 | N22: 74 | O22: 11 | P22: 58 | Q22: -4 | R22: 9.7 | T22: 2.4 | U22: 2.2 | V22: 1.2 | W22: 0.1 | X22: 14 | Y22: 4.1 | Z22: 1.6 | AA22: 147 | AB22: GF | AC22: 450 | AD22: 8 | AE22: 35 | AF22: 45 | AI22: 0.08 | AJ22: 0 | AK22: 24 | AL22: 68 | AM22: 13 | AN22: 0.7 | AO22: 5.5 | AP22: 1.5 | AQ22: 24 | AS22: 30 | AT22: 10300010
A23: 10350010 | B23: Grüngetreide, mittl. OMD - frisch | C23: 280 | D23: 66 | E23: 934 | F23: 576 | G23: 361 | H23: 70 | I23: 103 | J23: 24 | K23: 29 | L23: 79 | M23: 18.4 | N23: 85 | O23: 20 | P23: 89 | Q23: -3 | R23: 10.2 | T23: 3 | U23: 2.7 | V23: 1.1 | W23: 1 | X23: 23.2 | Y23: 5 | Z23: 1.8 | AA23: 384 | AB23: GF | AC23: 175 | AD23: 9 | AE23: 32 | AF23: 63 | AI23: 0.05 | AJ23: 0 | AK23: 14 | AL23: 78 | AM23: 15 | AN23: 1.3 | AO23: 5.5 | AP23: 1.3 | AQ23: 3 | AS23: 35 | AT23: 10350010
A24: 10400010 | B24: Luzerne, 1. A. mittl. OMD - frisch | C24: 175 | D24: 103 | E24: 897 | F24: 514 | G24: 329 | H24: 69 | I24: 175 | J24: 29 | K24: 0 | L24: 12 | M24: 18.3 | N24: 85 | O24: 23 | P24: 89 | Q24: 9 | R24: 9.8 | T24: 9.6 | U24: 2.7 | V24: 1.8 | W24: 0.5 | X24: 23.4 | Y24: 4 | Z24: 2.4 | AA24: 358 | AB24: GF | AC24: 546 | AD24: 7 | AE24: 22 | AF24: 48 | AI24: 0.1 | AJ24: 0 | AK24: 48 | AL24: 42 | AM24: 19 | AN24: 0 | AO24: 5.2 | AP24: 1.5 | AQ24: 0 | AS24: 40 | AT24: 10400010
A25: 10410010 | B25: Luzerne, 1. A. niedr. OMD - frisch | C25: 175 | D25: 104 | E25: 896 | F25: 501 | G25: 365 | H25: 65 | I25: 185 | J25: 20 | K25: 0 | L25: 45 | M25: 18.1 | N25: 83 | O25: 25 | P25: 89 | Q25: 11 | R25: 9.1 | T25: 9.6 | U25: 2.7 | V25: 1.8 | W25: 0.5 | X25: 23.4 | Y25: 4 | Z25: 2.4 | AA25: 358 | AB25: GF | AC25: 546 | AD25: 7 | AE25: 22 | AF25: 48 | AI25: 0.1 | AJ25: 0 | AK25: 48 | AL25: 42 | AM25: 19 | AN25: 0 | AO25: 5.2 | AP25: 1.5 | AQ25: 0 | AS25: 41 | AT25: 10410010
A26: 10420010 | B26: Luzerne, Folgeaufw. mittl. OMD - frisch | C26: 175 | D26: 104 | E26: 896 | F26: 529 | G26: 339 | H26: 64 | I26: 176 | J26: 27 | K26: 0 | L26: 21 | M26: 18.3 | N26: 81 | O26: 24 | P26: 89 | Q26: 10 | R26: 9 | T26: 12.4 | U26: 3 | V26: 2.1 | W26: 0.2 | X26: 24.5 | Y26: 2.2 | Z26: 2.1 | AA26: 443 | AB26: GF | AC26: 403 | AD26: 8 | AE26: 26 | AF26: 47 | AI26: 0.1 | AJ26: 0 | AK26: 48 | AL26: 42 | AM26: 19 | AN26: 0 | AO26: 5.2 | AP26: 1.5 | AQ26: 0 | AS26: 42 | AT26: 10420010
A27: 10430010 | B27: Luzerne, Folgeaufw. niedr. OMD - frisch | C27: 175 | D27: 92 | E27: 908 | F27: 516 | G27: 373 | H27: 62 | I27: 186 | J27: 21 | K27: 0 | L27: 39 | M27: 18.4 | N27: 81 | O27: 25 | P27: 89 | Q27: 12 | R27: 8.7 | T27: 12.4 | U27: 3 | V27: 2.1 | W27: 0.2 | X27: 24.5 | Y27: 2.2 | Z27: 2.1 | AA27: 443 | AB27: GF | AC27: 403 | AD27: 8 | AE27: 26 | AF27: 47 | AI27: 0.1 | AJ27: 0 | AK27: 48 | AL27: 42 | AM27: 19 | AN27: 0 | AO27: 5.2 | AP27: 1.5 | AQ27: 0 | AS27: 43 | AT27: 10430010
A28: 10450010 | B28: Luzerne, hohe OMD - frisch | C28: 350 | D28: 121 | E28: 879 | F28: 400 | G28: 300 | H28: 71 | I28: 194 | J28: 27 | K28: 0 | L28: 25 | M28: 18 | N28: 88 | O28: 26 | P28: 89 | Q28: 11 | R28: 9.9 | T28: 14.3 | U28: 3.2 | V28: 2.3 | W28: 0.5 | X28: 26.9 | Y28: 4.3 | Z28: 2.4 | AA28: 439 | AB28: GF | AC28: 418 | AD28: 7 | AE28: 29 | AF28: 43 | AI28: 0.1 | AJ28: 0 | AK28: 48 | AL28: 42 | AM28: 19 | AN28: 0 | AO28: 5.2 | AP28: 1.5 | AQ28: 0 | AS28: 45 | AT28: 10450010
A29: 10460010 | B29: Luzerne, sehr niedr. OMD - frisch | C29: 350 | D29: 108 | E29: 892 | F29: 474 | G29: 363 | H29: 60 | I29: 177 | J29: 22 | K29: 0 | L29: 30 | M29: 18.1 | N29: 77 | O29: 24 | P29: 89 | Q29: 11 | R29: 8.3 | T29: 13 | U29: 3.1 | V29: 2.3 | W29: 0.5 | X29: 24.6 | Y29: 3.4 | Z29: 2.3 | AA29: 412 | AB29: GF | AC29: 288 | AD29: 8 | AE29: 26 | AF29: 39 | AI29: 0.1 | AJ29: 0 | AK29: 48 | AL29: 42 | AM29: 19 | AN29: 0 | AO29: 5.2 | AP29: 1.5 | AQ29: 0 | AS29: 46 | AT29: 10460010
A30: 10560010 | B30: Mais, Restpflanze nach Kolbenenernte - frisch | C30: 253 | D30: 54 | E30: 946 | F30: 711 | G30: 411 | H30: 46 | I30: 52 | J30: 12 | K30: 11 | L30: 55 | M30: 18.2 | N30: 51 | O30: 8 | P30: 62 | Q30: -4 | R30: 6.3 | T30: 5 | U30: 1 | V30: 1.6 | W30: 0.6 | X30: 10 | Y30: 3 | Z30: 1.2 | AA30: 123 | AB30: GF | AC30: 305 | AD30: 5 | AE30: 50 | AF30: 80 | AI30: 0.02 | AJ30: 0 | AK30: 58 | AL30: 31 | AM30: 4 | AN30: 1.5 | AO30: 3.4 | AP30: 2.1 | AQ30: 1 | AS30: 56 | AT30: 10560010
A31: 10580010 | B31: Rotklee - frisch | C31: 149 | D31: 117 | E31: 883 | F31: 426 | G31: 293 | H31: 75 | I31: 204 | J31: 23 | K31: 0 | L31: 62 | M31: 17.9 | N31: 79 | O31: 14 | P31: 85 | Q31: 14 | R31: 10.5 | T31: 15 | U31: 2.5 | V31: 3.6 | W31: 0.4 | X31: 30 | Y31: 5.5 | Z31: 3.3 | AA31: 424 | AB31: GF | AC31: 155 | AD31: 12 | AE31: 75 | AF31: 74 | AI31: 0.11 | AJ31: 0 | AK31: 66 | AL31: 30 | AM31: 17 | AN31: 0 | AO31: 5.1 | AP31: 1.75 | AQ31: 0 | AS31: 58 | AT31: 10580010
A32: 10620010 | B32: Weißklee - frisch | C32: 130 | D32: 110 | E32: 890 | F32: 400 | G32: 250 | H32: 76 | I32: 220 | J32: 32 | K32: 0 | L32: 35 | M32: 18.4 | N32: 82 | O32: 15 | P32: 85 | Q32: 16 | R32: 11 | T32: 15 | U32: 3.2 | V32: 3.6 | W32: 0.4 | X32: 23.4 | Y32: 5 | Z32: 2.2 | AA32: 338 | AB32: GF | AC32: 145 | AD32: 10 | AE32: 26 | AF32: 50 | AI32: 0.11 | AJ32: 0 | AK32: 66 | AL32: 30 | AM32: 17 | AN32: 0 | AO32: 5 | AP32: 1.6 | AQ32: 0 | AS32: 62 | AT32: 10620010
A33: 20670010 | B33: Futterrrübe - frisch | C33: 150 | D33: 83 | E33: 917 | F33: 125 | G33: 100 | H33: 88 | I33: 77 | J33: 7 | K33: 0 | L33: 614 | M33: 16.1 | N33: 88 | O33: 8 | P33: 73 | Q33: -9 | R33: 11.5 | T33: 2.9 | U33: 2.5 | V33: 1.4 | W33: 3.8 | X33: 32 | Y33: 11.8 | Z33: 1.4 | AA33: 564 | AB33: SF | AC33: 54 | AD33: 7 | AE33: 33 | AF33: 44 | AI33: 0.03 | AJ33: 0 | AK33: 21 | AL33: 79 | AM33: 13 | AN33: 0 | AO33: 4.2 | AP33: 1.2 | AQ33: 0 | AS33: 67 | AT33: 20670010
A34: 20680010 | B34: Getreide, Schlempe a. d. Bioethanolgew. - frisch | C34: 199 | D34: 82 | E34: 918 | F34: 441 | G34: 162 | H34: 78 | I34: 300 | J34: 47 | K34: 60 | L34: 67 | M34: 19.5 | N34: 140 | O34: 69 | P34: 92 | Q34: 19 | R34: 11.8 | T34: 1 | U34: 8 | V34: 3 | W34: 0.3 | X34: 15 | Y34: 0.4 | Z34: 4 | AA34: 136 | AB34: SF | AC34: 90 | AD34: 7 | AE34: 74 | AF34: 75 | AI34: 1.1 | AJ34: 0 | AK34: 27 | AL34: 57 | AM34: 18 | AN34: 0.8 | AO34: 2.1 | AP34: 1.5 | AQ34: 9 | AS34: 68 | AT34: 20680010
A35: 20690010 | B35: Kartoffel - frisch | C35: 220 | D35: 59 | E35: 941 | F35: 75 | G35: 45 | H35: 90 | I35: 96 | J35: 4 | K35: 710 | L35: 31 | M35: 17.1 | N35: 96 | O35: 11 | P35: 85 | Q35: -7 | R35: 12.6 | T35: 0.5 | U35: 2.3 | V35: 1.2 | W35: 0.1 | X35: 20.9 | Y35: 2.7 | Z35: 1.8 | AA35: 351 | AB35: SF | AC35: 39 | AD35: 6 | AE35: 16 | AF35: 9 | AI35: 0.05 | AJ35: 0 | AK35: 21 | AL35: 79 | AM35: 13 | AN35: 0 | AO35: 5.4 | AP35: 1.4 | AQ35: 213 | AS35: 69 | AT35: 20690010
A36: 20760010 | B36: Zuckerrübe - frisch | C36: 230 | D36: 80 | E36: 920 | F36: 150 | G36: 90 | H36: 91 | I36: 60 | J36: 4 | K36: 0 | L36: 696 | M36: 15.7 | N36: 89 | O36: 6 | P36: 73 | Q36: -12 | R36: 11.8 | T36: 2.6 | U36: 1.4 | V36: 1.6 | W36: 2 | X36: 10 | Y36: 3 | Z36: 0.9 | AA36: 202 | AB36: SF | AC36: 56 | AD36: 6 | AE36: 26 | AF36: 67 | AI36: 1.4 | AJ36: 0 | AK36: 21 | AL36: 79 | AM36: 13 | AN36: 0 | AO36: 5.3 | AP36: 1.5 | AQ36: 0 | AS36: 76 | AT36: 20760010
A37: 41310010 | B37: Zuckerrübe, Dicksaft, Vinasse - frisch | C37: 446 | D37: 102 | E37: 898 | F37: 0 | G37: 0 | H37: 88 | I37: 305 | J37: 18 | K37: 0 | L37: 19 | M37: 18.7 | N37: 132 | O37: 53 | P37: 73 | Q37: 18 | R37: 12.9 | T37: 1.5 | U37: 3.8 | V37: 0.2 | W37: 8.5 | X37: 41 | Y37: 2.5 | Z37: 15.6 | AA37: 375 | AB37: KF | AC37: 35 | AD37: 2 | AE37: 25 | AF37: 35 | AI37: 0.3 | AJ37: 0 | AK37: 19 | AL37: 77 | AM37: 11 | AN37: 0 | AO37: 0.9 | AP37: 0.4 | AQ37: 0 | AS37: 131 | AT37: 41310010
A38: 20640012 | B38: Biertreber - frisch/siliert | C38: 250 | D38: 41 | E38: 959 | F38: 643 | G38: 239 | H38: 68 | I38: 243 | J38: 97 | K38: 22 | L38: 11 | M38: 21.2 | N38: 156 | O38: 91 | P38: 83 | Q38: 6 | R38: 11.3 | T38: 3.6 | U38: 6 | V38: 2 | W38: 0.4 | X38: 0.8 | Y38: 1.6 | Z38: 3 | AA38: -194 | AB38: SF | AC38: 200 | AD38: 25 | AE38: 135 | AF38: 40 | AI38: 0.1 | AJ38: 0 | AK38: 27 | AL38: 46 | AM38: 6 | AN38: 3.5 | AO38: 3.5 | AP38: 2.2 | AQ38: 2 | AS38: 64 | AT38: 20640012
A39: 20660012 | B39: Erbsen, Pülpe - frisch/siliert | C39: 182 | D39: 26 | E39: 974 | F39: 329 | G39: 243 | H39: 84 | I39: 121 | J39: 7 | K39: 402 | L39: 0 | M39: 18.5 | N39: 93 | O39: 12 | P39: 97 | Q39: -2 | R39: 12.6 | T39: 2 | U39: 3 | V39: 2.4 | W39: 0.6 | X39: 9 | Y39: 4 | Z39: 1.5 | AA39: 50 | AB39: SF | AC39: 100 | AD39: 8 | AE39: 12 | AF39: 22 | AI39: 0.1 | AJ39: 0 | AK39: 42 | AL39: 58 | AM39: 15 | AN39: 0.8 | AO39: 8.4 | AP39: 0.9 | AQ39: 84 | AS39: 66 | AT39: 20660012
A40: 20710012 | B40: Lupine, Samen, Pülpe - frisch/siliert | C40: 174 | D40: 25 | E40: 975 | F40: 171 | G40: 129 | H40: 87 | I40: 170 | J40: 6 | K40: 0 | L40: 72 | M40: 19.1 | N40: 98 | O40: 14 | P40: 75 | Q40: 4 | R40: 13.5 | T40: 2.1 | U40: 4.5 | V40: 1.9 | W40: 0.4 | X40: 12 | Y40: 0.7 | Z40: 2.7 | AA40: 136 | AB40: SF | AC40: 30 | AD40: 12 | AE40: 45 | AF40: 30 | AI40: 0.1 | AJ40: 0 | AK40: 29 | AL40: 71 | AM40: 17 | AN40: 0 | AO40: 4.7 | AP40: 0.7 | AQ40: 0 | AS40: 71 | AT40: 20710012
A41: 20730012 | B41: Roggen, Pressschl. a. Bioethanolg. - frisch/sil. | C41: 350 | D41: 40 | E41: 960 | F41: 563 | G41: 240 | H41: 60 | I41: 232 | J41: 65 | K41: 25 | L41: 27 | M41: 20.5 | N41: 110 | O41: 53 | P41: 92 | Q41: 14 | R41: 9.3 | T41: 1 | U41: 8 | V41: 3 | W41: 0.3 | X41: 15 | Y41: 0.4 | Z41: 4 | AA41: 136 | AB41: SF | AC41: 90 | AD41: 7 | AE41: 74 | AF41: 75 | AI41: 1.1 | AJ41: 0 | AK41: 27 | AL41: 57 | AM41: 18 | AN41: 0.8 | AO41: 2.1 | AP41: 1.5 | AQ41: 4 | AS41: 73 | AT41: 20730012
A42: 20740012 | B42: Zuckerrübe, Rübenkleinteile - frisch/siliert | C42: 185 | D42: 86 | E42: 914 | F42: 244 | G42: 127 | H42: 84 | I42: 78 | J42: 5 | K42: 0 | L42: 108 | M42: 17.4 | N42: 84 | O42: 8 | P42: 73 | Q42: -8 | R42: 12.1 | T42: 2.6 | U42: 1.4 | V42: 1.6 | W42: 2 | X42: 10 | Y42: 3 | Z42: 0.9 | AA42: 202 | AB42: SF | AC42: 56 | AD42: 5 | AE42: 36 | AF42: 61 | AI42: 1.4 | AJ42: 0 | AK42: 21 | AL42: 79 | AM42: 13 | AN42: 0 | AO42: 6.4 | AP42: 2.4 | AQ42: 0 | AS42: 74 | AT42: 20740012
A43: 20750012 | B43: Zuckerrübe, Rübenpressschnitzel - frisch/siliert | C43: 250 | D43: 67 | E43: 933 | F43: 425 | G43: 237 | H43: 89 | I43: 103 | J43: 8 | K43: 0 | L43: 50 | M43: 18.1 | N43: 93 | O43: 11 | P43: 73 | Q43: -6 | R43: 13.3 | T43: 4 | U43: 1 | V43: 2 | W43: 0.4 | X43: 5 | Y43: 1.1 | Z43: 3.5 | AA43: -104 | AB43: SF | AC43: 800 | AD43: 8 | AE43: 22 | AF43: 74 | AI43: 0.2 | AJ43: 0 | AK43: 21 | AL43: 79 | AM43: 13 | AN43: 0 | AO43: 8.2 | AP43: 2.1 | AQ43: 0 | AS43: 75 | AT43: 20750012
A44: 41300010 | B44: Milchzuckermelasse - feucht | C44: 430 | D44: 228 | E44: 772 | F44: 0 | G44: 0 | H44: 90 | I44: 60 | J44: 3 | K44: 0 | L44: 570 | M44: 13.3 | R44: 9.8 | T44: 5.9 | U44: 13 | V44: 2.8 | W44: 27 | X44: 68 | Y44: 14.3 | Z44: 10.8 | AA44: 1838 | AB44: KF | AC44: 2 | AD44: 24 | AE44: 7 | AF44: 2 | AI44: 0.5 | AJ44: 0 | AQ44: 0 | AS44: 130 | AT44: 41300010
A45: 41250012 | B45: Mais, Körner m. Teilen d. Spindel - feucht siliert | C45: 650 | D45: 15 | E45: 985 | F45: 106 | G45: 33 | H45: 90 | I45: 99 | J45: 45 | K45: 685 | L45: 17 | M45: 18.9 | N45: 114 | O45: 26 | P45: 96 | Q45: -10 | R45: 14 | T45: 0.3 | U45: 3.2 | V45: 1.7 | W45: 0.1 | X45: 3.6 | Y45: 0.5 | Z45: 1.2 | AA45: 8 | AB45: KF | AC45: 200 | AD45: 2 | AE45: 20 | AF45: 40 | AI45: 0.1 | AJ45: 0 | AK45: 54 | AL45: 39 | AM45: 3 | AN45: 0.5 | AO45: 2.8 | AP45: 2 | AQ45: 171 | AS45: 125 | AT45: 41250012
A46: 10150030 | B46: Gras, gute OMD - getrocknet/Heu | C46: 860 | D46: 74 | E46: 926 | F46: 512 | G46: 279 | H46: 76 | I46: 189 | J46: 32 | K46: 0 | L46: 116 | M46: 18.7 | N46: 100 | O46: 31 | P46: 80 | Q46: 7 | R46: 11.2 | T46: 4.3 | U46: 3.1 | V46: 1.7 | W46: 0.8 | X46: 18.5 | Y46: 5.8 | Z46: 1.6 | AA46: 245 | AB46: GF | AC46: 400 | AD46: 6 | AE46: 32 | AF46: 138 | AI46: 0.03 | AJ46: 0 | AK46: 35 | AL46: 57 | AM46: 10 | AN46: 0 | AO46: 5.4 | AP46: 1.7 | AQ46: 0 | AS46: 15 | AT46: 10150030
A47: 10160030 | B47: Gras, mittl. OMD - getrocknet/Heu | C47: 860 | D47: 68 | E47: 932 | F47: 605 | G47: 336 | H47: 65 | I47: 138 | J47: 19 | K47: 0 | L47: 89 | M47: 18.4 | N47: 82 | O47: 22 | P47: 80 | Q47: 3 | R47: 9.3 | T47: 4.1 | U47: 2.1 | V47: 1.2 | W47: 0.3 | X47: 14.5 | Y47: 5.4 | Z47: 1.2 | AA47: 157 | AB47: GF | AC47: 400 | AD47: 6 | AE47: 25 | AF47: 110 | AI47: 0.02 | AJ47: 0 | AK47: 35 | AL47: 57 | AM47: 10 | AN47: 0 | AO47: 5.4 | AP47: 1.7 | AQ47: 0 | AS47: 16 | AT47: 10160030
A48: 10170030 | B48: Gras, überständig - getrocknet/Heu | C48: 860 | D48: 66 | E48: 934 | F48: 645 | G48: 375 | H48: 59 | I48: 111 | J48: 17 | K48: 0 | L48: 73 | M48: 18.3 | N48: 73 | O48: 18 | P48: 80 | Q48: 1 | R48: 8.4 | T48: 5.3 | U48: 2.1 | V48: 2 | W48: 0.4 | X48: 18.3 | Y48: 8.9 | Z48: 2.3 | AA48: 92 | AB48: GF | AC48: 235 | AD48: 8 | AE48: 30 | AF48: 56 | AI48: 0.01 | AJ48: 0 | AK48: 35 | AL48: 57 | AM48: 10 | AN48: 0 | AO48: 5.4 | AP48: 1.7 | AQ48: 0 | AS48: 17 | AT48: 10170030
A49: 10440030 | B49: Luzerne - Heu | C49: 860 | D49: 81 | E49: 919 | F49: 595 | G49: 425 | H49: 65 | I49: 148 | J49: 16 | K49: 0 | L49: 31 | M49: 18.3 | N49: 77 | O49: 18 | P49: 54 | Q49: 4 | R49: 9.3 | T49: 11.4 | U49: 2.5 | V49: 2.2 | W49: 0.2 | X49: 24.8 | Y49: 2.2 | Z49: 2.1 | AA49: 449 | AB49: GF | AC49: 403 | AD49: 8 | AE49: 26 | AF49: 47 | AI49: 0.1 | AJ49: 0 | AK49: 33 | AL49: 55 | AM49: 11 | AN49: 0 | AO49: 5.2 | AP49: 1.5 | AQ49: 0 | AS49: 44 | AT49: 10440030
A50: 10030020 | B50: Ackergras, 1. Aufw. - siliert | C50: 350 | D50: 89 | E50: 911 | F50: 492 | G50: 258 | H50: 77 | I50: 150 | J50: 32 | K50: 0 | L50: 82 | M50: 18.4 | N50: 88 | O50: 19 | P50: 87 | Q50: 4 | R50: 11.3 | T50: 4.6 | U50: 2.9 | V50: 1.3 | W50: 0.3 | X50: 30.5 | Y50: 5.5 | Z50: 1.5 | AA50: 545 | AB50: GF | AC50: 221 | AD50: 4 | AE50: 26 | AF50: 56 | AI50: 0.08 | AJ50: 0 | AK50: 57 | AL50: 35 | AM50: 12 | AN50: 0 | AO50: 5.4 | AP50: 1.7 | AQ50: 0 | AS50: 3 | AT50: 10030020
A51: 10040020 | B51: Ackergras, FolgeAufw. - siliert | C51: 350 | D51: 81 | E51: 919 | F51: 491 | G51: 273 | H51: 76 | I51: 153 | J51: 30 | K51: 0 | L51: 105 | M51: 18.4 | N51: 89 | O51: 20 | P51: 87 | Q51: 4 | R51: 11.2 | T51: 5.4 | U51: 2.9 | V51: 1.8 | W51: 0.5 | X51: 25.8 | Y51: 5 | Z51: 2.5 | AA51: 385 | AB51: GF | AC51: 219 | AD51: 6 | AE51: 29 | AF51: 85 | AI51: 0.05 | AJ51: 0 | AK51: 57 | AL51: 35 | AM51: 12 | AN51: 0 | AO51: 5.4 | AP51: 1.7 | AQ51: 0 | AS51: 4 | AT51: 10040020
A52: 10050020 | B52: Ackergras, gut - siliert | C52: 400 | D52: 120 | E52: 880 | F52: 420 | G52: 250 | H52: 79 | I52: 150 | J52: 30 | K52: 0 | L52: 80 | M52: 17.7 | N52: 88 | O52: 19 | P52: 87 | Q52: 4 | R52: 11.3 | T52: 5.3 | U52: 3.6 | V52: 1.5 | W52: 0.6 | X52: 32 | Y52: 6.8 | Z52: 2.1 | AA52: 523 | AB52: GF | AC52: 382 | AD52: 7 | AE52: 33 | AF52: 77 | AI52: 0.08 | AJ52: 0 | AK52: 57 | AL52: 35 | AM52: 12 | AN52: 0 | AO52: 5.4 | AP52: 1.7 | AQ52: 0 | AS52: 5 | AT52: 10050020
A53: 10060020 | B53: Ackergras, mittel - siliert | C53: 400 | D53: 135 | E53: 865 | F53: 475 | G53: 300 | H53: 71 | I53: 145 | J53: 30 | K53: 0 | L53: 50 | M53: 17.5 | N53: 80 | O53: 18 | P53: 87 | Q53: 5 | R53: 9.9 | T53: 6.6 | U53: 3.5 | V53: 2.5 | W53: 1.4 | X53: 21 | Y53: 4.4 | Z53: 1.2 | AA53: 400 | AB53: GF | AC53: 399 | AD53: 11 | AE53: 43 | AF53: 103 | AI53: 0.05 | AJ53: 0 | AK53: 57 | AL53: 35 | AM53: 12 | AN53: 0 | AO53: 5.4 | AP53: 1.7 | AQ53: 0 | AS53: 6 | AT53: 10060020
A54: 10080020 | B54: Gras - siliert | C54: 350 | D54: 99 | E54: 901 | F54: 541 | G54: 285 | H54: 71 | I54: 159 | J54: 32 | K54: 0 | L54: 49 | M54: 18.3 | N54: 83 | O54: 20 | P54: 87 | Q54: 6 | R54: 10.2 | T54: 6.6 | U54: 2.7 | V54: 2 | W54: 1.1 | X54: 20 | Y54: 7.3 | Z54: 2.2 | AA54: 217 | AB54: GF | AC54: 589 | AD54: 6 | AE54: 34 | AF54: 100 | AI54: 0.1 | AJ54: 0 | AK54: 57 | AL54: 35 | AM54: 12 | AN54: 0 | AO54: 5.4 | AP54: 1.7 | AQ54: 0 | AS54: 8 | AT54: 10080020
A55: 10090020 | B55: Gras, frisch o. kons. 1. Aufw. - siliert | C55: 350 | D55: 89 | E55: 911 | F55: 524 | G55: 284 | H55: 73 | I55: 156 | J55: 32 | K55: 0 | L55: 64 | M55: 18.4 | N55: 86 | O55: 20 | P55: 87 | Q55: 5 | R55: 10.7 | T55: 5.8 | U55: 2.7 | V55: 1.8 | W55: 1.1 | X55: 21.3 | Y55: 7.3 | Z55: 2.2 | AA55: 250 | AB55: GF | AC55: 589 | AD55: 6 | AE55: 34 | AF55: 100 | AI55: 0.08 | AJ55: 0 | AK55: 57 | AL55: 35 | AM55: 12 | AN55: 0 | AO55: 5.4 | AP55: 1.7 | AQ55: 0 | AS55: 9 | AT55: 10090020
A56: 10100020 | B56: Gras, frisch o. kons. 2. Aufw. - siliert | C56: 350 | D56: 96 | E56: 904 | F56: 564 | G56: 292 | H56: 70 | I56: 159 | J56: 31 | K56: 0 | L56: 49 | M56: 18.3 | N56: 83 | O56: 20 | P56: 87 | Q56: 7 | R56: 10 | T56: 6.8 | U56: 2.5 | V56: 2 | W56: 1.4 | X56: 18.7 | Y56: 8.7 | Z56: 2.7 | AA56: 126 | AB56: GF | AC56: 690 | AD56: 7 | AE56: 37 | AF56: 113 | AI56: 0.05 | AJ56: 0 | AK56: 57 | AL56: 35 | AM56: 12 | AN56: 0 | AO56: 5.4 | AP56: 1.7 | AQ56: 0 | AS56: 10 | AT56: 10100020
A57: 10110020 | B57: Gras, frisch o. kons. 3. Aufw. - siliert | C57: 350 | D57: 107 | E57: 893 | F57: 550 | G57: 279 | H57: 71 | I57: 161 | J57: 31 | K57: 0 | L57: 61 | M57: 18.1 | N57: 83 | O57: 21 | P57: 87 | Q57: 7 | R57: 10.1 | T57: 7.6 | U57: 2.6 | V57: 2.3 | W57: 1.3 | X57: 19 | Y57: 8.9 | Z57: 2.8 | AA57: 117 | AB57: GF | AC57: 746 | AD57: 7 | AE57: 33 | AF57: 115 | AI57: 0.05 | AJ57: 0 | AK57: 57 | AL57: 35 | AM57: 12 | AN57: 0 | AO57: 5.4 | AP57: 1.7 | AQ57: 0 | AS57: 11 | AT57: 10110020
A58: 10120020 | B58: Gras, frisch o. kons. 4. Aufw. - siliert | C58: 350 | D58: 124 | E58: 876 | F58: 531 | G58: 260 | H58: 72 | I58: 179 | J58: 33 | K58: 0 | L58: 41 | M58: 18 | N58: 86 | O58: 23 | P58: 87 | Q58: 9 | R58: 10.2 | T58: 7.8 | U58: 2.8 | V58: 2.2 | W58: 0.4 | X58: 19.7 | Y58: 8.9 | Z58: 2.3 | AA58: 127 | AB58: GF | AC58: 235 | AD58: 8 | AE58: 30 | AF58: 56 | AI58: 0.05 | AJ58: 0 | AK58: 57 | AL58: 35 | AM58: 12 | AN58: 0 | AO58: 5.4 | AP58: 1.7 | AQ58: 0 | AS58: 12 | AT58: 10120020
A59: 10130020 | B59: Gras, frisch o. kons. 5. Aufw. - siliert | C59: 350 | D59: 140 | E59: 860 | F59: 506 | G59: 245 | H59: 74 | I59: 184 | J59: 35 | K59: 0 | L59: 39 | M59: 17.7 | N59: 87 | O59: 23 | P59: 87 | Q59: 10 | R59: 10.4 | T59: 6.9 | U59: 3.3 | V59: 2.1 | W59: 0.3 | X59: 24.7 | Y59: 8.9 | Z59: 2.5 | AA59: 238 | AB59: GF | AC59: 437 | AD59: 8 | AE59: 29 | AF59: 54 | AI59: 0.05 | AJ59: 0 | AK59: 57 | AL59: 35 | AM59: 12 | AN59: 0 | AO59: 5.4 | AP59: 1.7 | AQ59: 0 | AS59: 13 | AT59: 10130020
A60: 10140020 | B60: Gras, frisch o. kons. FolgeAufw. - siliert | C60: 350 | D60: 100 | E60: 900 | F60: 544 | G60: 291 | H60: 70 | I60: 156 | J60: 30 | K60: 0 | L60: 65 | M60: 18.2 | N60: 83 | O60: 20 | P60: 87 | Q60: 6 | R60: 10.1 | T60: 7 | U60: 2.7 | V60: 2.2 | W60: 0.8 | X60: 19.2 | Y60: 4.4 | Z60: 1.5 | AA60: 309 | AB60: GF | AC60: 399 | AD60: 9 | AE60: 25 | AF60: 60 | AI60: 0.05 | AJ60: 0 | AK60: 57 | AL60: 35 | AM60: 12 | AN60: 0 | AO60: 5.4 | AP60: 1.7 | AQ60: 0 | AS60: 14 | AT60: 10140020
A61: 10250020 | B61: GPS, siliert - siliert | C61: 430 | D61: 47 | E61: 953 | F61: 476 | G61: 317 | H61: 66 | I61: 87 | J61: 24 | K61: 114 | L61: 82 | M61: 18.5 | N61: 82 | O61: 19 | P61: 89 | Q61: -5 | R61: 9.8 | T61: 2.7 | U61: 2.2 | V61: 1 | W61: 0.3 | X61: 16.8 | Y61: 4.1 | Z61: 1.6 | AA61: 228 | AB61: GF | AC61: 200 | AD61: 5 | AE61: 29 | AF61: 68 | AI61: 0.02 | AJ61: 0 | AK61: 54 | AL61: 39 | AM61: 3 | AN61: 0.5 | AO61: 5.5 | AP61: 1.5 | AQ61: 11 | AS61: 25 | AT61: 10250020
A62: 10260020 | B62: GPS, Gerste - siliert | C62: 430 | D62: 55 | E62: 945 | F62: 463 | G62: 297 | H62: 66 | I62: 92 | J62: 23 | K62: 115 | L62: 57 | M62: 18.4 | N62: 82 | O62: 20 | P62: 89 | Q62: -4 | R62: 9.7 | T62: 4.9 | U62: 3.2 | V62: 1.1 | W62: 0.4 | X62: 20 | Y62: 7.2 | Z62: 1.7 | AA62: 220 | AB62: GF | AC62: 200 | AD62: 7 | AE62: 25 | AF62: 43 | AI62: 0.12 | AJ62: 0 | AK62: 54 | AL62: 39 | AM62: 3 | AN62: 0.5 | AO62: 5.5 | AP62: 1.5 | AQ62: 12 | AS62: 26 | AT62: 10260020
A63: 10270020 | B63: GPS, Hafer - siliert | C63: 430 | D63: 62 | E63: 938 | F63: 366 | G63: 294 | H63: 69 | I63: 109 | J63: 32 | K63: 245 | L63: 75 | M63: 18.3 | N63: 88 | O63: 23 | P63: 89 | Q63: -2 | R63: 10 | T63: 7.2 | U63: 3 | V63: 1.6 | W63: 0.2 | X63: 17 | Y63: 3.2 | Z63: 1.5 | AA63: 260 | AB63: GF | AC63: 200 | AD63: 8 | AE63: 40 | AF63: 78 | AI63: 0.05 | AJ63: 0 | AK63: 54 | AL63: 39 | AM63: 3 | AN63: 0.5 | AO63: 5.5 | AP63: 1.5 | AQ63: 25 | AS63: 27 | AT63: 10270020
A64: 10280020 | B64: GPS, Roggen - siliert | C64: 430 | D64: 43 | E64: 957 | F64: 489 | G64: 326 | H64: 66 | I64: 82 | J64: 22 | K64: 86 | L64: 103 | M64: 18.5 | N64: 81 | O64: 18 | P64: 89 | Q64: -5 | R64: 9.8 | T64: 2.3 | U64: 2.4 | V64: 0.9 | W64: 0.3 | X64: 19.9 | Y64: 4.1 | Z64: 1.6 | AA64: 307 | AB64: GF | AC64: 200 | AD64: 5 | AE64: 29 | AF64: 68 | AI64: 0.02 | AJ64: 0 | AK64: 54 | AL64: 39 | AM64: 3 | AN64: 0.5 | AO64: 5.5 | AP64: 1.5 | AQ64: 9 | AS64: 28 | AT64: 10280020
A65: 10290020 | B65: GPS, Sandhafer - siliert | C65: 430 | D65: 91 | E65: 909 | F65: 577 | G65: 300 | H65: 61 | I65: 117 | J65: 30 | K65: 50 | L65: 117 | M65: 17.9 | N65: 81 | O65: 25 | P65: 89 | Q65: 1 | R65: 8.6 | T65: 7.2 | U65: 3 | V65: 1.6 | W65: 0.2 | X65: 17 | Y65: 3.2 | Z65: 1.5 | AA65: 260 | AB65: GF | AC65: 200 | AD65: 8 | AE65: 40 | AF65: 78 | AI65: 0.05 | AJ65: 0 | AK65: 54 | AL65: 39 | AM65: 3 | AN65: 0.5 | AO65: 5.5 | AP65: 1.5 | AQ65: 5 | AS65: 29 | AT65: 10290020
A66: 10300020 | B66: GPS, Weizen - siliert | C66: 430 | D66: 46 | E66: 954 | F66: 462 | G66: 290 | H66: 67 | I66: 90 | J66: 23 | K66: 236 | L66: 75 | M66: 18.3 | N66: 83 | O66: 19 | P66: 89 | Q66: -4 | R66: 9.7 | T66: 2.4 | U66: 2.2 | V66: 1.2 | W66: 0.1 | X66: 14 | Y66: 4.1 | Z66: 1.6 | AA66: 147 | AB66: GF | AC66: 450 | AD66: 8 | AE66: 35 | AF66: 45 | AI66: 0.08 | AJ66: 0 | AK66: 54 | AL66: 39 | AM66: 3 | AN66: 0.5 | AO66: 5.5 | AP66: 1.5 | AQ66: 24 | AS66: 30 | AT66: 10300020
A67: 10310020 | B67: Gras, sehr gute OMD - siliert | C67: 350 | D67: 101 | E67: 899 | F67: 434 | G67: 271 | H67: 81 | I67: 172 | J67: 38 | K67: 0 | L67: 47 | M67: 18.5 | N67: 95 | O67: 23 | P67: 90 | Q67: 6 | R67: 12.1 | T67: 7.5 | U67: 3.8 | V67: 2.7 | W67: 1.3 | X67: 27.8 | Y67: 8.5 | Z67: 3.2 | AA67: 329 | AB67: GF | AC67: 877 | AD67: 8 | AE67: 36 | AF67: 117 | AI67: 0.1 | AJ67: 0 | AK67: 57 | AL67: 35 | AM67: 12 | AN67: 0 | AO67: 5.4 | AP67: 1.7 | AQ67: 0 | AS67: 31 | AT67: 10310020
A68: 10320020 | B68: Gras, gute OMD - siliert | C68: 350 | D68: 97 | E68: =1000-D68 -> 903 | F68: 450 | G68: 274 | H68: 76 | I68: 171 | J68: 35 | K68: 0 | L68: 43 | M68: 18.5 | N68: 91 | O68: 23 | P68: 90 | Q68: 7 | R68: 11.2 | T68: 7.5 | U68: 3.8 | V68: 2.7 | W68: 1.3 | X68: 27.8 | Y68: 8.5 | Z68: 3.2 | AA68: 329 | AB68: GF | AC68: 877 | AD68: 8 | AE68: 36 | AF68: 117 | AI68: 0.1 | AJ68: 0 | AK68: 57 | AL68: 35 | AM68: 12 | AN68: 0 | AO68: 5.4 | AP68: 1.7 | AQ68: 0 | AS68: 32 | AT68: 10320020
A69: 10330020 | B69: Gras, mittl. OMD - siliert | C69: 350 | D69: 98 | E69: 902 | F69: 484 | G69: 291 | H69: 70 | I69: 176 | J69: 32 | K69: 0 | L69: 49 | M69: 18.4 | N69: 86 | O69: 23 | P69: 90 | Q69: 9 | R69: 10.1 | T69: 6.8 | U69: 3.7 | V69: 2.5 | W69: 1.6 | X69: 25.8 | Y69: 9 | Z69: 3.1 | AA69: 283 | AB69: GF | AC69: 838 | AD69: 8 | AE69: 35 | AF69: 112 | AI69: 0.1 | AJ69: 0 | AK69: 57 | AL69: 35 | AM69: 12 | AN69: 0 | AO69: 5.4 | AP69: 1.7 | AQ69: 0 | AS69: 33 | AT69: 10330020
A70: 10340020 | B70: Gras, niedr. OMD - siliert | C70: 350 | D70: 97 | E70: 903 | F70: 522 | G70: 306 | H70: 62 | I70: 163 | J70: 29 | K70: 0 | L70: 47 | M70: 18.3 | N70: 77 | O70: 21 | P70: 90 | Q70: 9 | R70: 8.7 | T70: 6.1 | U70: 3.5 | V70: 2.4 | W70: 1.3 | X70: 23 | Y70: 8.9 | Z70: 2.8 | AA70: 220 | AB70: GF | AC70: 746 | AD70: 7 | AE70: 33 | AF70: 115 | AI70: 0.1 | AJ70: 0 | AK70: 57 | AL70: 35 | AM70: 12 | AN70: 0 | AO70: 5.4 | AP70: 1.7 | AQ70: 0 | AS70: 34 | AT70: 10340020
A71: 10360020 | B71: Hornkleegras, mittl. OMD - siliert | C71: 350 | D71: 159 | E71: 841 | F71: 393 | G71: 320 | H71: 67 | I71: 137 | J71: 25 | K71: 0 | L71: 22 | M71: 17 | N71: 72 | O71: 17 | P71: 94 | Q71: 6 | R71: 8.9 | T71: 7 | U71: 4 | V71: 2.5 | W71: 0.5 | X71: 35 | Y71: 5 | Z71: 2 | AA71: 652 | AB71: GF | AC71: 419 | AD71: 6 | AE71: 27 | AF71: 50 | AI71: 0.2 | AJ71: 0 | AK71: 53 | AL71: 40 | AM71: 14 | AN71: 0 | AO71: 5.1 | AP71: 1.75 | AQ71: 0 | AS71: 36 | AT71: 10360020
A72: 10370020 | B72: Kleegras, 1.Aufw. - siliert | C72: 350 | D72: 84 | E72: 916 | F72: 507 | G72: 282 | H72: 74 | I72: 131 | J72: 25 | K72: 0 | L72: 67 | M72: 18.3 | N72: 83 | O72: 16 | P72: 94 | Q72: 2 | R72: 10.8 | T72: 6.6 | U72: 2.6 | V72: 1.7 | W72: 0.4 | X72: 25.9 | Y72: 5.2 | Z72: 1.9 | AA72: 415 | AB72: GF | AC72: 419 | AD72: 6 | AE72: 27 | AF72: 50 | AI72: 0.2 | AJ72: 0 | AK72: 53 | AL72: 40 | AM72: 14 | AN72: 0 | AO72: 5.2 | AP72: 1.6 | AQ72: 0 | AS72: 37 | AT72: 10370020
A73: 10380020 | B73: Kleegras, Folgeaufwüchse - siliert | C73: 350 | D73: 85 | E73: 915 | F73: 495 | G73: 294 | H73: 75 | I73: 148 | J73: 25 | K73: 0 | L73: 95 | M73: 18.2 | N73: 86 | O73: 18 | P73: 94 | Q73: 4 | R73: 10.9 | T73: 8.7 | U73: 2.6 | V73: 1.9 | W73: 0.5 | X73: 25.9 | Y73: 6.5 | Z73: 2.3 | AA73: 358 | AB73: GF | AC73: 332 | AD73: 7 | AE73: 29 | AF73: 72 | AI73: 0.2 | AJ73: 0 | AK73: 53 | AL73: 40 | AM73: 14 | AN73: 0 | AO73: 5.2 | AP73: 1.6 | AQ73: 0 | AS73: 38 | AT73: 10380020
A74: 10390020 | B74: Landsberger Gemenge, Silage - siliert | C74: 282 | D74: 93 | E74: 907 | F74: 483 | G74: 289 | H74: 74 | I74: 161 | J74: 26 | K74: 0 | L74: 52 | M74: 18.3 | N74: 86 | O74: 19 | P74: 94 | Q74: 6 | R74: 10.7 | T74: 5.6 | U74: 3.2 | V74: 1.4 | W74: 0.4 | X74: 29.6 | Y74: 5.2 | Z74: 1.9 | AA74: 510 | AB74: GF | AC74: 419 | AD74: 6 | AE74: 27 | AF74: 50 | AI74: 0.2 | AJ74: 0 | AK74: 53 | AL74: 40 | AM74: 14 | AN74: 0 | AO74: 5.2 | AP74: 1.6 | AQ74: 0 | AS74: 39 | AT74: 10390020
A75: 10400020 | B75: Luzerne, 1. A. mittl. OMD - siliert | C75: 350 | D75: 103 | E75: 897 | F75: 514 | G75: 329 | H75: 69 | I75: 175 | J75: 29 | K75: 0 | L75: 12 | M75: 18.3 | N75: 83 | O75: 22 | P75: 89 | Q75: 9 | R75: 9.8 | T75: 9.6 | U75: 2.7 | V75: 1.8 | W75: 0.5 | X75: 23.4 | Y75: 4 | Z75: 2.4 | AA75: 358 | AB75: GF | AC75: 546 | AD75: 7 | AE75: 22 | AF75: 48 | AI75: 0.1 | AJ75: 0 | AK75: 67 | AL75: 23 | AM75: 13 | AN75: 0 | AO75: 5.2 | AP75: 1.5 | AQ75: 0 | AS75: 40 | AT75: 10400020
A76: 10410020 | B76: Luzerne, 1. A. niedr. OMD - siliert | C76: 350 | D76: 104 | E76: 896 | F76: 501 | G76: 365 | H76: 65 | I76: 185 | J76: 20 | K76: 0 | L76: 45 | M76: 18.1 | N76: 81 | O76: 23 | P76: 89 | Q76: 11 | R76: 9.1 | T76: 9.6 | U76: 2.7 | V76: 1.8 | W76: 0.5 | X76: 23.4 | Y76: 4 | Z76: 2.4 | AA76: 358 | AB76: GF | AC76: 546 | AD76: 7 | AE76: 22 | AF76: 48 | AI76: 0.1 | AJ76: 0 | AK76: 67 | AL76: 23 | AM76: 13 | AN76: 0 | AO76: 5.2 | AP76: 1.5 | AQ76: 0 | AS76: 41 | AT76: 10410020
A77: 10420020 | B77: Luzerne, Folgeaufw. mittl. OMD - siliert | C77: 350 | D77: 104 | E77: 896 | F77: 529 | G77: 339 | H77: 64 | I77: 176 | J77: 27 | K77: 0 | L77: 21 | M77: 18.3 | N77: 79 | O77: 22 | P77: 89 | Q77: 11 | R77: 9 | T77: 12.4 | U77: 3 | V77: 2.1 | W77: 0.2 | X77: 24.5 | Y77: 2.2 | Z77: 2.1 | AA77: 443 | AB77: GF | AC77: 403 | AD77: 8 | AE77: 26 | AF77: 47 | AI77: 0.1 | AJ77: 0 | AK77: 67 | AL77: 23 | AM77: 13 | AN77: 0 | AO77: 5.2 | AP77: 1.5 | AQ77: 0 | AS77: 42 | AT77: 10420020
A78: 10430020 | B78: Luzerne, Folgeaufw. niedr. OMD - siliert | C78: 350 | D78: 92 | E78: 908 | F78: 516 | G78: 373 | H78: 62 | I78: 186 | J78: 21 | K78: 0 | L78: 39 | M78: 18.4 | N78: 79 | O78: 23 | P78: 89 | Q78: 12 | R78: 8.7 | T78: 12.4 | U78: 3 | V78: 2.1 | W78: 0.2 | X78: 24.5 | Y78: 2.2 | Z78: 2.1 | AA78: 443 | AB78: GF | AC78: 403 | AD78: 8 | AE78: 26 | AF78: 47 | AI78: 0.1 | AJ78: 0 | AK78: 67 | AL78: 23 | AM78: 13 | AN78: 0 | AO78: 5.2 | AP78: 1.5 | AQ78: 0 | AS78: 43 | AT78: 10430020
A79: 10450020 | B79: Luzerne, hohe OMD - siliert | C79: 350 | D79: 121 | E79: 879 | F79: 400 | G79: 300 | H79: 71 | I79: 194 | J79: 27 | K79: 0 | L79: 25 | M79: 18 | N79: 86 | O79: 24 | P79: 89 | Q79: 12 | R79: 9.9 | T79: 14.3 | U79: 3.2 | V79: 2.3 | W79: 0.5 | X79: 26.9 | Y79: 4.3 | Z79: 2.4 | AA79: 439 | AB79: GF | AC79: 418 | AD79: 7 | AE79: 29 | AF79: 43 | AI79: 0.1 | AJ79: 0 | AK79: 67 | AL79: 23 | AM79: 13 | AN79: 0 | AO79: 5.2 | AP79: 1.5 | AQ79: 0 | AS79: 45 | AT79: 10450020
A80: 10460020 | B80: Luzerne, sehr niedr. OMD - siliert | C80: 350 | D80: 108 | E80: 892 | F80: 474 | G80: 363 | H80: 60 | I80: 177 | J80: 22 | K80: 0 | L80: 30 | M80: 18.1 | N80: 75 | O80: 22 | P80: 89 | Q80: 11 | R80: 8.3 | T80: 13 | U80: 3.1 | V80: 2.3 | W80: 0.5 | X80: 24.6 | Y80: 3.4 | Z80: 2.3 | AA80: 412 | AB80: GF | AC80: 288 | AD80: 8 | AE80: 26 | AF80: 39 | AI80: 0.1 | AJ80: 0 | AK80: 67 | AL80: 23 | AM80: 13 | AN80: 0 | AO80: 5.2 | AP80: 1.5 | AQ80: 0 | AS80: 46 | AT80: 10460020
A81: 10470030 | B81: Luzerne - Trockengrün | C81: 880 | D81: 114 | E81: 886 | F81: 444 | G81: 337 | H81: 77 | I81: 182 | J81: 20 | K81: 0 | L81: 42 | M81: 17.9 | N81: 104 | O81: 36 | P81: 84 | Q81: 6 | R81: 11 | T81: 11.2 | U81: 3.4 | V81: 2.5 | W81: 0.4 | X81: 28.1 | Y81: 7.7 | Z81: 1 | AA81: 457 | AB81: GF | AC81: 280 | AD81: 11 | AE81: 25 | AF81: 53 | AI81: 0.54 | AJ81: 0 | AK81: 34 | AL81: 56 | AM81: 8 | AN81: 0 | AO81: 5.2 | AP81: 1.5 | AQ81: 0 | AS81: 47 | AT81: 10470030
A82: 10480020 | B82: Luzernegrass - siliert | C82: 350 | D82: 86 | E82: 914 | F82: 493 | G82: 318 | H82: 75 | I82: 157 | J82: 27 | K82: 0 | L82: 82 | M82: 18.3 | N82: 87 | O82: 19 | P82: 89 | Q82: 5 | R82: 10.9 | T82: 7.9 | U82: 2.9 | V82: 1.8 | W82: 0.5 | X82: 25.7 | Y82: 5 | Z82: 2 | AA82: 414 | AB82: GF | AC82: 420 | AD82: 6 | AE82: 25 | AF82: 61 | AI82: 0.08 | AJ82: 0 | AK82: 67 | AL82: 23 | AM82: 13 | AN82: 0 | AO82: 5.3 | AP82: 1.6 | AQ82: 0 | AS82: 48 | AT82: 10480020
A83: 10490020 | B83: Mais, Ganzpflanze, hohe OMD - siliert | C83: 347 | D83: 39 | E83: 961 | F83: 389 | G83: 205 | H83: 77 | I83: 83 | J83: 30 | K83: 319 | L83: 11 | M83: 18.6 | N83: 86 | O83: 13 | P83: 62 | Q83: -8 | R83: 11.7 | T83: 1.7 | U83: 2 | V83: 1.5 | W83: 0.1 | X83: 9.3 | Y83: 1.5 | Z83: 1 | AA83: 138 | AB83: GF | AC83: 60 | AD83: 4 | AE83: 22 | AF83: 19 | AI83: 0.01 | AJ83: 0 | AK83: 58 | AL83: 31 | AM83: 4 | AN83: 1.5 | AO83: 3.4 | AP83: 2.1 | AQ83: 48 | AS83: 49 | AT83: 10490020
A84: 10500020 | B84: Mais, Ganzpflanze, mittl. OMD - siliert | C84: 343 | D84: 40 | E84: 960 | F84: 401 | G84: 215 | H84: 74 | I84: 80 | J84: 30 | K84: 309 | L84: 11 | M84: 18.6 | N84: 83 | O84: 12 | P84: 62 | Q84: -7 | R84: 11.2 | T84: 1.8 | U84: 2.1 | V84: 1.5 | W84: 0.1 | X84: 9.7 | Y84: 1.5 | Z84: 1 | AA84: 148 | AB84: GF | AC84: 63 | AD84: 4 | AE84: 22 | AF84: 19 | AI84: 0.01 | AJ84: 0 | AK84: 58 | AL84: 31 | AM84: 4 | AN84: 1.5 | AO84: 3.4 | AP84: 2.1 | AQ84: 46 | AS84: 50 | AT84: 10500020
A85: 10510020 | B85: Mais, Ganzpflanze, niedr. OMD - siliert | C85: 338 | D85: 41 | E85: 959 | F85: 417 | G85: 227 | H85: 71 | I85: 76 | J85: 29 | K85: 298 | L85: 12 | M85: 18.6 | N85: 79 | O85: 11 | P85: 62 | Q85: -7 | R85: 10.6 | T85: 1.8 | U85: 2.1 | V85: 1.5 | W85: 0.1 | X85: 9.8 | Y85: 1.5 | Z85: 0.7 | AA85: 169 | AB85: GF | AC85: 62 | AD85: 4 | AE85: 23 | AF85: 20 | AI85: 0.01 | AJ85: 0 | AK85: 58 | AL85: 31 | AM85: 4 | AN85: 1.5 | AO85: 3.4 | AP85: 2.1 | AQ85: 45 | AS85: 51 | AT85: 10510020
A86: 10520020 | B86: Mais, Ganzpflanze, hohe NDFD - siliert | C86: 336 | D86: 40 | E86: 960 | F86: 409 | G86: 214 | H86: 76 | I86: 82 | J86: 29 | K86: 301 | L86: 12 | M86: 18.6 | N86: 85 | O86: 12 | P86: 62 | Q86: -8 | R86: 11.5 | T86: 1.7 | U86: 2 | V86: 1.4 | W86: 0.1 | X86: 8.6 | Y86: 1.5 | Z86: 1 | AA86: 120 | AB86: GF | AC86: 58 | AD86: 4 | AE86: 21 | AF86: 16 | AI86: 0.01 | AJ86: 0 | AK86: 58 | AL86: 31 | AM86: 4 | AN86: 1.5 | AO86: 3.4 | AP86: 2.1 | AQ86: 45 | AS86: 52 | AT86: 10520020
A87: 10530020 | B87: Mais, Ganzpflanze, niedr. NDFD - siliert | C87: 350 | D87: 39 | E87: 961 | F87: 391 | G87: 216 | H87: 72 | I87: 78 | J87: 31 | K87: 320 | L87: 10 | M87: 18.6 | N87: 80 | O87: 12 | P87: 62 | Q87: -7 | R87: 10.8 | T87: 1.7 | U87: 2 | V87: 1.4 | W87: 0.1 | X87: 8.6 | Y87: 1.5 | Z87: 0.8 | AA87: 132 | AB87: GF | AC87: 58 | AD87: 4 | AE87: 21 | AF87: 16 | AI87: 0.01 | AJ87: 0 | AK87: 58 | AL87: 31 | AM87: 4 | AN87: 1.5 | AO87: 3.4 | AP87: 2.1 | AQ87: 48 | AS87: 53 | AT87: 10530020
A88: 10540020 | B88: Mais, Ganzpflanze, Stärkegehalt hoch - siliert | C88: 356 | D88: 38 | E88: 962 | F88: 381 | G88: 203 | H88: 74 | I88: 78 | J88: 31 | K88: 358 | L88: 10 | M88: 18.6 | N88: 83 | O88: 12 | P88: 62 | Q88: -8 | R88: 11.2 | T88: 1.6 | U88: 2 | V88: 1.4 | W88: 0.1 | X88: 8.9 | Y88: 1.4 | Z88: 0.7 | AA88: 149 | AB88: GF | AC88: 62 | AD88: 4 | AE88: 20 | AF88: 16 | AI88: 0.01 | AJ88: 0 | AK88: 58 | AL88: 31 | AM88: 4 | AN88: 1.5 | AO88: 3.4 | AP88: 2.1 | AQ88: 54 | AS88: 54 | AT88: 10540020
A89: 10550020 | B89: Mais, Ganzpflanze, Stärkegehalt niedrig - siliert | C89: 320 | D89: 43 | E89: 957 | F89: 438 | G89: 238 | H89: 74 | I89: 84 | J89: 28 | K89: 227 | L89: 14 | M89: 18.7 | N89: 83 | O89: 13 | P89: 62 | Q89: -7 | R89: 11.1 | T89: 1.9 | U89: 2.2 | V89: 1.5 | W89: 0.1 | X89: 12.2 | Y89: 2.2 | Z89: 1.1 | AA89: 186 | AB89: GF | AC89: 80 | AD89: 4 | AE89: 28 | AF89: 28 | AI89: 0.01 | AJ89: 0 | AK89: 58 | AL89: 31 | AM89: 4 | AN89: 1.5 | AO89: 3.4 | AP89: 2.1 | AQ89: 34 | AS89: 55 | AT89: 10550020
A90: 10570020 | B90: Rotklee - siliert | C90: 350 | D90: 91 | E90: 909 | F90: 438 | G90: 266 | H90: 77 | I90: 146 | J90: 32 | K90: 0 | L90: 51 | M90: 18.4 | N90: 84 | O90: 15 | P90: 94 | Q90: 4 | R90: 11.3 | T90: 15 | U90: 2.5 | V90: 3.6 | W90: 0.4 | X90: 30 | Y90: 5.5 | Z90: 3.3 | AA90: 424 | AB90: GF | AC90: 155 | AD90: 12 | AE90: 75 | AF90: 74 | AI90: 0.11 | AJ90: 0 | AK90: 49 | AL90: 46 | AM90: 17 | AN90: 0 | AO90: 5.1 | AP90: 1.75 | AQ90: 0 | AS90: 57 | AT90: 10570020
A91: 10590020 | B91: Rotkleegras - siliert | C91: 350 | D91: 97 | E91: 903 | F91: 441 | G91: 305 | H91: 72 | I91: 154 | J91: 27 | K91: 0 | L91: 56 | M91: 18.2 | N91: 83 | O91: 19 | P91: 94 | Q91: 6 | R91: 10.4 | T91: 7 | U91: 4 | V91: 2.5 | W91: 0.5 | X91: 35 | Y91: 5 | Z91: 2 | AA91: 652 | AB91: GF | AC91: 193 | AD91: 10 | AE91: 61 | AF91: 103 | AI91: 0.2 | AJ91: 0 | AK91: 53 | AL91: 40 | AM91: 14 | AN91: 0 | AO91: 5.1 | AP91: 1.75 | AQ91: 0 | AS91: 59 | AT91: 10590020
A92: 10600020 | B92: - siliert | C92: 275 | D92: 70 | E92: 930 | F92: 493 | G92: 310 | H92: 64 | I92: 72 | J92: 23 | K92: 177 | L92: 12 | M92: 18.1 | N92: 70 | O92: 10 | P92: 62 | Q92: -5 | R92: 9.2 | T92: 2.6 | U92: 2.4 | V92: 2.1 | W92: 0 | X92: 18 | AB92: GF | AD92: 6 | AE92: 33 | AJ92: 0 | AK92: 42 | AL92: 41 | AM92: 19 | AN92: 1.5 | AO92: 3.4 | AP92: 2.1 | AS92: 60 | AT92: 10600020
A93: 10630020 | B93: Zuckerrübe, Blattsilage - siliert | C93: 160 | D93: 171 | E93: 829 | F93: 350 | G93: 205 | H93: 79 | I93: 149 | J93: 34 | K93: 0 | L93: 16 | M93: 17 | N93: 86 | O93: 21 | P93: 94 | Q93: 5 | R93: 10.8 | T93: 10 | U93: 2.4 | V93: 4 | W93: 7 | X93: 27 | Y93: 14.4 | Z93: 5.6 | AA93: 240 | AB93: GF | AC93: 240 | AD93: 17 | AE93: 52 | AF93: 215 | AI93: 0.04 | AJ93: 0 | AK93: 57 | AL93: 35 | AM93: 12 | AN93: 0 | AO93: 5.4 | AP93: 1.6 | AQ93: 0 | AS93: 63 | AT93: 10630020
A94: 20650020 | B94: Biertreber, gepresst - siliert | C94: 280 | D94: 50 | E94: 950 | F94: 570 | G94: 255 | H94: 69 | I94: 245 | J94: 110 | K94: 10 | L94: 5 | M94: 21.4 | N94: 157 | O94: 92 | P94: 83 | Q94: 6 | R94: 11.5 | T94: 3.6 | U94: 6 | V94: 2 | W94: 0.4 | X94: 0.8 | Y94: 1.6 | Z94: 3 | AA94: -194 | AB94: SF | AC94: 200 | AD94: 25 | AE94: 135 | AF94: 40 | AI94: 0.1 | AJ94: 0 | AK94: 27 | AL94: 46 | AM94: 6 | AN94: 3.5 | AO94: 3.5 | AP94: 2.2 | AQ94: 1 | AS94: 65 | AT94: 20650020
A95: 20700020 | B95: Kartoffel, Pülpe - siliert | C95: 150 | D95: 40 | E95: 960 | F95: 365 | G95: 315 | H95: 94 | I95: 70 | J95: 2 | K95: 400 | L95: 16 | M95: 17.8 | N95: 99 | O95: 9 | P95: 75 | Q95: -12 | R95: 14 | T95: 2.1 | U95: 1 | V95: 1 | W95: 0.1 | X95: 14 | Y95: 4 | Z95: 3 | AA95: 63 | AB95: SF | AC95: 401 | AD95: 14 | AE95: 65 | AF95: 23 | AI95: 0.1 | AJ95: 0 | AK95: 20 | AL95: 78 | AM95: 12 | AN95: 0 | AO95: 5.4 | AP95: 1.4 | AQ95: 100 | AS95: 70 | AT95: 20700020
A96: 20720020 | B96: Mohrrübe, Trester - siliert | C96: 140 | D96: 80 | E96: 920 | F96: 711 | G96: 512 | H96: 76 | I96: 87 | J96: 25 | K96: 0 | L96: 68 | M96: 18.1 | N96: 79 | O96: 9 | P96: 75 | Q96: -5 | R96: 11.2 | T96: 4.2 | U96: 2.9 | V96: 1.9 | W96: 10 | X96: 16.3 | Y96: 4 | Z96: 1.7 | AA96: 633 | AB96: SF | AC96: 1816 | AD96: 228 | AE96: 710 | AF96: 292 | AI96: 0.01 | AJ96: 0 | AK96: 21 | AL96: 79 | AM96: 13 | AN96: 0 | AO96: 2.3 | AP96: 0.9 | AQ96: 0 | AS96: 72 | AT96: 20720020
A97: 41260020 | B97: Mais, Kleberfutter - siliert | C97: 440 | D97: 50 | E97: 950 | F97: 420 | G97: 120 | H97: 84 | I97: 170 | J97: 30 | K97: 340 | L97: 0 | M97: 18.8 | N97: 93 | O97: 14 | P97: 84 | Q97: 5 | R97: 12.8 | T97: 2.6 | U97: 8.7 | V97: 2 | W97: 0.2 | X97: 9.8 | Y97: 2.4 | Z97: 3.5 | AA97: -27 | AB97: KF | AC97: 401 | AD97: 40 | AE97: 61 | AF97: 27 | AI97: 0.1 | AJ97: 0 | AK97: 50 | AL97: 45 | AM97: 35 | AN97: 0 | AO97: 2.8 | AP97: 1.4 | AQ97: 34 | AS97: 126 | AT97: 41260020
A98: 41270020 | B98: Mais, Kolben mit Lieschen - siliert | C98: 590 | D98: 23 | E98: 977 | F98: 231 | G98: 110 | H98: 85 | I98: 75 | J98: 38 | K98: 575 | L98: 19 | M98: 18.6 | N98: 96 | O98: 14 | P98: 67 | Q98: -11 | R98: 13 | T98: 0.6 | U98: 2.5 | V98: 1.1 | W98: 0.2 | X98: 5.3 | Y98: 2.5 | Z98: 0.4 | AA98: 49 | AB98: KF | AC98: 100 | AD98: 4 | AE98: 22 | AF98: 20 | AI98: 0.12 | AJ98: 0 | AK98: 54 | AL98: 39 | AM98: 3 | AN98: 0.5 | AO98: 3.4 | AP98: 2.1 | AQ98: 144 | AS98: 127 | AT98: 41270020
A99: 10090030 | B99: Gras, frisch o. kons. 1. Aufw. - trocken | C99: 860 | D99: 89 | E99: 911 | F99: 524 | G99: 284 | H99: 73 | I99: 156 | J99: 32 | K99: 0 | L99: 64 | M99: 18.4 | N99: 91 | O99: 25 | P99: 80 | Q99: 4 | R99: 10.7 | T99: 5.8 | U99: 2.7 | V99: 1.8 | W99: 1.1 | X99: 21.3 | Y99: 7.3 | Z99: 2.2 | AA99: 250 | AB99: GF | AC99: 589 | AD99: 6 | AE99: 34 | AF99: 100 | AI99: 0.08 | AJ99: 0 | AK99: 35 | AL99: 57 | AM99: 10 | AN99: 0 | AO99: 5.4 | AP99: 1.7 | AQ99: 0 | AS99: 9 | AT99: 10090030
A100: 10100030 | B100: Gras, frisch o. kons. 2. Aufw. - trocken | C100: 860 | D100: 96 | E100: 904 | F100: 564 | G100: 292 | H100: 70 | I100: 159 | J100: 31 | K100: 0 | L100: 49 | M100: 18.3 | N100: 88 | O100: 26 | P100: 80 | Q100: 5 | R100: 10 | T100: 6.8 | U100: 2.5 | V100: 2 | W100: 1.4 | X100: 18.7 | Y100: 8.7 | Z100: 2.7 | AA100: 126 | AB100: GF | AC100: 690 | AD100: 7 | AE100: 37 | AF100: 113 | AI100: 0.05 | AJ100: 0 | AK100: 35 | AL100: 57 | AM100: 10 | AN100: 0 | AO100: 5.4 | AP100: 1.7 | AQ100: 0 | AS100: 10 | AT100: 10100030
A101: 10110030 | B101: Gras, frisch o. kons. 3. Aufw. - trocken | C101: 860 | D101: 107 | E101: 893 | F101: 550 | G101: 279 | H101: 71 | I101: 161 | J101: 31 | K101: 0 | L101: 61 | M101: 18.1 | N101: 89 | O101: 26 | P101: 80 | Q101: 5 | R101: 10.1 | T101: 7.6 | U101: 2.6 | V101: 2.3 | W101: 1.3 | X101: 19 | Y101: 8.9 | Z101: 2.8 | AA101: 117 | AB101: GF | AC101: 746 | AD101: 7 | AE101: 33 | AF101: 115 | AI101: 0.05 | AJ101: 0 | AK101: 35 | AL101: 57 | AM101: 10 | AN101: 0 | AO101: 5.4 | AP101: 1.7 | AQ101: 0 | AS101: 11 | AT101: 10110030
A102: 10120030 | B102: Gras, frisch o. kons. 4. Aufw. - trocken | C102: 860 | D102: 124 | E102: 876 | F102: 531 | G102: 260 | H102: 72 | I102: 179 | J102: 33 | K102: 0 | L102: 41 | M102: 18 | N102: 92 | O102: 29 | P102: 80 | Q102: 8 | R102: 10.2 | T102: 7.8 | U102: 2.8 | V102: 2.2 | W102: 0.4 | X102: 19.7 | Y102: 8.9 | Z102: 2.3 | AA102: 127 | AB102: GF | AC102: 235 | AD102: 8 | AE102: 30 | AF102: 56 | AI102: 0.05 | AJ102: 0 | AK102: 35 | AL102: 57 | AM102: 10 | AN102: 0 | AO102: 5.4 | AP102: 1.7 | AQ102: 0 | AS102: 12 | AT102: 10120030
A103: 10130030 | B103: Gras, frisch o. kons. 5. Aufw. - trocken | C103: 860 | D103: 140 | E103: 860 | F103: 506 | G103: 245 | H103: 74 | I103: 184 | J103: 35 | K103: 0 | L103: 39 | M103: 17.7 | N103: 93 | O103: 30 | P103: 80 | Q103: 8 | R103: 10.4 | T103: 6.9 | U103: 3.3 | V103: 2.1 | W103: 0.3 | X103: 24.7 | Y103: 8.9 | Z103: 2.5 | AA103: 238 | AB103: GF | AC103: 437 | AD103: 8 | AE103: 29 | AF103: 54 | AI103: 0.05 | AJ103: 0 | AK103: 35 | AL103: 57 | AM103: 10 | AN103: 0 | AO103: 5.4 | AP103: 1.7 | AQ103: 0 | AS103: 13 | AT103: 10130030
A104: 10140030 | B104: Gras, frisch o. kons. FolgeAufw. - trocken | C104: 860 | D104: 100 | E104: 900 | F104: 544 | G104: 291 | H104: 70 | I104: 156 | J104: 30 | K104: 0 | L104: 65 | M104: 18.2 | N104: 88 | O104: 25 | P104: 80 | Q104: 5 | R104: 10.1 | T104: 7 | U104: 2.7 | V104: 2.2 | W104: 0.8 | X104: 19.2 | Y104: 4.4 | Z104: 1.5 | AA104: 309 | AB104: GF | AC104: 399 | AD104: 9 | AE104: 25 | AF104: 60 | AI104: 0.05 | AJ104: 0 | AK104: 35 | AL104: 57 | AM104: 10 | AN104: 0 | AO104: 5.4 | AP104: 1.7 | AQ104: 0 | AS104: 14 | AT104: 10140030
A105: 10610000 | B105: Stroh, Gerste - trocken | C105: 860 | D105: 57 | E105: 943 | F105: 800 | G105: 464 | H105: 50 | I105: 46 | J105: 19 | K105: 14 | L105: 3 | M105: 18.4 | N105: 49 | O105: 2 | P105: 26 | Q105: -5 | R105: 7.1 | T105: 5 | U105: 0.8 | V105: 0.9 | W105: 2 | X105: 17 | Y105: 8 | Z105: 2 | AA105: 172 | AB105: GF | AC105: 305 | AD105: 5 | AE105: 50 | AF105: 80 | AI105: 0.02 | AJ105: 0 | AK105: 35 | AL105: 57 | AM105: 10 | AN105: 0 | AO105: 2.1 | AP105: 0.5 | AQ105: 2 | AS105: 61 | AT105: 10610000
A106: 30770030 | B106: Ackerbohne, Samen nativ - trocken | C106: 880 | D106: 40 | E106: 960 | F106: 133 | G106: 68 | H106: 91 | I106: 296 | J106: 16 | K106: 443 | L106: 32 | M106: 19.1 | N106: 118 | O106: 31 | P106: 84 | Q106: 20 | R106: 13.8 | T106: 1.4 | U106: 6.3 | V106: 1.6 | W106: 0.2 | X106: 15.8 | Y106: 2.1 | Z106: 0.9 | AA106: 298 | AB106: KF | AC106: 30 | AD106: 12 | AE106: 45 | AF106: 30 | AI106: 0.18 | AJ106: 0 | AK106: 42 | AL106: 58 | AM106: 14 | AN106: 0.4 | AO106: 6.2 | AP106: 0.75 | AQ106: 89 | AS106: 77 | AT106: 30770030
A107: 30780030 | B107: Ackerbohne, Samenschalen - trocken | C107: 883 | D107: 35 | E107: 965 | F107: 569 | G107: 501 | H107: 59 | I107: 152 | J107: 10 | K107: 147 | L107: 20 | M107: 18.9 | N107: 71 | O107: 14 | P107: 75 | Q107: 8 | R107: 8.5 | T107: 5.5 | U107: 1.6 | V107: 2 | W107: 0.2 | X107: 13 | Y107: 0.5 | Z107: 1.2 | AA107: 253 | AB107: KF | AC107: 89 | AD107: 10 | AE107: 35 | AF107: 26 | AI107: 0.21 | AJ107: 0 | AK107: 42 | AL107: 58 | AM107: 14 | AN107: 0.4 | AO107: 6.6 | AP107: 1.2 | AQ107: 29 | AS107: 78 | AT107: 30780030
A108: 30790030 | B108: Erbsen, Samen nativ - trocken | C108: 880 | D108: 37 | E108: 963 | F108: 158 | G108: 80 | H108: 90 | I108: 230 | J108: 17 | K108: 491 | L108: 48 | M108: 18.7 | N108: 114 | O108: 28 | P108: 99 | Q108: 12 | R108: 13.5 | T108: 1.1 | U108: 4.7 | V108: 1.5 | W108: 0.2 | X108: 13.3 | Y108: 1 | Z108: 1.6 | AA108: 221 | AB108: KF | AC108: 30 | AD108: 12 | AE108: 45 | AF108: 30 | AI108: 0.1 | AJ108: 0 | AK108: 42 | AL108: 58 | AM108: 15 | AN108: 0.8 | AO108: 7.2 | AP108: 0.95 | AQ108: 103 | AS108: 79 | AT108: 30790030
A109: 30800030 | B109: Erbsen, Samenproteinkonzentrat - trocken | C109: 916 | D109: 67 | E109: 933 | F109: 6 | G109: 3 | H109: 86 | I109: 815 | J109: 82 | K109: 0 | L109: 1 | M109: 23.2 | N109: 176 | O109: 96 | P109: 97 | Q109: 95 | R109: 14.4 | T109: 2 | U109: 8 | V109: 2.4 | W109: 0.6 | X109: 10 | Y109: 4 | Z109: 2.5 | AA109: 13 | AB109: KF | AC109: 100 | AD109: 8 | AE109: 35 | AF109: 28 | AI109: 0.1 | AJ109: 0 | AK109: 42 | AL109: 58 | AM109: 15 | AN109: 0.8 | AO109: 8.4 | AP109: 0.9 | AQ109: 0 | AS109: 80 | AT109: 30800030
A110: 30810030 | B110: Erbsen, Samenschalen - trocken | C110: 900 | D110: 27 | E110: 973 | F110: 745 | G110: 648 | H110: 66 | I110: 55 | J110: 9 | K110: 106 | L110: 0 | M110: 18.7 | N110: 69 | O110: 5 | P110: 75 | Q110: -8 | R110: 9.9 | T110: 5.5 | U110: 1.6 | V110: 2 | W110: 0.2 | X110: 13 | Y110: 0.5 | Z110: 1.2 | AA110: 253 | AB110: KF | AC110: 89 | AD110: 10 | AE110: 35 | AF110: 26 | AI110: 0.21 | AJ110: 0 | AK110: 42 | AL110: 58 | AM110: 15 | AN110: 0.8 | AO110: 6.6 | AP110: 1.2 | AQ110: 22 | AS110: 81 | AT110: 30810030
A111: 30820030 | B111: Gerste, Samen - trocken | C111: 880 | D111: 30 | E111: 970 | F111: 243 | G111: 75 | H111: 87 | I111: 123 | J111: 33 | K111: 506 | L111: 32 | M111: 18.7 | N111: 99 | O111: 15 | P111: 90 | Q111: -3 | R111: 13.4 | T111: 0.7 | U111: 4 | V111: 1.3 | W111: 0.3 | X111: 5 | Y111: 1 | Z111: 1.5 | AA111: 19 | AB111: KF | AC111: 50 | AD111: 8 | AE111: 50 | AF111: 25 | AI111: 0.1 | AJ111: 0 | AK111: 26 | AL111: 72 | AM111: 19 | AN111: 0 | AO111: 3.6 | AP111: 1.5 | AQ111: 76 | AS111: 82 | AT111: 30820030
A112: 30830030 | B112: Getreide, Trockensch. a. Bioethanolg. - trocken | C112: 900 | D112: 50 | E112: 950 | F112: 441 | G112: 162 | H112: 78 | I112: 356 | J112: 81 | K112: 35 | L112: 45 | M112: 21.1 | N112: 147 | O112: 74 | P112: 92 | Q112: 26 | R112: 12.8 | T112: 1 | U112: 10 | V112: 3 | W112: 0.3 | X112: 15 | Y112: 0.4 | Z112: 4 | AA112: 136 | AB112: KF | AC112: 100 | AD112: 7 | AE112: 74 | AF112: 75 | AI112: 1.1 | AJ112: 0 | AK112: 26 | AL112: 62 | AM112: 18 | AN112: 0 | AO112: 2.1 | AP112: 1.5 | AQ112: 5 | AS112: 83 | AT112: 30830030
A113: 30840030 | B113: Hafer, Samen - trocken | C113: 880 | D113: 28 | E113: 972 | F113: 274 | G113: 122 | H113: 77 | I113: 123 | J113: 48 | K113: 453 | L113: 16 | M113: 19.2 | N113: 85 | O113: 10 | P113: 59 | Q113: -1 | R113: 12 | T113: 1.2 | U113: 3.6 | V113: 1.2 | W113: 0.4 | X113: 5 | Y113: 1 | Z113: 1.5 | AA113: 24 | AB113: KF | AC113: 70 | AD113: 6 | AE113: 32 | AF113: 18 | AI113: 0.06 | AJ113: 0 | AK113: 26 | AL113: 72 | AM113: 19 | AN113: 0 | AO113: 4.1 | AP113: 1.5 | AQ113: 45 | AS113: 84 | AT113: 30840030
A114: 30850030 | B114: Hafer, Samen, Haferschälkleie - trocken | C114: 900 | D114: 43 | E114: 957 | F114: 560 | G114: 340 | H114: 64 | I114: 58 | J114: 16 | K114: 104 | L114: 11 | M114: 18.5 | N114: 66 | O114: 5 | P114: 59 | Q114: -7 | R114: 9.5 | T114: 1.1 | U114: 1.8 | V114: 2.2 | W114: 0.2 | X114: 5.5 | Y114: 0.4 | Z114: 1.1 | AA114: 70 | AB114: KF | AC114: 99 | AD114: 6 | AE114: 31 | AF114: 49 | AJ114: 0 | AK114: 48 | AL114: 45 | AM114: 18 | AN114: 0.2 | AO114: 3.7 | AP114: 1.6 | AQ114: 10 | AS114: 85 | AT114: 30850030
A115: 30860030 | B115: Kartoffeleiweiß - trocken | C115: 900 | D115: 22 | E115: 978 | F115: 65 | G115: 19 | H115: 85 | I115: 860 | J115: 40 | K115: 0 | L115: 10 | M115: 23.3 | Q115: 87 | R115: 14 | T115: 0.1 | U115: 2.5 | V115: 0.5 | W115: 0.3 | X115: 5.5 | Y115: 1.1 | Z115: 10 | AA115: -501 | AB115: KF | AC115: 507 | AD115: 42 | AE115: 23 | AF115: 6 | AI115: 1.1 | AJ115: 0 | AK115: 19 | AL115: 77 | AM115: 11 | AN115: 0 | AO115: 7.7 | AP115: 2.2 | AQ115: 0 | AS115: 86 | AT115: 30860030
A116: 30870030 | B116: Kokospalme, Nuss, Fruchtfleischexp. - trocken | C116: 900 | D116: 69 | E116: 931 | F116: 520 | G116: 275 | H116: 79 | I116: 229 | J116: 68 | K116: 0 | L116: 103 | M116: 19.8 | N116: 110 | O116: 37 | P116: 88 | Q116: 12 | R116: 12.5 | T116: 1.8 | U116: 6.6 | V116: 3.8 | W116: 1 | X116: 24.1 | Y116: 7.2 | Z116: 3.3 | AA116: 252 | AB116: KF | AC116: 372 | AD116: 40 | AE116: 42 | AF116: 81 | AJ116: 0 | AK116: 12 | AL116: 84 | AM116: 23 | AN116: 1.1 | AO116: 2.7 | AP116: 1.6 | AQ116: 0 | AS116: 87 | AT116: 30870030
A117: 30880030 | B117: Mais, Korn - trocken | C117: 880 | D117: 17 | E117: 983 | F117: 115 | G117: 31 | H117: 85 | I117: 93 | J117: 52 | K117: 711 | L117: 19 | M117: 18.9 | N117: 108 | O117: 25 | P117: 96 | Q117: -9 | R117: 13.2 | T117: 0.3 | U117: 3.2 | V117: 1.7 | W117: 0.1 | X117: 3.6 | Y117: 0.5 | Z117: 1.2 | AA117: 8 | AB117: KF | AC117: 81 | AD117: 4 | AE117: 32 | AF117: 46 | AI117: 0.06 | AJ117: 0 | AK117: 21 | AL117: 77 | AM117: 7 | AN117: 0.1 | AO117: 2.8 | AP117: 2 | AQ117: 299 | AS117: 88 | AT117: 30880030
A118: 30890030 | B118: Lein, Samen nativ - trocken | C118: 910 | D118: 50 | E118: 950 | F118: 260 | G118: 174 | H118: 65 | I118: 227 | J118: 370 | K118: 0 | L118: 35 | M118: 26.7 | N118: 95 | O118: 34 | P118: 90 | Q118: 15 | R118: 14.1 | T118: 3 | U118: 6 | V118: 4.5 | W118: 0.8 | X118: 8 | Y118: 0.2 | Z118: 0.6 | AA118: 197 | AB118: KF | AC118: 113 | AE118: 91 | AF118: 25 | AJ118: 0 | AK118: 35 | AL118: 62 | AM118: 13 | AN118: 0.1 | AO118: 4.4 | AP118: 2.2 | AQ118: 0 | AS118: 89 | AT118: 30890030
A119: 30900030 | B119: Lein, Samen, ExtrSchr. aufgefettet - trocken | C119: 890 | D119: 66 | E119: 934 | F119: 242 | G119: 116 | H119: 73 | I119: 385 | J119: 52 | K119: 20 | L119: 45 | M119: 20.4 | N119: 140 | O119: 72 | P119: 90 | Q119: 32 | R119: 11.2 | T119: 4.1 | U119: 9.4 | V119: 6.1 | W119: 1.1 | X119: 14.9 | Y119: 0.7 | Z119: 4.2 | AA119: 147 | AB119: KF | AC119: 254 | AD119: 21 | AE119: 67 | AF119: 43 | AI119: 0.15 | AJ119: 0 | AK119: 17 | AL119: 79 | AM119: 14 | AN119: 0.5 | AO119: 3.5 | AP119: 1.5 | AQ119: 2 | AS119: 90 | AT119: 30900030
A120: 30910030 | B120: Lein, Samen, Presskuchen - trocken | C120: 910 | D120: 64 | E120: 936 | F120: 234 | G120: 112 | H120: 72 | I120: 357 | J120: 98 | K120: 20 | L120: 45 | M120: 21.3 | N120: 125 | O120: 58 | P120: 90 | Q120: 31 | R120: 11.7 | T120: 4 | U120: 9.1 | V120: 5.9 | W120: 1.1 | X120: 14.4 | Y120: 0.7 | Z120: 4.1 | AA120: 141 | AB120: KF | AC120: 246 | AD120: 20 | AE120: 65 | AF120: 42 | AI120: 0.15 | AJ120: 0 | AK120: 12 | AL120: 84 | AM120: 23 | AN120: 1.1 | AO120: 3.5 | AP120: 1.5 | AQ120: 2 | AS120: 91 | AT120: 30910030
A121: 30920030 | B121: Mais, Korn, Maiskleberfutter - trocken | C121: 900 | D121: 64 | E121: 936 | F121: 265 | G121: 155 | H121: 84 | I121: 223 | J121: 37 | K121: 163 | L121: 37 | M121: 19.1 | N121: 96 | O121: 18 | P121: 82 | Q121: 13 | R121: 12.9 | T121: 0.7 | U121: 11.5 | V121: 5.1 | W121: 3 | X121: 15.9 | Y121: 2.7 | Z121: 6.9 | AA121: 31 | AB121: KF | AC121: 159 | AD121: 10 | AE121: 85 | AF121: 24 | AI121: 0.16 | AJ121: 0 | AK121: 50 | AL121: 45 | AM121: 35 | AN121: 0 | AO121: 3.1 | AP121: 1.6 | AQ121: 34 | AS121: 92 | AT121: 30920030
A122: 30930030 | B122: Getreide, Samen, Malzkeime - trocken | C122: 900 | D122: 31 | E122: 969 | F122: 350 | G122: 205 | H122: 78 | I122: 205 | J122: 21 | K122: 199 | L122: 106 | M122: 19.1 | N122: 115 | O122: 39 | P122: 86 | Q122: 7 | R122: 11.8 | T122: 0.1 | U122: 0.5 | V122: 1.6 | W122: 0.3 | X122: 11 | Y122: 2.7 | Z122: 6.4 | AA122: -181 | AB122: KF | AC122: 191 | AD122: 11 | AE122: 85 | AF122: 53 | AI122: 0.05 | AJ122: 0 | AK122: 26 | AL122: 62 | AM122: 18 | AN122: 0 | AO122: 4.4 | AP122: 1.4 | AQ122: 20 | AS122: 93 | AT122: 30930030
A123: 30940030 | B123: Zuckerrübe, Melasseschnitzel - trocken | C123: 900 | D123: 75 | E123: 925 | F123: 399 | G123: 226 | H123: 90 | I123: 96 | J123: 13 | K123: 0 | L123: 171 | M123: 17.7 | N123: 96 | O123: 14 | P123: 73 | Q123: -8 | R123: 13.1 | T123: 11 | U123: 0.8 | V123: 1.8 | W123: 1.7 | X123: 11.3 | Y123: 1.4 | Z123: 3 | AA123: 137 | AB123: KF | AC123: 589 | AD123: 14 | AE123: 22 | AF123: 74 | AI123: 0.25 | AJ123: 0 | AK123: 19 | AL123: 77 | AM123: 11 | AN123: 0 | AO123: 5.5 | AP123: 1.6 | AQ123: 0 | AS123: 94 | AT123: 30940030
A124: 30950030 | B124: Palmkern, Presskuchen - trocken | C124: 923 | D124: 45 | E124: 955 | F124: 718 | G124: 386 | H124: 69 | I124: 167 | J124: 69 | K124: 3 | L124: 15 | M124: 20.2 | N124: 90 | O124: 25 | P124: 82 | Q124: 6 | R124: 11 | T124: 2.3 | U124: 5.9 | V124: 3.2 | W124: 0.1 | X124: 7.8 | Y124: 2.2 | Z124: 2.6 | AA124: -20 | AB124: KF | AC124: 100 | AD124: 30 | AE124: 68 | AF124: 240 | AI124: 0.1 | AJ124: 0 | AK124: 12 | AL124: 84 | AM124: 23 | AN124: 1.1 | AO124: 3.1 | AP124: 1.85 | AS124: 95 | AT124: 30950030
A125: 30960030 | B125: Raps, Samen nativ - trocken | C125: 920 | D125: 42 | E125: 958 | F125: 160 | G125: 25 | H125: 74 | I125: 230 | J125: 450 | K125: 36 | L125: 45 | M125: 28.4 | N125: 113 | O125: 42 | P125: 88 | Q125: 12 | R125: 17.6 | T125: 3 | U125: 7.6 | V125: 3.1 | W125: 0.2 | X125: 8.6 | Y125: 0.6 | Z125: 0.7 | AA125: 168 | AB125: KF | AC125: 100 | AD125: 12 | AE125: 88 | AF125: 48 | AI125: 1 | AJ125: 0 | AK125: 22 | AL125: 71 | AM125: 14 | AN125: 0 | AO125: 5.6 | AP125: 1.4 | AQ125: 4 | AS125: 96 | AT125: 30960030
A126: 30970130 | B126: Raps, Samen, ExtrSchr. - trocken | C126: 890 | D126: 79 | E126: 921 | F126: 298 | G126: 217 | H126: 79 | I126: 385 | J126: 35 | K126: 72 | L126: 86 | M126: 19.6 | N126: 146 | O126: 73 | P126: 81 | Q126: 30 | R126: 11.7 | T126: 8.7 | U126: 11.9 | V126: 6 | W126: 0.5 | X126: 14 | Y126: 0.4 | Z126: 7.9 | AA126: -124 | AB126: KF | AC126: 322 | AD126: 8 | AE126: 80 | AF126: 75 | AI126: 1.1 | AJ126: 0 | AK126: 16 | AL126: 79 | AM126: 12 | AN126: 0.1 | AO126: 4.4 | AP126: 2 | AQ126: 7 | AS126: 97 | AT126: 30970130
A127: 30970230 | B127: Raps, Samen, ExtrSchr. - trocken | C127: 890 | D127: 79 | E127: 921 | F127: 298 | G127: 217 | H127: 79 | I127: 385 | J127: 35 | K127: 72 | L127: 86 | M127: 19.6 | N127: 165 | O127: 93 | P127: 81 | Q127: 26 | R127: 11.7 | T127: 8.7 | U127: 11.9 | V127: 6 | W127: 0.5 | X127: 14 | Y127: 0.4 | Z127: 7.9 | AA127: -124 | AB127: KF | AC127: 322 | AD127: 8 | AE127: 80 | AF127: 75 | AI127: 1.1 | AJ127: 0 | AK127: 9 | AL127: 86 | AM127: 8 | AN127: 0 | AO127: 4.4 | AP127: 2 | AQ127: 7 | AS127: 97 | AT127: 30970230
A128: 30970330 | B128: Raps, Samen, ExtrSchr. - trocken | C128: 890 | D128: 79 | E128: 921 | F128: 298 | G128: 217 | H128: 79 | I128: 385 | J128: 35 | K128: 72 | L128: 86 | M128: 19.6 | N128: 145 | O128: 73 | P128: 81 | Q128: 30 | R128: 11.7 | T128: 8.7 | U128: 11.9 | V128: 6 | W128: 0.5 | X128: 14 | Y128: 0.4 | Z128: 7.9 | AA128: -124 | AB128: KF | AC128: 322 | AD128: 8 | AE128: 80 | AF128: 75 | AI128: 1.1 | AJ128: 0 | AK128: 16 | AL128: 78 | AM128: 12 | AN128: 0.2 | AO128: 4.4 | AP128: 2 | AQ128: 7 | AS128: 97 | AT128: 30970330
A129: 30970430 | B129: Raps, Samen, ExtrSchr. - trocken | C129: 890 | D129: 79 | E129: 921 | F129: 298 | G129: 217 | H129: 79 | I129: 385 | J129: 35 | K129: 72 | L129: 86 | M129: 19.6 | N129: 128 | O129: 56 | P129: 81 | Q129: 33 | R129: 11.7 | T129: 8.7 | U129: 11.9 | V129: 6 | W129: 0.5 | X129: 14 | Y129: 0.4 | Z129: 7.9 | AA129: -124 | AB129: KF | AC129: 322 | AD129: 8 | AE129: 80 | AF129: 75 | AI129: 1.1 | AJ129: 0 | AK129: 25 | AL129: 69 | AM129: 17 | AN129: 0.1 | AO129: 4.4 | AP129: 2 | AQ129: 7 | AS129: 97 | AT129: 30970430
A130: 30980130 | B130: Raps, Samen, ExtrSchr. therm. beh. - trocken | C130: 890 | D130: 86 | E130: 914 | F130: 305 | G130: 212 | H130: 79 | I130: 371 | J130: 37 | K130: 81 | L130: 92 | M130: 19.4 | N130: 152 | O130: 80 | P130: 82 | Q130: 26 | R130: 11.7 | T130: 8.7 | U130: 11.9 | V130: 6 | W130: 0.5 | X130: 14 | Y130: 0.4 | Z130: 7.9 | AA130: -124 | AB130: KF | AC130: 322 | AD130: 7 | AE130: 74 | AF130: 75 | AI130: 1.1 | AJ130: 0 | AK130: 22 | AL130: 69 | AM130: 10 | AN130: 0 | AO130: 4.4 | AP130: 2 | AQ130: 8 | AS130: 98 | AT130: 30980130
A131: 30980230 | B131: Raps, Samen, ExtrSchr. therm. beh. - trocken | C131: 890 | D131: 86 | E131: 914 | F131: 305 | G131: 212 | H131: 79 | I131: 371 | J131: 37 | K131: 81 | L131: 92 | M131: 19.4 | N131: 177 | O131: 105 | P131: 82 | Q131: 21 | R131: 11.7 | T131: 8.7 | U131: 11.9 | V131: 6 | W131: 0.5 | X131: 14 | Y131: 0.4 | Z131: 7.9 | AA131: -124 | AB131: KF | AC131: 322 | AD131: 7 | AE131: 74 | AF131: 75 | AI131: 1.1 | AJ131: 0 | AK131: 12 | AL131: 78 | AM131: 8 | AN131: 0 | AO131: 4.4 | AP131: 2 | AQ131: 8 | AS131: 98 | AT131: 30980230
A132: 30980330 | B132: Raps, Samen, ExtrSchr. therm. beh. - trocken | C132: 890 | D132: 86 | E132: =1000-D132 -> 914 | F132: 305 | G132: 212 | H132: 79 | I132: 371 | J132: 37 | K132: 81 | L132: 92 | M132: 19.4 | N132: 133 | O132: 61 | P132: 82 | Q132: 30 | R132: 11.7 | T132: 8.7 | U132: 11.9 | V132: 6 | W132: 0.5 | X132: 14 | Y132: 0.4 | Z132: 7.9 | AA132: -124 | AB132: KF | AC132: 322 | AD132: 7 | AE132: 74 | AF132: 75 | AI132: 1.1 | AJ132: 0 | AK132: 32 | AL132: 60 | AM132: 13 | AN132: 0 | AO132: 4.4 | AP132: 2 | AQ132: 8 | AS132: 98 | AT132: 30980330
A133: 30990030 | B133: Raps, Samen, Presskuchen - trocken | C133: 900 | D133: 63 | E133: 937 | F133: 244 | G133: 204 | H133: 81 | I133: 331 | J133: 134 | K133: 49 | L133: 93 | M133: 21.7 | N133: 114 | O133: 39 | P133: 88 | Q133: 28 | R133: 14 | T133: 8.2 | U133: 11.9 | V133: 5.5 | W133: 0.5 | X133: 15 | Y133: 0.4 | Z133: 7.9 | AA133: -98 | AB133: KF | AC133: 100 | AD133: 7 | AE133: 74 | AF133: 75 | AI133: 1.1 | AJ133: 0 | AK133: 38 | AL133: 56 | AM133: 26 | AN133: 0 | AO133: 5.2 | AP133: 1.9 | AQ133: 5 | AS133: 99 | AT133: 30990030
A134: 31000030 | B134: Raps, Öl - trocken | C134: 990 | D134: 1 | E134: 999 | F134: 0 | G134: 0 | H134: 84 | I134: 0 | J134: 999 | K134: 0 | L134: 0 | M134: 39.8 | N134: 83 | O134: 0 | P134: 0 | Q134: -20 | R134: 30 | AB134: KF | AC134: 10 | AJ134: 0 | AO134: 0 | AP134: 0 | AQ134: 0 | AS134: 100 | AT134: 31000030
A135: 31010030 | B135: Roggen, Samen - trocken | C135: 880 | D135: 19 | E135: 981 | F135: 162 | G135: 36 | H135: 87 | I135: 104 | J135: 20 | K135: 592 | L135: 67 | M135: 18.3 | N135: 92 | O135: 8 | P135: 75 | Q135: -5 | R135: 13 | T135: 0.6 | U135: 3.1 | V135: 1.2 | W135: 0.2 | X135: 5.6 | Y135: 1 | Z135: 1.5 | AA135: 30 | AB135: KF | AC135: 30 | AD135: 4 | AE135: 23 | AF135: 6 | AI135: 0.1 | AJ135: 0 | AK135: 33 | AL135: 62 | AM135: 41 | AN135: 0 | AO135: 3.8 | AP135: 1.6 | AQ135: 89 | AS135: 101 | AT135: 31010030
A136: 31020030 | B136: Roggen, Samen, Kleie - trocken | C136: 880 | D136: 45 | E136: 955 | F136: 420 | G136: 110 | H136: 77 | I136: 155 | J136: 34 | K136: 225 | L136: 80 | M136: 18.9 | N136: 87 | O136: 14 | P136: 59 | Q136: 3 | R136: 11.7 | T136: 1.7 | U136: 9.5 | V136: 4 | W136: 0.2 | X136: 13.5 | Y136: 1.1 | Z136: 2 | AA136: 198 | AB136: KF | AJ136: 0 | AK136: 48 | AL136: 45 | AM136: 18 | AN136: 0.2 | AO136: 3.7 | AP136: 1.5 | AQ136: 23 | AS136: 102 | AT136: 31020030
A137: 31030030 | B137: Schokomehl, der Back- Süßwarenind. - trocken | C137: 900 | D137: 38 | E137: 962 | F137: 124 | G137: 60 | H137: 87 | I137: 139 | J137: 98 | K137: 434 | L137: 114 | M137: 19.9 | N137: 102 | O137: 19 | P137: 92 | Q137: -1 | R137: 14.3 | T137: 0.9 | U137: 2.3 | V137: 1 | W137: 4.7 | X137: 5.5 | Y137: 9 | Z137: 1.5 | AA137: -2 | AB137: KF | AC137: 256 | AD137: 10 | AE137: 17 | AF137: 17 | AJ137: 0 | AK137: 41 | AL137: 55 | AM137: 19 | AN137: 0.6 | AO137: 3.3 | AP137: 1.5 | AQ137: 43 | AS137: 103 | AT137: 31030030
A138: 31040030 | B138: Sojabohne, Samen nativ - trocken | C138: 895 | D138: 68 | E138: 932 | F138: 159 | G138: 73 | H138: 94 | I138: 390 | J138: 229 | K138: 51 | L138: 87 | M138: 23.9 | N138: 144 | O138: 57 | P138: 99 | Q138: 32 | R138: 18.4 | T138: 2.8 | U138: 6.6 | V138: 2.8 | W138: 0.2 | X138: 22.6 | Y138: 0.3 | Z138: 2.3 | AA138: 435 | AB138: KF | AC138: 89 | AD138: 15 | AE138: 48 | AF138: 20 | AI138: 0.25 | AJ138: 0 | AK138: 51 | AL138: 47 | AM138: 11 | AN138: 0.9 | AO138: 6.1 | AP138: 1.35 | AQ138: 5 | AS138: 104 | AT138: 31040030
A139: 31050130 | B139: Sojabohne, Samen, ExtrSchr. - trocken | C139: 890 | D139: 67 | E139: 933 | F139: 154 | G139: 87 | H139: 92 | I139: 500 | J139: 18 | K139: 68 | L139: 104 | M139: 19.9 | N139: 219 | O139: 134 | P139: 96 | Q139: 37 | R139: 13.9 | T139: 3.1 | U139: 7 | V139: 3 | W139: 0.2 | X139: 22 | Y139: 0.5 | Z139: 4.8 | AA139: 258 | AB139: KF | AC139: 254 | AD139: 16 | AE139: 58 | AF139: 40 | AI139: 0.25 | AJ139: 0 | AK139: 6 | AL139: 94 | AM139: 10 | AN139: 1.6 | AO139: 6.2 | AP139: 1.35 | AQ139: 7 | AS139: 105 | AT139: 31050130
A140: 31050230 | B140: Sojabohne, Samen, ExtrSchr. - trocken | C140: 890 | D140: 67 | E140: 933 | F140: 154 | G140: 87 | H140: 92 | I140: 500 | J140: 18 | K140: 68 | L140: 104 | M140: 19.9 | N140: 239 | O140: 154 | P140: 96 | Q140: 34 | R140: 13.9 | T140: 3.1 | U140: 7 | V140: 3 | W140: 0.2 | X140: 22 | Y140: 0.5 | Z140: 4.8 | AA140: 258 | AB140: KF | AC140: 254 | AD140: 16 | AE140: 58 | AF140: 40 | AI140: 0.25 | AJ140: 0 | AK140: 5 | AL140: 95 | AM140: 8 | AN140: 1.7 | AO140: 6.2 | AP140: 1.35 | AQ140: 7 | AS140: 105 | AT140: 31050230
A141: 31050330 | B141: Sojabohne, Samen, ExtrSchr. - trocken | C141: 890 | D141: 67 | E141: 933 | F141: 154 | G141: 87 | H141: 92 | I141: 500 | J141: 18 | K141: 68 | L141: 104 | M141: 19.9 | N141: 203 | O141: 118 | P141: 96 | Q141: 40 | R141: 13.9 | T141: 3.1 | U141: 7 | V141: 3 | W141: 0.2 | X141: 22 | Y141: 0.5 | Z141: 4.8 | AA141: 258 | AB141: KF | AC141: 254 | AD141: 16 | AE141: 58 | AF141: 40 | AI141: 0.25 | AJ141: 0 | AK141: 8 | AL141: 93 | AM141: 12 | AN141: 1.5 | AO141: 6.2 | AP141: 1.35 | AQ141: 7 | AS141: 105 | AT141: 31050330
A142: 31060030 | B142: Sojabohne, ExtrSchr. aus gesch. Saat - trocken | C142: 890 | D142: 67 | E142: 933 | F142: 124 | G142: 90 | H142: 92 | I142: 525 | J142: 20 | K142: 45 | L142: 103 | M142: 20.1 | N142: 227 | O142: 142 | P142: 96 | Q142: 40 | R142: 14.1 | T142: 3.5 | U142: 7.3 | V142: 3.4 | W142: 0.2 | X142: 25 | Y142: 0.5 | Z142: 4 | AA142: 385 | AB142: KF | AJ142: 0 | AK142: 6 | AL142: 94 | AM142: 10 | AN142: 1.6 | AO142: 6.2 | AP142: 1.35 | AQ142: 5 | AS142: 106 | AT142: 31060030
A143: 31070030 | B143: Sojabohne, ExtrSchr. pansenstabil - trocken | C143: 890 | D143: 58 | E143: 942 | F143: 273 | G143: 150 | H143: 90 | I143: 507 | J143: 12 | K143: 22 | L143: 103 | M143: 20.1 | N143: 320 | O143: 236 | P143: 84 | Q143: 16 | R143: 13.7 | T143: 3 | U143: 6.4 | V143: 2.7 | W143: 0.2 | X143: 23 | Y143: 1.3 | Z143: 4.5 | AA143: 280 | AB143: KF | AC143: 254 | AD143: 22 | AE143: 57 | AF143: 35 | AI143: 0.25 | AJ143: 0 | AK143: 7 | AL143: 89 | AM143: 4 | AN143: 6 | AO143: 6.5 | AP143: 1 | AQ143: 2 | AS143: 107 | AT143: 31070030
A144: 31080030 | B144: Sojabohne, Samen, Presskuchen - trocken | C144: 890 | D144: 64 | E144: 936 | F144: 136 | G144: 77 | H144: 92 | I144: 455 | J144: 98 | K144: 60 | L144: 70 | M144: 21.6 | N144: 211 | O144: 126 | P144: 99 | Q144: 32 | R144: 15.6 | T144: 3 | U144: 6.8 | V144: 2.6 | W144: 0.1 | X144: 21 | Y144: 0.5 | Z144: 4.7 | AA144: 235 | AB144: KF | AC144: 254 | AD144: 16 | AE144: 58 | AF144: 40 | AI144: 0.25 | AJ144: 0 | AK144: 6 | AL144: 94 | AM144: 10 | AN144: 1.6 | AO144: 6.2 | AP144: 1.35 | AQ144: 6 | AS144: 108 | AT144: 31080030
A145: 31090030 | B145: Sojabohne, Samenschalen - trocken | C145: 900 | D145: 50 | E145: 950 | F145: 680 | G145: 460 | H145: 79 | I145: 135 | J145: 25 | K145: 80 | L145: 26 | M145: 18.9 | N145: 90 | O145: 15 | P145: 75 | Q145: 0 | R145: 12.1 | T145: 5.5 | U145: 1.6 | V145: 2 | W145: 0.2 | X145: 13 | Y145: 0.5 | Z145: 1.2 | AA145: 253 | AB145: KF | AC145: 89 | AD145: 10 | AE145: 35 | AF145: 26 | AI145: 0.21 | AJ145: 0 | AK145: 51 | AL145: 47 | AM145: 11 | AN145: 0.9 | AO145: 6.5 | AP145: 1 | AQ145: 8 | AS145: 109 | AT145: 31090030
A146: 31100030 | B146: Sojabohne, Öl - trocken | C146: 990 | D146: 1 | E146: 999 | F146: 0 | G146: 0 | H146: 85 | I146: 0 | J146: 999 | K146: 0 | L146: 0 | M146: 39.8 | N146: 84 | O146: 0 | P146: 0 | Q146: -20 | R146: 30.6 | AB146: KF | AC146: 10 | AJ146: 0 | AO146: 0 | AP146: 0 | AQ146: 0 | AS146: 110 | AT146: 31100030
A147: 31110030 | B147: Sonnenbl. ExtrSchr. a. gesch. Saat - trocken | C147: 910 | D147: 64 | E147: 936 | F147: 225 | G147: 154 | H147: 73 | I147: 439 | J147: 20 | K147: 44 | L147: 100 | M147: 19.8 | N147: 124 | O147: 56 | P147: 79 | Q147: 43 | R147: 10.6 | T147: 3.7 | U147: 10.6 | V147: 3 | W147: 0.3 | X147: 13 | Y147: 3.2 | Z147: 3.8 | AA147: 18 | AB147: KF | AC147: 350 | AD147: 30 | AE147: 46 | AF147: 56 | AI147: 0.1 | AJ147: 0 | AK147: 20 | AL147: 76 | AM147: 19 | AN147: 0.2 | AO147: 2.9 | AP147: 1.8 | AQ147: 4 | AS147: 111 | AT147: 31110030
A148: 31120030 | B148: Sonnenbl. ExtrSchr. a. teilgesch. Saat - trocken | C148: 890 | D148: 78 | E148: 922 | F148: 389 | G148: 267 | H148: 67 | I148: 366 | J148: 23 | K148: 38 | L148: 51 | M148: 19.4 | N148: 108 | O148: 47 | P148: 79 | Q148: 34 | R148: 9.5 | T148: 4.4 | U148: 11 | V148: 5.5 | W148: 0.2 | X148: 13 | Y148: 3.2 | Z148: 3.8 | AA148: 14 | AB148: KF | AC148: 350 | AD148: 30 | AE148: 46 | AF148: 56 | AI148: 0.1 | AJ148: 0 | AK148: 20 | AL148: 76 | AM148: 19 | AN148: 0.2 | AO148: 3.4 | AP148: 2.1 | AQ148: 4 | AS148: 112 | AT148: 31120030
A149: 31130030 | B149: Sonnenblume, ExtrSchr. schalenreich - trocken | C149: 890 | D149: 52 | E149: 948 | F149: 529 | G149: 440 | H149: 61 | I149: 245 | J149: 22 | K149: 33 | L149: 40 | M149: 19.4 | N149: 89 | O149: 31 | P149: 79 | Q149: 19 | R149: 8.8 | T149: 2.8 | U149: 8.5 | V149: 5 | W149: 0.1 | X149: 12 | Y149: 1.1 | Z149: 2.3 | AA149: 137 | AB149: KF | AC149: 259 | AD149: 28 | AE149: 68 | AF149: 34 | AI149: 0.3 | AJ149: 0 | AK149: 20 | AL149: 76 | AM149: 19 | AN149: 0.2 | AO149: 3.7 | AP149: 2.2 | AQ149: 3 | AS149: 113 | AT149: 31130030
A150: 31140030 | B150: Sonnenblume, Samen, Presskuchen - trocken | C150: 937 | D150: 71 | E150: 929 | F150: 305 | G150: 252 | H150: 79 | I150: 349 | J150: 116 | K150: 35 | L150: 55 | M150: 21.4 | N150: 134 | O150: 61 | P150: 96 | Q150: 28 | R150: 13.3 | T150: 3.4 | U150: 10.3 | V150: 5.5 | W150: 0.2 | X150: 12 | Y150: 3.1 | Z150: 3.7 | AA150: -2 | AB150: KF | AC150: 100 | AD150: 15 | AE150: 40 | AF150: 45 | AI150: 0.1 | AJ150: 0 | AK150: 12 | AL150: 84 | AM150: 23 | AN150: 1.1 | AO150: 3.5 | AP150: 2.2 | AQ150: 4 | AS150: 114 | AT150: 31140030
A151: 31150030 | B151: Süßlupine blau, Samen nativ - trocken | C151: 880 | D151: 42 | E151: 958 | F151: 254 | G151: 190 | H151: 93 | I151: 379 | J151: 61 | K151: 100 | L151: 61 | M151: 20.8 | N151: 120 | O151: 31 | P151: 66 | Q151: 32 | R151: 15.3 | T151: 2.1 | U151: 3.2 | V151: 1.9 | W151: 0.4 | X151: 15.5 | Y151: 0.7 | Z151: 2.7 | AA151: 226 | AB151: KF | AC151: 30 | AD151: 12 | AE151: 45 | AF151: 30 | AI151: 0.1 | AJ151: 0 | AK151: 29 | AL151: 71 | AM151: 17 | AN151: 0 | AO151: 5 | AP151: 0.6 | AS151: 115 | AT151: 31150030
A152: 31160030 | B152: Süßlupine weiß, Samen nativ - trocken | C152: 881 | D152: 40 | E152: 960 | F152: 190 | G152: 137 | H152: 95 | I152: 385 | J152: 94 | K152: 84 | L152: 65 | M152: 21.6 | N152: 122 | O152: 32 | P152: 66 | Q152: 32 | R152: 16.4 | T152: 2.1 | U152: 4.5 | V152: 1.9 | W152: 0.4 | X152: 12 | Y152: 0.7 | Z152: 2.7 | AA152: 136 | AB152: KF | AC152: 30 | AD152: 12 | AE152: 45 | AF152: 30 | AI152: 0.1 | AJ152: 0 | AK152: 29 | AL152: 71 | AM152: 17 | AN152: 0 | AO152: 4.7 | AP152: 0.7 | AS152: 116 | AT152: 31160030
A153: 31170030 | B153: Maniok, Tapioca Typ 55 - trocken | C153: 880 | D153: 58 | E153: 942 | F153: 75 | H153: 86 | I153: 29 | J153: 7 | K153: 671 | L153: 30 | M153: 16.9 | N153: 85 | O153: 5 | P153: 73 | Q153: -16 | R153: 12 | T153: 1.5 | U153: 1 | V153: 1 | W153: 0.4 | AB153: KF | AJ153: 0 | AK153: 19 | AL153: 77 | AM153: 11 | AN153: 0 | AO153: 3.7 | AP153: 1.1 | AQ153: 101 | AS153: 117 | AT153: 31170030
A154: 31180030 | B154: Triticale, Samen - trocken | C154: 880 | D154: 21 | E154: 979 | F154: 161 | G154: 35 | H154: 89 | I154: 118 | J154: 19 | K154: 645 | L154: 43 | M154: 18.3 | N154: 98 | O154: 11 | P154: 88 | Q154: -4 | R154: 13.4 | T154: 0.4 | U154: 3.5 | V154: 1.2 | W154: 0.2 | X154: 5.4 | Y154: 1 | Z154: 1.5 | AA154: 25 | AB154: KF | AC154: 100 | AD154: 6 | AE154: 50 | AF154: 44 | AI154: 0.8 | AJ154: 0 | AK154: 31 | AL154: 66 | AM154: 27 | AN154: 0 | AO154: 3.2 | AP154: 1.7 | AQ154: 97 | AS154: 118 | AT154: 31180030
A155: 31190030 | B155: Weizen, Samen - trocken | C155: 880 | D155: 19 | E155: 981 | F155: 142 | G155: 38 | H155: 87 | I155: 134 | J155: 25 | K155: 622 | L155: 31 | M155: 18.6 | N155: 101 | O155: 16 | P155: 88 | Q155: -2 | R155: 13.2 | T155: 0.5 | U155: 3.2 | V155: 1.3 | W155: 0.1 | X155: 4.5 | Y155: 0.7 | Z155: 1.9 | AA155: -19 | AB155: KF | AC155: 78 | AD155: 7 | AE155: 65 | AF155: 35 | AI155: 0.1 | AJ155: 0 | AK155: 20 | AL155: 78 | AM155: 21 | AN155: 0.1 | AO155: 2.8 | AP155: 1.6 | AQ155: 93 | AS155: 119 | AT155: 31190030
A156: 31200030 | B156: Weizen, Samen, Kleber(futter?) - trocken | C156: 900 | D156: 46 | E156: 954 | F156: 274 | G156: 63 | H156: 82 | I156: 149 | J156: 45 | K156: 61 | L156: 27 | M156: 19.5 | N156: 90 | O156: 12 | P156: 84 | Q156: 3 | R156: 13 | T156: 1.1 | U156: 9 | V156: 3.5 | W156: 0.3 | X156: 9.5 | Y156: 1.3 | Z156: 1.8 | AA156: 107 | AB156: KF | AC156: 100 | AD156: 12 | AE156: 80 | AF156: 120 | AI156: 0.2 | AJ156: 0 | AK156: 50 | AL156: 45 | AM156: 35 | AN156: 0 | AO156: 1.6 | AP156: 1.6 | AQ156: 6 | AS156: 120 | AT156: 31200030
A157: 31210030 | B157: Weizen, Samen, Kleie - trocken | C157: 880 | D157: 51 | E157: 949 | F157: 408 | G157: 100 | H157: 77 | I157: 171 | J157: 48 | K157: 292 | L157: 64 | M157: 19.1 | N157: 86 | O157: 13 | P157: 52 | Q157: 6 | R157: 11.7 | T157: 1.8 | U157: 13 | V157: 5.3 | W157: 0.5 | X157: 12 | Y157: 1.4 | Z157: 2 | AA157: 165 | AB157: KF | AC157: 100 | AD157: 12 | AE157: 106 | AF157: 173 | AI157: 0.1 | AJ157: 0 | AK157: 48 | AL157: 45 | AM157: 18 | AN157: 0.2 | AO157: 4 | AP157: 1.5 | AQ157: 29 | AS157: 121 | AT157: 31210030
A158: 31220030 | B158: Weizen, Samen, Kleie - trocken | C158: 880 | D158: 60 | E158: 940 | F158: 396 | G158: 146 | H158: 77 | I158: 179 | J158: 49 | K158: 194 | L158: 64 | M158: 19.1 | N158: 86 | O158: 14 | P158: 52 | Q158: 7 | R158: 11.8 | T158: 1.4 | U158: 13 | V158: 5.2 | W158: 0.1 | X158: 13 | Y158: 0.6 | Z158: 2.3 | AA158: 177 | AB158: KF | AC158: 206 | AD158: 17 | AE158: 103 | AF158: 149 | AI158: 0.17 | AJ158: 0 | AK158: 48 | AL158: 45 | AM158: 18 | AN158: 0.2 | AO158: 4 | AP158: 1.5 | AQ158: 19 | AS158: 122 | AT158: 31220030
A159: 31230030 | B159: Weizen, Samen, Weizengrießkleie - trocken | C159: 880 | D159: 55 | E159: 945 | F159: 275 | G159: 160 | H159: 80 | I159: 173 | J159: 48 | K159: 226 | L159: 70 | M159: 19.1 | N159: 89 | O159: 14 | P159: 52 | Q159: 5 | R159: 12.3 | T159: 1.1 | U159: 12 | V159: 4.6 | W159: 0.1 | X159: 13 | Y159: 0.9 | Z159: 2.3 | AA159: 168 | AB159: KF | AC159: 171 | AD159: 17 | AE159: 103 | AF159: 149 | AI159: 0.17 | AJ159: 0 | AK159: 48 | AL159: 45 | AM159: 18 | AN159: 0.2 | AO159: 4 | AP159: 1.4 | AQ159: 23 | AS159: 123 | AT159: 31230030
A160: 31240030 | B160: Zitrusfrucht, Trester - trocken | C160: 900 | D160: 62 | E160: 938 | F160: 240 | G160: 190 | H160: 90 | I160: 132 | J160: 70 | K160: 0 | L160: 243 | M160: 19.1 | N160: 105 | O160: 21 | P160: 73 | Q160: -4 | R160: 14.2 | T160: 20 | U160: 1 | AB160: KF | AJ160: 0 | AK160: 19 | AL160: 77 | AM160: 11 | AN160: 0 | AO160: 2.6 | AP160: 1 | AQ160: 0 | AS160: 124 | AT160: 31240030
A161: 41280030 | B161: Zuckerrohr, Melasse - trocken | C161: 740 | D161: 118 | E161: 882 | F161: 0 | G161: 0 | H161: 89 | I161: 47 | J161: 5 | K161: 0 | L161: 649 | M161: 15.1 | N161: 85 | O161: 7 | P161: 67 | Q161: -13 | R161: 11.1 | T161: 9.6 | U161: 1 | V161: 4.5 | W161: 1.8 | AB161: KF | AJ161: 0 | AK161: 35 | AL161: 57 | AM161: 10 | AN161: 0 | AQ161: 0 | AS161: 128 | AT161: 41280030
A162: 41290030 | B162: Zuckerrübe, Melasse - trocken | C162: 770 | D162: 111 | E162: 889 | F162: 0 | G162: 0 | H162: 89 | I162: 139 | J162: 1 | K162: 0 | L162: 654 | M162: 15.6 | N162: 101 | O162: 22 | P162: 73 | Q162: -2 | R162: 11.2 | T162: 2.1 | U162: 0.3 | V162: 0.1 | W162: 6.8 | X162: 53.4 | Y162: 2.2 | Z162: 4.3 | AA162: 1332 | AB162: KF | AC162: 175 | AD162: 10 | AE162: 60 | AF162: 52 | AI162: 0.1 | AJ162: 0 | AK162: 19 | AL162: 77 | AM162: 11 | AN162: 0 | AO162: 2.5 | AP162: 1.6 | AQ162: 0 | AS162: 129 | AT162: 41290030
A163: 51320030 | B163: Futterharnstoff - trocken | C163: 990 | D163: 0 | E163: 1000 | F163: 0 | G163: 0 | H163: 100 | I163: 2875 | J163: 0 | K163: 0 | L163: 0 | M163: 10.7 | N163: 99 | O163: 0 | Q163: 436 | R163: 10.7 | T163: 0 | U163: 0 | V163: 0 | W163: 0 | X163: 0 | Y163: 0 | Z163: 0 | AA163: 0 | AB163: KF | AC163: 10 | AJ163: 0 | AK163: 100 | AL163: 0 | AM163: 0 | AN163: 0 | AO163: 0 | AP163: 0 | AQ163: 0 | AS163: 132 | AT163: 51320030
A164: 51330000 | B164: Glycerin, rein | C164: 990 | D164: 0 | E164: 1000 | F164: 0 | G164: 0 | H164: 100 | I164: 0 | J164: 0 | K164: 0 | L164: 0 | M164: 18.3 | N164: 99 | O164: 0 | Q164: -24 | R164: 15.6 | T164: 0 | U164: 0 | V164: 0 | W164: 0 | X164: 0 | Y164: 0 | Z164: 0 | AA164: 0 | AB164: KF | AC164: 0 | AD164: 0 | AE164: 0 | AF164: 0 | AI164: 0 | AJ164: 0 | AK164: 100 | AO164: 0 | AP164: 0 | AQ164: 0 | AS164: 133 | AT164: 51330000
A165: 51340000 | B165: Glycerin, roh | C165: 900 | D165: 63 | E165: 937 | F165: 0 | G165: 0 | H165: 100 | I165: 0 | J165: 0 | K165: 0 | L165: 0 | M165: 14.6 | N165: 93 | O165: 0 | Q165: -22 | R165: 12.2 | T165: 0 | U165: 0 | V165: 0 | W165: 25 | X165: 25 | Y165: 0 | Z165: 0 | AA165: 1727 | AB165: KF | AC165: 0 | AD165: 0 | AE165: 0 | AF165: 0 | AI165: 0 | AJ165: 0 | AK165: 100 | AO165: 0 | AP165: 0 | AQ165: 0 | AS165: 134 | AT165: 51340000
A166: 51350000 | B166: Propylenglykol | C166: 990 | D166: 0 | E166: 1000 | F166: 0 | G166: 0 | H166: 92 | I166: 0 | J166: 0 | K166: 0 | L166: 0 | M166: 18.9 | N166: 91 | O166: 0 | Q166: -22 | R166: 14.8 | AB166: KF | AJ166: 0 | AK166: 101 | AO166: 0 | AP166: 0 | AQ166: 0 | AS166: 135 | AT166: 51350000
E167: 1000 | AJ167: 0
E168: 1000 | AJ168: 0
E169: 1000 | AJ169: 0
A170: 59000001 | B170: Milchleistungsfutter - Beispiel Rationsberechng. | C170: 890 | D170: 65 | E170: 935 | F170: 290 | G170: 113 | H170: 83 | I170: 188 | J170: 40 | K170: 262 | L170: 108 | M170: 18.7 | N170: 119 | O170: 53 | P170: 85 | Q170: 4 | R170: 12.5 | T170: 8.4 | U170: 5.8 | V170: 3.4 | W170: 2.1 | X170: 12 | Y170: 1.2 | Z170: 2.6 | AA170: 207 | AB170: KF | AJ170: 0 | AK170: 23 | AL170: 71 | AM170: 11 | AN170: 1.4
A171: 59000002 | B171: Mineralfutter - Beispiel Rationsberechnung | C171: 900 | D171: 968 | E171: 32 | H171: 70 | T171: 210 | W171: 84 | AB171: KF | AJ171: 0
A172: 59000003 | E172: 1000
A173: 59000004 | E173: 1000
A174: 59000005 | E174: 1000
A175: 59000006 | E175: 1000
A176: 59000007 | E176: 1000
A177: 59000008 | E177: 1000
A178: 59000009 | E178: 1000
A179: 59000010 | E179: 1000
A180: 59000011 | E180: 1000
A181: 59000012 | E181: 1000
A182: 59000013 | E182: 1000
A183: 59000014 | E183: 1000
A184: 59000015 | E184: 1000
A185: 59000016 | E185: 1000
A186: 59000017 | E186: 1000
A187: 59000018 | E187: 1000
A188: 59000019 | E188: 1000
A189: 59000020 | E189: 1000
A190: 59000021 | E190: 1000
A191: 59000022 | E191: 1000
A192: 59000023 | E192: 1000
A193: 59000024 | E193: 1000
A194: 59000025 | E194: 1000
A195: 59000026 | E195: 1000
A196: 59000027 | E196: =1000-D196 -> 1000
A197: 59000028 | E197: 1000
A198: 59000029 | E198: 1000
A199: 59000030 | E199: 1000
B388: webFuLab einlesen, ab A 390
... 3 more rows

Sheet Druck
A2: Betrieb: | B2: ='Start-Einstellung'!J7 -> Tierhaltungsschule Triesdorf | C2: ='Start-Einstellung'!M7 -> Markgrafenstraße 1 | F2: ='Start-Einstellung'!M8 -> 11 222 333 4444 | I2: Betrieb: | J2: =B2 -> Tierhaltungsschule Triesdorf | K2: =C2 -> Markgrafenstraße 1 | N2: =F2 -> 11 222 333 4444
A4: Nr. | B4: Trogration | C4: TM kg | D4: FM kg | E4: sidP | F4: ME | G4: CL | H4: CP | I4: Nr. | J4: Konzentrat - Mischung | K4: % Ant. | L4: FM kg | M4: sidP | N4: ME | O4: CL | P4: CP
A5: =Ration!A3 -> 0 | B5: =Ration!B3 ->  | C5: =Ration!F3 -> 0 | D5: =Ration!E25 -> 0 | E5: =Ration!O3 -> 0 | F5: =Ration!M3 -> 0 | G5: =Ration!P3 -> 0 | H5: =Ration!N3 -> 0 | I5: ='Mischung 1'!A3 -> 0 | J5: ='Mischung 1'!B3 ->  | K5: ='Mischung 1'!C3 -> 0 | L5: ='Mischung 1'!C3 -> 0 | M5: ='Mischung 1'!M3 -> 0 | N5: ='Mischung 1'!K3 -> 0 | O5: ='Mischung 1'!N3 -> 0 | P5: ='Mischung 1'!L3 -> 0
A6: =Ration!A4 -> 0 | B6: =Ration!B4 ->  | C6: =Ration!F4 -> 0 | D6: =Ration!E26 -> 0 | E6: =Ration!O4 -> 0 | F6: =Ration!M4 -> 0 | G6: =Ration!P4 -> 0 | H6: =Ration!N4 -> 0 | I6: ='Mischung 1'!A4 -> 0 | J6: ='Mischung 1'!B4 ->  | K6: ='Mischung 1'!C4 -> 0 | L6: ='Mischung 1'!C4 -> 0 | M6: ='Mischung 1'!M4 -> 0 | N6: ='Mischung 1'!K4 -> 0 | O6: ='Mischung 1'!N4 -> 0 | P6: ='Mischung 1'!L4 -> 0
A7: =Ration!A5 -> 0 | B7: =Ration!B5 ->  | C7: =Ration!F5 -> 0 | D7: =Ration!E27 -> 0 | E7: =Ration!O5 -> 0 | F7: =Ration!M5 -> 0 | G7: =Ration!P5 -> 0 | H7: =Ration!N5 -> 0 | I7: ='Mischung 1'!A5 -> 0 | J7: ='Mischung 1'!B5 ->  | K7: ='Mischung 1'!C5 -> 0 | L7: ='Mischung 1'!C5 -> 0 | M7: ='Mischung 1'!M5 -> 0 | N7: ='Mischung 1'!K5 -> 0 | O7: ='Mischung 1'!N5 -> 0 | P7: ='Mischung 1'!L5 -> 0
A8: =Ration!A6 -> 0 | B8: =Ration!B6 ->  | C8: =Ration!F6 -> 0 | D8: =Ration!E28 -> 0 | E8: =Ration!O6 -> 0 | F8: =Ration!M6 -> 0 | G8: =Ration!P6 -> 0 | H8: =Ration!N6 -> 0 | I8: ='Mischung 1'!A6 -> 0 | J8: ='Mischung 1'!B6 ->  | K8: ='Mischung 1'!C6 -> 0 | L8: ='Mischung 1'!C6 -> 0 | M8: ='Mischung 1'!M6 -> 0 | N8: ='Mischung 1'!K6 -> 0 | O8: ='Mischung 1'!N6 -> 0 | P8: ='Mischung 1'!L6 -> 0
A9: =Ration!A7 -> 0 | B9: =Ration!B7 ->  | C9: =Ration!F7 -> 0 | D9: =Ration!E29 -> 0 | E9: =Ration!O7 -> 0 | F9: =Ration!M7 -> 0 | G9: =Ration!P7 -> 0 | H9: =Ration!N7 -> 0 | I9: ='Mischung 1'!A7 -> 0 | J9: ='Mischung 1'!B7 ->  | K9: ='Mischung 1'!C7 -> 0 | L9: ='Mischung 1'!C7 -> 0 | M9: ='Mischung 1'!M7 -> 0 | N9: ='Mischung 1'!K7 -> 0 | O9: ='Mischung 1'!N7 -> 0 | P9: ='Mischung 1'!L7 -> 0
A10: =Ration!A8 -> 0 | B10: =Ration!B8 ->  | C10: =Ration!F8 -> 0 | D10: =Ration!E30 -> 0 | E10: =Ration!O8 -> 0 | F10: =Ration!M8 -> 0 | G10: =Ration!P8 -> 0 | H10: =Ration!N8 -> 0 | I10: ='Mischung 1'!A8 -> 0 | J10: ='Mischung 1'!B8 ->  | K10: ='Mischung 1'!C8 -> 0 | L10: ='Mischung 1'!C8 -> 0 | M10: ='Mischung 1'!M8 -> 0 | N10: ='Mischung 1'!K8 -> 0 | O10: ='Mischung 1'!N8 -> 0 | P10: ='Mischung 1'!L8 -> 0
A11: =Ration!A9 -> 0 | B11: =Ration!B9 ->  | C11: =Ration!F9 -> 0 | D11: =Ration!E31 -> 0 | E11: =Ration!O9 -> 0 | F11: =Ration!M9 -> 0 | G11: =Ration!P9 -> 0 | H11: =Ration!N9 -> 0 | I11: ='Mischung 1'!A9 -> 0 | J11: ='Mischung 1'!B9 ->  | K11: ='Mischung 1'!C9 -> 0 | L11: ='Mischung 1'!C9 -> 0 | M11: ='Mischung 1'!M9 -> 0 | N11: ='Mischung 1'!K9 -> 0 | O11: ='Mischung 1'!N9 -> 0 | P11: ='Mischung 1'!L9 -> 0
A12: =Ration!A10 -> 0 | B12: =Ration!B10 ->  | C12: =Ration!F10 -> 0 | D12: =Ration!E32 -> 0 | E12: =Ration!O10 -> 0 | F12: =Ration!M10 -> 0 | G12: =Ration!P10 -> 0 | H12: =Ration!N10 -> 0 | I12: ='Mischung 1'!A10 -> 0 | J12: ='Mischung 1'!B10 ->  | K12: ='Mischung 1'!C10 -> 0 | L12: ='Mischung 1'!C10 -> 0 | M12: ='Mischung 1'!M10 -> 0 | N12: ='Mischung 1'!K10 -> 0 | O12: ='Mischung 1'!N10 -> 0 | P12: ='Mischung 1'!L10 -> 0
A13: =Ration!A11 -> 0 | B13: =Ration!B11 ->  | C13: =Ration!F11 -> 0 | D13: =Ration!E33 -> 0 | E13: =Ration!O11 -> 0 | F13: =Ration!M11 -> 0 | G13: =Ration!P11 -> 0 | H13: =Ration!N11 -> 0 | I13: ='Mischung 1'!A11 -> 0 | J13: ='Mischung 1'!B11 ->  | K13: ='Mischung 1'!C11 -> 0 | L13: ='Mischung 1'!C11 -> 0 | M13: ='Mischung 1'!M11 -> 0 | N13: ='Mischung 1'!K11 -> 0 | O13: ='Mischung 1'!N11 -> 0 | P13: ='Mischung 1'!L11 -> 0
A14: =Ration!A12 -> 0 | B14: =Ration!B12 ->  | C14: =Ration!F12 -> 0 | D14: =Ration!E34 -> 0 | E14: =Ration!O12 -> 0 | F14: =Ration!M12 -> 0 | G14: =Ration!P12 -> 0 | H14: =Ration!N12 -> 0 | I14: ='Mischung 1'!A12 -> 0 | J14: ='Mischung 1'!B12 ->  | K14: ='Mischung 1'!C12 -> 0 | L14: ='Mischung 1'!C12 -> 0 | M14: ='Mischung 1'!M12 -> 0 | N14: ='Mischung 1'!K12 -> 0 | O14: ='Mischung 1'!N12 -> 0 | P14: ='Mischung 1'!L12 -> 0
A15: =Ration!A13 -> 0 | B15: =Ration!B13 ->  | C15: =Ration!F13 -> 0 | D15: =Ration!E35 -> 0 | E15: =Ration!O13 -> 0 | F15: =Ration!M13 -> 0 | G15: =Ration!P13 -> 0 | H15: =Ration!N13 -> 0 | I15: ='Mischung 1'!A13 -> 0 | J15: ='Mischung 1'!B13 ->  | K15: ='Mischung 1'!C13 -> 0 | L15: ='Mischung 1'!C13 -> 0 | M15: ='Mischung 1'!M13 -> 0 | N15: ='Mischung 1'!K13 -> 0 | O15: ='Mischung 1'!N13 -> 0 | P15: ='Mischung 1'!L13 -> 0
A16: =Ration!A14 -> 0 | B16: =Ration!B14 ->  | C16: =Ration!F14 -> 0 | D16: =Ration!E36 -> 0 | E16: =Ration!O14 -> 0 | F16: =Ration!M14 -> 0 | G16: =Ration!P14 -> 0 | H16: =Ration!N14 -> 0 | I16: ='Mischung 1'!A14 -> 0 | J16: ='Mischung 1'!B14 ->  | K16: ='Mischung 1'!C14 -> 0 | L16: ='Mischung 1'!C14 -> 0 | M16: ='Mischung 1'!M14 -> 0 | N16: ='Mischung 1'!K14 -> 0 | O16: ='Mischung 1'!N14 -> 0 | P16: ='Mischung 1'!L14 -> 0
B17: Summe | C17: =SUM(C5:C16) -> 0 | D17: =SUM(D5:D16) -> 0 | E17: 0 | F17: 0 | G17: =Ration!P17 -> 0 | H17: =Ration!N17 -> 0 | J17: Summe | K17: =SUM(K5:K16) -> 0 | L17: =SUM(L5:L16) -> 0 | M17: 0 | N17: 0 | O17: ='Mischung 1'!N16 -> 0 | P17: ='Mischung 1'!L16 -> 0
A19: Beladung Futtermischwagen für Anzahl: | C19: 100 | G19: MEW | I19: Futtermischung in kg: | K19: 5000
A21: =A5 -> 0 | B21: =B5 ->  | D21: =D5*$C$19 -> 0 | G21: sidP | H21: =Ration!O18 -> 0 | I21: =I5 -> 0 | J21: ='Mischung 1'!B3 ->  | L21: =$K$19*'Mischung 1'!C3 -> 0
A22: =A6 -> 0 | D22: =D6*$C$19 -> 0 | G22: ME | H22: =Ration!M18 -> 0 | I22: =I6 -> 0 | J22: ='Mischung 1'!B4 ->  | L22: =$K$19*'Mischung 1'!C4 -> 0
A23: 0 | D23: 0 | I23: =I7 -> 0 | J23: ='Mischung 1'!B5 ->  | L23: =$K$19*'Mischung 1'!C5 -> 0
A24: 0 | D24: 0 | G24: Rationswerte | I24: =I8 -> 0 | J24: ='Mischung 1'!B6 ->  | L24: =$K$19*'Mischung 1'!C6 -> 0
A25: 0 | D25: 0 | G25: aNDFom | H25: =Ration!I17 -> 0 | I25: =I9 -> 0 | J25: ='Mischung 1'!B7 ->  | L25: =$K$19*'Mischung 1'!C7 -> 0
A26: 0 | D26: 0 | G26: SI | H26: =Ration!K20 -> 0 | I26: =I10 -> 0 | J26: ='Mischung 1'!B8 ->  | L26: =$K$19*'Mischung 1'!C8 -> 0
A27: 0 | D27: 0 | G27: RMD | H27: =Ration!T17 -> 0 | I27: =I11 -> 0 | J27: ='Mischung 1'!B9 ->  | L27: =$K$19*'Mischung 1'!C9 -> 0
A28: 0 | D28: 0 | G28: GF kg | H28: =Ration!C18 -> 0 | I28: =I12 -> 0 | J28: ='Mischung 1'!B10 ->  | L28: =$K$19*'Mischung 1'!C10 -> 0
A29: 0 | D29: 0 | G29: KF kg | H29: =Ration!D18 -> 0 | I29: =I13 -> 0 | J29: ='Mischung 1'!B11 ->  | L29: =$K$19*'Mischung 1'!C11 -> 0
A30: 0 | D30: 0 | G30: GF % | H30: =Ration!E18 -> 0 | I30: =I14 -> 0 | J30: ='Mischung 1'!B12 ->  | L30: =$K$19*'Mischung 1'!C12 -> 0
A31: 0 | D31: 0 | G31: KF % | H31: =Ration!F18 -> 0 | I31: =I15 -> 0 | J31: ='Mischung 1'!B13 ->  | L31: =$K$19*'Mischung 1'!C13 -> 0
A32: 0 | D32: 0 | G32: Ca | H32: =Ration!U16 -> 0 | I32: =I16 -> 0 | J32: ='Mischung 1'!B14 ->  | L32: =$K$19*'Mischung 1'!C14 -> 0
A33: Mischung | D33: =Ration!E15*Druck!C19 -> 0 | G33: P | H33: =Ration!V16 -> 0 | I33: Gesamt | L33: =SUM(L21:M32) -> 0
A34: Wasser | D34: =Ration!E17*Druck!C19 -> 0 | G34: Na | H34: =Ration!W16 -> 0
A35: Gesamt | D35: =SUM(D21:E34) -> 0 | G35: Mg | H35: =Ration!X16 -> 0
